Body Name,Date Paid,Transaction Number,Amount,Supplier Name,Supplier Type ,Expense Area,Cost Centre Description  ,Expense Type
Cambridgeshire County Council,08-Feb-19,51300674648,"-116,099.48",STAGECOACH SERVICES LTD,TRADE SUPPLIER,Passenger Transport other,Concessionary Fares,Concessions - payments to transport operators
Cambridgeshire County Council,11-Feb-19,51300722784,"-80,904.45",ACORN PARK SCHOOL,EDUCATION,LAC Placements,Placements - residential schools,Agency Placements - Out of  County
Cambridgeshire County Council,19-Feb-19,51300508434,"-78,816.75",CPFT- NHS,OTHER PUBLIC BODIES,Drug & Alcohol Misuse,Young People Treatment Contract,Professional Fees and Hired Services
Cambridgeshire County Council,18-Feb-19,51300682573,"-72,984.00",MOTT MACDONALD LTD,TRADE SUPPLIER,GCP - A428 Corridor,GCP - A428 Corridor,Construction - External Professional Fees
Cambridgeshire County Council,11-Feb-19,51300676895,"-46,405.00",CHS GROUP,CARE ESTABLISHMENT,Control Accounts,Control Accounts - Payables,Migration Only - Marked as Do Not Use
Cambridgeshire County Council,07-Feb-19,51300656463,"-35,000.00",GRETTON SCHOOL,EDUCATION,SEN Placements,Placements - Education,Educational Materials
Cambridgeshire County Council,25-Feb-19,51300682567,"-28,950.00",W S ATKINS (SERVICES) LTD,COMPANY,City Deal,Travel Audit - South Station and biomedical campus,Capital - Assets Under Construction
Cambridgeshire County Council,06-Feb-19,51300676252,"-17,787.25",CAMBRIDGESHIRE AND PETERBOROUGH NHS FOUNDATION TRUST,TRUST (OTHER),Head of Countywide and LAC,Head of Countywide and LAC,Professional Fees and Hired Services
Cambridgeshire County Council,25-Feb-19,51300010883,"-14,736.84",GRETTON SCHOOL,EDUCATION,Control Accounts,Control Accounts - Payables,Migration Only - Marked as Do Not Use
Cambridgeshire County Council,27-Feb-19,51300733797,"-13,785.75",BREAK,CHARITY,LAC Placements,Placements - residential homes,Agency Placements - Out of  County
Cambridgeshire County Council,01-Feb-19,51300285901,"-13,485.34",TRIBAL EDUCATION LTD,EDUCATION,Buildings and Capital,Education Property Strategy Manager,Capital - Assets Under Construction
Cambridgeshire County Council,22-Feb-19,51300733815,"-9,157.28",TOTAL GAS AND POWER,TRADE SUPPLIER,Control Accounts,Control Accounts - Payables,Electricity
Cambridgeshire County Council,04-Feb-19,51300682260,"-8,002.41",CAPSTONE FOSTER CARE (SOUTH EAST) LTD,CARE ESTABLISHMENT,LAC Placements,Placements - independent fostering,Agency Placements - Out of  County
Cambridgeshire County Council,21-Feb-19,51300733795,"-7,842.25",Friends Therapeutic Community Trust,CARE ESTABLISHMENT,LAC Placements,Placements - residential homes,Agency Placements - Out of  County
Cambridgeshire County Council,25-Feb-19,51300733853,"-7,500.00",GRETTON SCHOOL,EDUCATION,SEN Placements,Placements - Education,Educational Materials
Cambridgeshire County Council,14-Feb-19,51300641816,"-6,876.68",FRYERS WALK (PD),CARE ESTABLISHMENT,OP - Fenland Locality,Older People - Fenland,Residential Care
Cambridgeshire County Council,11-Feb-19,51300723256,"-5,884.20",AURORA MELDRETH & ORCHARD MANOR,EDUCATION,LAC Placements,Placements - residential disability,Agency Placements - Out of  County
Cambridgeshire County Council,28-Feb-19,51300743546,"-5,694.07",TARMAC TRADING LIMITED,COMPANY,Highways - Carriageway Mtce,Highways - Carriageway Mtce,Construction - External Professional Fees
Cambridgeshire County Council,15-Feb-19,51300367124,"-5,219.57",COMPASS MINERALS UK LIMITED,TRADE SUPPLIER,Winter Maintenance,North Winter,Specialist Supplies and Materials
Cambridgeshire County Council,28-Feb-19,51300743548,"-5,185.42",TARMAC TRADING LIMITED,COMPANY,Highways - 90m Mtce,Highways - 90m Mtce,Construction - External Professional Fees
Cambridgeshire County Council,14-Feb-19,51300721564,"-4,655.00",Accomplish Group Support Limited,CARE ESTABLISHMENT,LD - Hunts Locality,LD - Huntigndonshire  - Care,Rehabilitation And Respite Care
Cambridgeshire County Council,14-Feb-19,51300730440,"-4,655.00",Accomplish Group Support Limited,CARE ESTABLISHMENT,LD - Hunts Locality,LD - Huntigndonshire  - Care,Rehabilitation And Respite Care
Cambridgeshire County Council,14-Feb-19,51300730455,"-4,655.00",Accomplish Group Support Limited,CARE ESTABLISHMENT,LD - Hunts Locality,LD - Huntigndonshire  - Care,Rehabilitation And Respite Care
Cambridgeshire County Council,14-Feb-19,51300721566,"-4,655.00",Accomplish Group Support Limited,CARE ESTABLISHMENT,LD - Hunts Locality,LD - Huntigndonshire  - Care,Rehabilitation And Respite Care
Cambridgeshire County Council,14-Feb-19,51300730456,"-4,655.00",Accomplish Group Support Limited,CARE ESTABLISHMENT,LD - Hunts Locality,LD - Huntigndonshire  - Care,Rehabilitation And Respite Care
Cambridgeshire County Council,14-Feb-19,51300730448,"-4,655.00",Accomplish Group Support Limited,CARE ESTABLISHMENT,LD - Hunts Locality,LD - Huntigndonshire  - Care,Rehabilitation And Respite Care
Cambridgeshire County Council,14-Feb-19,51300721563,"-4,655.00",Accomplish Group Support Limited,CARE ESTABLISHMENT,LD - Hunts Locality,LD - Huntigndonshire  - Care,Rehabilitation And Respite Care
Cambridgeshire County Council,14-Feb-19,51300721567,"-4,655.00",Accomplish Group Support Limited,CARE ESTABLISHMENT,LD - Hunts Locality,LD - Huntigndonshire  - Care,Rehabilitation And Respite Care
Cambridgeshire County Council,14-Feb-19,51300730454,"-4,655.00",Accomplish Group Support Limited,CARE ESTABLISHMENT,LD - Hunts Locality,LD - Huntigndonshire  - Care,Rehabilitation And Respite Care
Cambridgeshire County Council,14-Feb-19,51300721568,"-4,655.00",Accomplish Group Support Limited,CARE ESTABLISHMENT,LD - Hunts Locality,LD - Huntigndonshire  - Care,Rehabilitation And Respite Care
Cambridgeshire County Council,14-Feb-19,51300721569,"-4,655.00",Accomplish Group Support Limited,CARE ESTABLISHMENT,LD - Hunts Locality,LD - Huntigndonshire  - Care,Rehabilitation And Respite Care
Cambridgeshire County Council,14-Feb-19,51300730453,"-4,655.00",Accomplish Group Support Limited,CARE ESTABLISHMENT,LD - Hunts Locality,LD - Huntigndonshire  - Special Needs,Rehabilitation And Respite Care
Cambridgeshire County Council,14-Feb-19,51300721577,"-4,655.00",Accomplish Group Support Limited,CARE ESTABLISHMENT,LD - Hunts Locality,LD - Huntigndonshire  - Special Needs,Rehabilitation And Respite Care
Cambridgeshire County Council,14-Feb-19,51300721581,"-4,655.00",Accomplish Group Support Limited,CARE ESTABLISHMENT,LD - Hunts Locality,LD - Huntigndonshire  - Special Needs,Rehabilitation And Respite Care
Cambridgeshire County Council,14-Feb-19,51300730446,"-4,655.00",Accomplish Group Support Limited,CARE ESTABLISHMENT,LD - Hunts Locality,LD - Huntigndonshire  - Special Needs,Rehabilitation And Respite Care
Cambridgeshire County Council,14-Feb-19,51300730442,"-4,655.00",Accomplish Group Support Limited,CARE ESTABLISHMENT,LD - Hunts Locality,LD - Huntigndonshire  - Special Needs,Rehabilitation And Respite Care
Cambridgeshire County Council,14-Feb-19,51300730457,"-4,655.00",Accomplish Group Support Limited,CARE ESTABLISHMENT,LD - Hunts Locality,LD - Huntigndonshire  - Special Needs,Rehabilitation And Respite Care
Cambridgeshire County Council,14-Feb-19,51300721579,"-4,655.00",Accomplish Group Support Limited,CARE ESTABLISHMENT,LD - Hunts Locality,LD - Huntigndonshire  - Special Needs,Rehabilitation And Respite Care
Cambridgeshire County Council,26-Feb-19,51300665332,"-4,326.54",CARETECH COMMUNITY SERVICES,CARE ESTABLISHMENT,LAC Placements,Placements - supported accommodation,Agency Placements - In County
Cambridgeshire County Council,28-Feb-19,51300742904,"-4,208.69",ANGLIAN WATER SERVICES LIMITED,COMPANY,Highways - Bridges,Highways - Bridges,Construction - External Professional Fees
Cambridgeshire County Council,21-Feb-19,51300740703,"-3,710.00",BRIGHT FUTURES CARE LTD,CARE ESTABLISHMENT,LD - Young Adults Team,LD - Young Adults - Special Needs,Residential Care
Cambridgeshire County Council,21-Feb-19,51300740694,"-3,710.00",BRIGHT FUTURES CARE LTD,CARE ESTABLISHMENT,LD - Young Adults Team,LD - Young Adults - Special Needs,Residential Care
Cambridgeshire County Council,21-Feb-19,51300740706,"-3,710.00",BRIGHT FUTURES CARE LTD,CARE ESTABLISHMENT,LD - Young Adults Team,LD - Young Adults - Special Needs,Residential Care
Cambridgeshire County Council,21-Feb-19,51300740715,"-3,710.00",BRIGHT FUTURES CARE LTD,CARE ESTABLISHMENT,LD - Young Adults Team,LD - Young Adults - Special Needs,Residential Care
Cambridgeshire County Council,21-Feb-19,51300740693,"-3,710.00",BRIGHT FUTURES CARE LTD,CARE ESTABLISHMENT,LD - Young Adults Team,LD - Young Adults - Special Needs,Residential Care
Cambridgeshire County Council,21-Feb-19,51300740699,"-3,710.00",BRIGHT FUTURES CARE LTD,CARE ESTABLISHMENT,LD - Young Adults Team,LD - Young Adults - Special Needs,Residential Care
Cambridgeshire County Council,21-Feb-19,51300740707,"-3,710.00",BRIGHT FUTURES CARE LTD,CARE ESTABLISHMENT,LD - Young Adults Team,LD - Young Adults - Special Needs,Residential Care
Cambridgeshire County Council,21-Feb-19,51300740711,"-3,710.00",BRIGHT FUTURES CARE LTD,CARE ESTABLISHMENT,LD - Young Adults Team,LD - Young Adults - Special Needs,Residential Care
Cambridgeshire County Council,21-Feb-19,51300740695,"-3,710.00",BRIGHT FUTURES CARE LTD,CARE ESTABLISHMENT,LD - Young Adults Team,LD - Young Adults - Special Needs,Residential Care
Cambridgeshire County Council,21-Feb-19,51300740689,"-3,710.00",BRIGHT FUTURES CARE LTD,CARE ESTABLISHMENT,LD - Young Adults Team,LD - Young Adults - Special Needs,Residential Care
Cambridgeshire County Council,21-Feb-19,51300740697,"-3,710.00",BRIGHT FUTURES CARE LTD,CARE ESTABLISHMENT,LD - Young Adults Team,LD - Young Adults - Special Needs,Residential Care
Cambridgeshire County Council,21-Feb-19,51300740700,"-3,710.00",BRIGHT FUTURES CARE LTD,CARE ESTABLISHMENT,LD - Young Adults Team,LD - Young Adults - Special Needs,Residential Care
Cambridgeshire County Council,21-Feb-19,51300740721,"-3,710.00",BRIGHT FUTURES CARE LTD,CARE ESTABLISHMENT,LD - Young Adults Team,LD - Young Adults - Special Needs,Residential Care
Cambridgeshire County Council,21-Feb-19,51300740688,"-3,710.00",BRIGHT FUTURES CARE LTD,CARE ESTABLISHMENT,LD - Young Adults Team,LD - Young Adults - Special Needs,Residential Care
Cambridgeshire County Council,21-Feb-19,51300740720,"-3,710.00",BRIGHT FUTURES CARE LTD,CARE ESTABLISHMENT,LD - Young Adults Team,LD - Young Adults - Special Needs,Residential Care
Cambridgeshire County Council,21-Feb-19,51300740705,"-3,710.00",BRIGHT FUTURES CARE LTD,CARE ESTABLISHMENT,LD - Young Adults Team,LD - Young Adults - Special Needs,Residential Care
Cambridgeshire County Council,21-Feb-19,51300740702,"-3,710.00",BRIGHT FUTURES CARE LTD,CARE ESTABLISHMENT,LD - Young Adults Team,LD - Young Adults - Special Needs,Residential Care
Cambridgeshire County Council,06-Feb-19,51300676253,"-3,497.33",CAMBRIDGESHIRE AND PETERBOROUGH NHS FOUNDATION TRUST,TRUST (OTHER),Head of Countywide and LAC,Head of Countywide and LAC,Professional Fees and Hired Services
Cambridgeshire County Council,12-Feb-19,51300711737,"-3,409.66",KEY2 FUTURES LTD,TRADE SUPPLIER,LAC Placements,Placements - supported accommodation,Agency Placements - In County
Cambridgeshire County Council,14-Feb-19,51300721562,"-3,325.00",Accomplish Group Support Limited,CARE ESTABLISHMENT,LD - Hunts Locality,LD - Huntigndonshire  - Special Needs,Rehabilitation And Respite Care
Cambridgeshire County Council,14-Feb-19,51300730447,"-3,325.00",Accomplish Group Support Limited,CARE ESTABLISHMENT,LD - Hunts Locality,LD - Huntigndonshire  - Special Needs,Rehabilitation And Respite Care
Cambridgeshire County Council,21-Feb-19,51300740710,"-3,180.00",BRIGHT FUTURES CARE LTD,CARE ESTABLISHMENT,LD - Young Adults Team,LD - Young Adults - Special Needs,Residential Care
Cambridgeshire County Council,14-Feb-19,51300713148,"-2,977.44",DECOY FARM,CARE ESTABLISHMENT,LD - East Locality,LD - East Cambs - Special Needs,Residential Care
Cambridgeshire County Council,14-Feb-19,51300713203,"-2,977.44",DECOY FARM,CARE ESTABLISHMENT,LD - East Locality,LD - East Cambs - Special Needs,Residential Care
Cambridgeshire County Council,14-Feb-19,51300724771,"-2,977.44",DECOY FARM,CARE ESTABLISHMENT,LD - East Locality,LD - East Cambs - Special Needs,Residential Care
Cambridgeshire County Council,14-Feb-19,51300724833,"-2,977.44",DECOY FARM,CARE ESTABLISHMENT,LD - East Locality,LD - East Cambs - Special Needs,Residential Care
Cambridgeshire County Council,14-Feb-19,51300724867,"-2,977.44",DECOY FARM,CARE ESTABLISHMENT,LD - East Locality,LD - East Cambs - Special Needs,Residential Care
Cambridgeshire County Council,14-Feb-19,51300724813,"-2,977.44",DECOY FARM,CARE ESTABLISHMENT,LD - East Locality,LD - East Cambs - Special Needs,Residential Care
Cambridgeshire County Council,14-Feb-19,51300713104,"-2,977.44",DECOY FARM,CARE ESTABLISHMENT,LD - East Locality,LD - East Cambs - Special Needs,Residential Care
Cambridgeshire County Council,14-Feb-19,51300713111,"-2,977.44",DECOY FARM,CARE ESTABLISHMENT,LD - East Locality,LD - East Cambs - Special Needs,Residential Care
Cambridgeshire County Council,14-Feb-19,51300724809,"-2,977.44",DECOY FARM,CARE ESTABLISHMENT,LD - East Locality,LD - East Cambs - Special Needs,Residential Care
Cambridgeshire County Council,14-Feb-19,51300713210,"-2,977.44",DECOY FARM,CARE ESTABLISHMENT,LD - East Locality,LD - East Cambs - Special Needs,Residential Care
Cambridgeshire County Council,14-Feb-19,51300724865,"-2,977.44",DECOY FARM,CARE ESTABLISHMENT,LD - East Locality,LD - East Cambs - Special Needs,Residential Care
Cambridgeshire County Council,14-Feb-19,51300713132,"-2,977.44",DECOY FARM,CARE ESTABLISHMENT,LD - East Locality,LD - East Cambs - Special Needs,Residential Care
Cambridgeshire County Council,14-Feb-19,51300724764,"-2,977.44",DECOY FARM,CARE ESTABLISHMENT,LD - East Locality,LD - East Cambs - Special Needs,Residential Care
Cambridgeshire County Council,14-Feb-19,51300724890,"-2,977.44",DECOY FARM,CARE ESTABLISHMENT,LD - East Locality,LD - East Cambs - Special Needs,Residential Care
Cambridgeshire County Council,14-Feb-19,51300724900,"-2,977.44",DECOY FARM,CARE ESTABLISHMENT,LD - East Locality,LD - East Cambs - Special Needs,Residential Care
Cambridgeshire County Council,14-Feb-19,51300724774,"-2,977.44",DECOY FARM,CARE ESTABLISHMENT,LD - East Locality,LD - East Cambs - Special Needs,Residential Care
Cambridgeshire County Council,14-Feb-19,51300724919,"-2,977.44",DECOY FARM,CARE ESTABLISHMENT,LD - East Locality,LD - East Cambs - Special Needs,Residential Care
Cambridgeshire County Council,14-Feb-19,51300713138,"-2,977.44",DECOY FARM,CARE ESTABLISHMENT,LD - East Locality,LD - East Cambs - Special Needs,Residential Care
Cambridgeshire County Council,14-Feb-19,51300713160,"-2,977.44",DECOY FARM,CARE ESTABLISHMENT,LD - East Locality,LD - East Cambs - Special Needs,Residential Care
Cambridgeshire County Council,14-Feb-19,51300724823,"-2,977.44",DECOY FARM,CARE ESTABLISHMENT,LD - East Locality,LD - East Cambs - Special Needs,Residential Care
Cambridgeshire County Council,14-Feb-19,51300724835,"-2,977.44",DECOY FARM,CARE ESTABLISHMENT,LD - East Locality,LD - East Cambs - Special Needs,Residential Care
Cambridgeshire County Council,14-Feb-19,51300724901,"-2,977.44",DECOY FARM,CARE ESTABLISHMENT,LD - East Locality,LD - East Cambs - Special Needs,Residential Care
Cambridgeshire County Council,14-Feb-19,51300724785,"-2,977.44",DECOY FARM,CARE ESTABLISHMENT,LD - East Locality,LD - East Cambs - Special Needs,Residential Care
Cambridgeshire County Council,14-Feb-19,51300724877,"-2,977.44",DECOY FARM,CARE ESTABLISHMENT,LD - East Locality,LD - East Cambs - Special Needs,Residential Care
Cambridgeshire County Council,14-Feb-19,51300724839,"-2,977.44",DECOY FARM,CARE ESTABLISHMENT,LD - East Locality,LD - East Cambs - Special Needs,Residential Care
Cambridgeshire County Council,14-Feb-19,51300724806,"-2,977.44",DECOY FARM,CARE ESTABLISHMENT,LD - East Locality,LD - East Cambs - Special Needs,Residential Care
Cambridgeshire County Council,14-Feb-19,51300713103,"-2,977.44",DECOY FARM,CARE ESTABLISHMENT,LD - East Locality,LD - East Cambs - Special Needs,Residential Care
Cambridgeshire County Council,14-Feb-19,51300724880,"-2,977.44",DECOY FARM,CARE ESTABLISHMENT,LD - East Locality,LD - East Cambs - Special Needs,Residential Care
Cambridgeshire County Council,14-Feb-19,51300724884,"-2,977.44",DECOY FARM,CARE ESTABLISHMENT,LD - East Locality,LD - East Cambs - Special Needs,Residential Care
Cambridgeshire County Council,14-Feb-19,51300724892,"-2,977.44",DECOY FARM,CARE ESTABLISHMENT,LD - East Locality,LD - East Cambs - Special Needs,Residential Care
Cambridgeshire County Council,14-Feb-19,51300724907,"-2,977.44",DECOY FARM,CARE ESTABLISHMENT,LD - East Locality,LD - East Cambs - Special Needs,Residential Care
Cambridgeshire County Council,14-Feb-19,51300713161,"-2,977.44",DECOY FARM,CARE ESTABLISHMENT,LD - East Locality,LD - East Cambs - Special Needs,Residential Care
Cambridgeshire County Council,14-Feb-19,51300724801,"-2,977.44",DECOY FARM,CARE ESTABLISHMENT,LD - East Locality,LD - East Cambs - Special Needs,Residential Care
Cambridgeshire County Council,14-Feb-19,51300724837,"-2,977.44",DECOY FARM,CARE ESTABLISHMENT,LD - East Locality,LD - East Cambs - Special Needs,Residential Care
Cambridgeshire County Council,14-Feb-19,51300713118,"-2,977.44",DECOY FARM,CARE ESTABLISHMENT,LD - East Locality,LD - East Cambs - Special Needs,Residential Care
Cambridgeshire County Council,14-Feb-19,51300713126,"-2,977.44",DECOY FARM,CARE ESTABLISHMENT,LD - East Locality,LD - East Cambs - Special Needs,Residential Care
Cambridgeshire County Council,14-Feb-19,51300713187,"-2,977.44",DECOY FARM,CARE ESTABLISHMENT,LD - East Locality,LD - East Cambs - Special Needs,Residential Care
Cambridgeshire County Council,14-Feb-19,51300724915,"-2,977.44",DECOY FARM,CARE ESTABLISHMENT,LD - East Locality,LD - East Cambs - Special Needs,Residential Care
Cambridgeshire County Council,14-Feb-19,51300724870,"-2,977.44",DECOY FARM,CARE ESTABLISHMENT,LD - East Locality,LD - East Cambs - Special Needs,Residential Care
Cambridgeshire County Council,14-Feb-19,51300713062,"-2,977.44",DECOY FARM,CARE ESTABLISHMENT,LD - East Locality,LD - East Cambs - Special Needs,Residential Care
Cambridgeshire County Council,14-Feb-19,51300713190,"-2,977.44",DECOY FARM,CARE ESTABLISHMENT,LD - East Locality,LD - East Cambs - Special Needs,Residential Care
Cambridgeshire County Council,14-Feb-19,51300713191,"-2,977.44",DECOY FARM,CARE ESTABLISHMENT,LD - East Locality,LD - East Cambs - Special Needs,Residential Care
Cambridgeshire County Council,14-Feb-19,51300724909,"-2,977.44",DECOY FARM,CARE ESTABLISHMENT,LD - East Locality,LD - East Cambs - Special Needs,Residential Care
Cambridgeshire County Council,14-Feb-19,51300713063,"-2,977.44",DECOY FARM,CARE ESTABLISHMENT,LD - East Locality,LD - East Cambs - Special Needs,Residential Care
Cambridgeshire County Council,14-Feb-19,51300724857,"-2,977.44",DECOY FARM,CARE ESTABLISHMENT,LD - East Locality,LD - East Cambs - Special Needs,Residential Care
Cambridgeshire County Council,14-Feb-19,51300713133,"-2,977.44",DECOY FARM,CARE ESTABLISHMENT,LD - East Locality,LD - East Cambs - Special Needs,Residential Care
Cambridgeshire County Council,14-Feb-19,51300713092,"-2,977.44",DECOY FARM,CARE ESTABLISHMENT,LD - East Locality,LD - East Cambs - Special Needs,Residential Care
Cambridgeshire County Council,14-Feb-19,51300724862,"-2,977.44",DECOY FARM,CARE ESTABLISHMENT,LD - East Locality,LD - East Cambs - Special Needs,Residential Care
Cambridgeshire County Council,14-Feb-19,51300724844,"-2,977.44",DECOY FARM,CARE ESTABLISHMENT,LD - East Locality,LD - East Cambs - Special Needs,Residential Care
Cambridgeshire County Council,14-Feb-19,51300724832,"-2,977.44",DECOY FARM,CARE ESTABLISHMENT,LD - East Locality,LD - East Cambs - Special Needs,Residential Care
Cambridgeshire County Council,14-Feb-19,51300713106,"-2,977.44",DECOY FARM,CARE ESTABLISHMENT,LD - East Locality,LD - East Cambs - Special Needs,Residential Care
Cambridgeshire County Council,14-Feb-19,51300713107,"-2,977.44",DECOY FARM,CARE ESTABLISHMENT,LD - East Locality,LD - East Cambs - Special Needs,Residential Care
Cambridgeshire County Council,14-Feb-19,51300713134,"-2,977.44",DECOY FARM,CARE ESTABLISHMENT,LD - East Locality,LD - East Cambs - Special Needs,Residential Care
Cambridgeshire County Council,14-Feb-19,51300713129,"-2,977.44",DECOY FARM,CARE ESTABLISHMENT,LD - East Locality,LD - East Cambs - Special Needs,Residential Care
Cambridgeshire County Council,14-Feb-19,51300713098,"-2,977.44",DECOY FARM,CARE ESTABLISHMENT,LD - East Locality,LD - East Cambs - Special Needs,Residential Care
Cambridgeshire County Council,14-Feb-19,51300713152,"-2,977.44",DECOY FARM,CARE ESTABLISHMENT,LD - East Locality,LD - East Cambs - Special Needs,Residential Care
Cambridgeshire County Council,14-Feb-19,51300713184,"-2,977.44",DECOY FARM,CARE ESTABLISHMENT,LD - East Locality,LD - East Cambs - Special Needs,Residential Care
Cambridgeshire County Council,14-Feb-19,51300713194,"-2,977.44",DECOY FARM,CARE ESTABLISHMENT,LD - East Locality,LD - East Cambs - Special Needs,Residential Care
Cambridgeshire County Council,14-Feb-19,51300724793,"-2,977.44",DECOY FARM,CARE ESTABLISHMENT,LD - East Locality,LD - East Cambs - Special Needs,Residential Care
Cambridgeshire County Council,14-Feb-19,51300713170,"-2,977.44",DECOY FARM,CARE ESTABLISHMENT,LD - East Locality,LD - East Cambs - Special Needs,Residential Care
Cambridgeshire County Council,14-Feb-19,51300713171,"-2,977.44",DECOY FARM,CARE ESTABLISHMENT,LD - East Locality,LD - East Cambs - Special Needs,Residential Care
Cambridgeshire County Council,14-Feb-19,51300713067,"-2,977.44",DECOY FARM,CARE ESTABLISHMENT,LD - East Locality,LD - East Cambs - Special Needs,Residential Care
Cambridgeshire County Council,14-Feb-19,51300724814,"-2,977.44",DECOY FARM,CARE ESTABLISHMENT,LD - East Locality,LD - East Cambs - Special Needs,Residential Care
Cambridgeshire County Council,14-Feb-19,51300713122,"-2,977.44",DECOY FARM,CARE ESTABLISHMENT,LD - East Locality,LD - East Cambs - Special Needs,Residential Care
Cambridgeshire County Council,14-Feb-19,51300713124,"-2,977.44",DECOY FARM,CARE ESTABLISHMENT,LD - East Locality,LD - East Cambs - Special Needs,Residential Care
Cambridgeshire County Council,14-Feb-19,51300713142,"-2,977.44",DECOY FARM,CARE ESTABLISHMENT,LD - East Locality,LD - East Cambs - Special Needs,Residential Care
Cambridgeshire County Council,14-Feb-19,51300713165,"-2,977.44",DECOY FARM,CARE ESTABLISHMENT,LD - East Locality,LD - East Cambs - Special Needs,Residential Care
Cambridgeshire County Council,14-Feb-19,51300713169,"-2,977.44",DECOY FARM,CARE ESTABLISHMENT,LD - East Locality,LD - East Cambs - Special Needs,Residential Care
Cambridgeshire County Council,14-Feb-19,51300713180,"-2,977.44",DECOY FARM,CARE ESTABLISHMENT,LD - East Locality,LD - East Cambs - Special Needs,Residential Care
Cambridgeshire County Council,14-Feb-19,51300713173,"-2,977.44",DECOY FARM,CARE ESTABLISHMENT,LD - East Locality,LD - East Cambs - Special Needs,Residential Care
Cambridgeshire County Council,14-Feb-19,51300713199,"-2,977.44",DECOY FARM,CARE ESTABLISHMENT,LD - East Locality,LD - East Cambs - Special Needs,Residential Care
Cambridgeshire County Council,14-Feb-19,51300724791,"-2,977.44",DECOY FARM,CARE ESTABLISHMENT,LD - East Locality,LD - East Cambs - Special Needs,Residential Care
Cambridgeshire County Council,14-Feb-19,51300713205,"-2,977.44",DECOY FARM,CARE ESTABLISHMENT,LD - East Locality,LD - East Cambs - Special Needs,Residential Care
Cambridgeshire County Council,14-Feb-19,51300724825,"-2,977.44",DECOY FARM,CARE ESTABLISHMENT,LD - East Locality,LD - East Cambs - Special Needs,Residential Care
Cambridgeshire County Council,14-Feb-19,51300724830,"-2,977.44",DECOY FARM,CARE ESTABLISHMENT,LD - East Locality,LD - East Cambs - Special Needs,Residential Care
Cambridgeshire County Council,14-Feb-19,51300724846,"-2,977.44",DECOY FARM,CARE ESTABLISHMENT,LD - East Locality,LD - East Cambs - Special Needs,Residential Care
Cambridgeshire County Council,14-Feb-19,51300724854,"-2,977.44",DECOY FARM,CARE ESTABLISHMENT,LD - East Locality,LD - East Cambs - Special Needs,Residential Care
Cambridgeshire County Council,14-Feb-19,51300724889,"-2,977.44",DECOY FARM,CARE ESTABLISHMENT,LD - East Locality,LD - East Cambs - Special Needs,Residential Care
Cambridgeshire County Council,14-Feb-19,51300724903,"-2,977.44",DECOY FARM,CARE ESTABLISHMENT,LD - East Locality,LD - East Cambs - Special Needs,Residential Care
Cambridgeshire County Council,14-Feb-19,51300724905,"-2,977.44",DECOY FARM,CARE ESTABLISHMENT,LD - East Locality,LD - East Cambs - Special Needs,Residential Care
Cambridgeshire County Council,14-Feb-19,51300724836,"-2,977.44",DECOY FARM,CARE ESTABLISHMENT,LD - East Locality,LD - East Cambs - Special Needs,Residential Care
Cambridgeshire County Council,14-Feb-19,51300713182,"-2,977.44",DECOY FARM,CARE ESTABLISHMENT,LD - East Locality,LD - East Cambs - Special Needs,Residential Care
Cambridgeshire County Council,14-Feb-19,51300713095,"-2,977.44",DECOY FARM,CARE ESTABLISHMENT,LD - East Locality,LD - East Cambs - Special Needs,Residential Care
Cambridgeshire County Council,14-Feb-19,51300713080,"-2,977.44",DECOY FARM,CARE ESTABLISHMENT,LD - East Locality,LD - East Cambs - Special Needs,Residential Care
Cambridgeshire County Council,14-Feb-19,51300724804,"-2,977.44",DECOY FARM,CARE ESTABLISHMENT,LD - East Locality,LD - East Cambs - Special Needs,Residential Care
Cambridgeshire County Council,14-Feb-19,51300713090,"-2,977.44",DECOY FARM,CARE ESTABLISHMENT,LD - East Locality,LD - East Cambs - Special Needs,Residential Care
Cambridgeshire County Council,14-Feb-19,51300713121,"-2,977.44",DECOY FARM,CARE ESTABLISHMENT,LD - East Locality,LD - East Cambs - Special Needs,Residential Care
Cambridgeshire County Council,14-Feb-19,51300724873,"-2,977.44",DECOY FARM,CARE ESTABLISHMENT,LD - East Locality,LD - East Cambs - Special Needs,Residential Care
Cambridgeshire County Council,14-Feb-19,51300724842,"-2,977.44",DECOY FARM,CARE ESTABLISHMENT,LD - East Locality,LD - East Cambs - Special Needs,Residential Care
Cambridgeshire County Council,14-Feb-19,51300713139,"-2,977.44",DECOY FARM,CARE ESTABLISHMENT,LD - East Locality,LD - East Cambs - Special Needs,Residential Care
Cambridgeshire County Council,14-Feb-19,51300724917,"-2,977.44",DECOY FARM,CARE ESTABLISHMENT,LD - East Locality,LD - East Cambs - Special Needs,Residential Care
Cambridgeshire County Council,14-Feb-19,51300724821,"-2,977.44",DECOY FARM,CARE ESTABLISHMENT,LD - East Locality,LD - East Cambs - Special Needs,Residential Care
Cambridgeshire County Council,14-Feb-19,51300713066,"-2,977.44",DECOY FARM,CARE ESTABLISHMENT,LD - East Locality,LD - East Cambs - Special Needs,Residential Care
Cambridgeshire County Council,14-Feb-19,51300713073,"-2,977.44",DECOY FARM,CARE ESTABLISHMENT,LD - East Locality,LD - East Cambs - Special Needs,Residential Care
Cambridgeshire County Council,14-Feb-19,51300713077,"-2,977.44",DECOY FARM,CARE ESTABLISHMENT,LD - East Locality,LD - East Cambs - Special Needs,Residential Care
Cambridgeshire County Council,14-Feb-19,51300713087,"-2,977.44",DECOY FARM,CARE ESTABLISHMENT,LD - East Locality,LD - East Cambs - Special Needs,Residential Care
Cambridgeshire County Council,14-Feb-19,51300713128,"-2,977.44",DECOY FARM,CARE ESTABLISHMENT,LD - East Locality,LD - East Cambs - Special Needs,Residential Care
Cambridgeshire County Council,14-Feb-19,51300724810,"-2,977.44",DECOY FARM,CARE ESTABLISHMENT,LD - East Locality,LD - East Cambs - Special Needs,Residential Care
Cambridgeshire County Council,14-Feb-19,51300724820,"-2,977.44",DECOY FARM,CARE ESTABLISHMENT,LD - East Locality,LD - East Cambs - Special Needs,Residential Care
Cambridgeshire County Council,14-Feb-19,51300724843,"-2,977.44",DECOY FARM,CARE ESTABLISHMENT,LD - East Locality,LD - East Cambs - Special Needs,Residential Care
Cambridgeshire County Council,14-Feb-19,51300724876,"-2,977.44",DECOY FARM,CARE ESTABLISHMENT,LD - East Locality,LD - East Cambs - Special Needs,Residential Care
Cambridgeshire County Council,14-Feb-19,51300724879,"-2,977.44",DECOY FARM,CARE ESTABLISHMENT,LD - East Locality,LD - East Cambs - Special Needs,Residential Care
Cambridgeshire County Council,14-Feb-19,51300724883,"-2,977.44",DECOY FARM,CARE ESTABLISHMENT,LD - East Locality,LD - East Cambs - Special Needs,Residential Care
Cambridgeshire County Council,14-Feb-19,51300713183,"-2,977.44",DECOY FARM,CARE ESTABLISHMENT,LD - East Locality,LD - East Cambs - Special Needs,Residential Care
Cambridgeshire County Council,14-Feb-19,51300713202,"-2,977.44",DECOY FARM,CARE ESTABLISHMENT,LD - East Locality,LD - East Cambs - Special Needs,Residential Care
Cambridgeshire County Council,14-Feb-19,51300724787,"-2,977.44",DECOY FARM,CARE ESTABLISHMENT,LD - East Locality,LD - East Cambs - Special Needs,Residential Care
Cambridgeshire County Council,14-Feb-19,51300713201,"-2,977.44",DECOY FARM,CARE ESTABLISHMENT,LD - East Locality,LD - East Cambs - Special Needs,Residential Care
Cambridgeshire County Council,14-Feb-19,51300713081,"-2,977.44",DECOY FARM,CARE ESTABLISHMENT,LD - East Locality,LD - East Cambs - Special Needs,Residential Care
Cambridgeshire County Council,14-Feb-19,51300713125,"-2,977.44",DECOY FARM,CARE ESTABLISHMENT,LD - East Locality,LD - East Cambs - Special Needs,Residential Care
Cambridgeshire County Council,14-Feb-19,51300713074,"-2,977.44",DECOY FARM,CARE ESTABLISHMENT,LD - East Locality,LD - East Cambs - Special Needs,Residential Care
Cambridgeshire County Council,14-Feb-19,51300713137,"-2,977.44",DECOY FARM,CARE ESTABLISHMENT,LD - East Locality,LD - East Cambs - Special Needs,Residential Care
Cambridgeshire County Council,14-Feb-19,51300724891,"-2,977.44",DECOY FARM,CARE ESTABLISHMENT,LD - East Locality,LD - East Cambs - Special Needs,Residential Care
Cambridgeshire County Council,14-Feb-19,51300724831,"-2,977.44",DECOY FARM,CARE ESTABLISHMENT,LD - East Locality,LD - East Cambs - Special Needs,Residential Care
Cambridgeshire County Council,14-Feb-19,51300724817,"-2,977.44",DECOY FARM,CARE ESTABLISHMENT,LD - East Locality,LD - East Cambs - Special Needs,Residential Care
Cambridgeshire County Council,14-Feb-19,51300713110,"-2,977.44",DECOY FARM,CARE ESTABLISHMENT,LD - East Locality,LD - East Cambs - Special Needs,Residential Care
Cambridgeshire County Council,14-Feb-19,51300724861,"-2,977.44",DECOY FARM,CARE ESTABLISHMENT,LD - East Locality,LD - East Cambs - Special Needs,Residential Care
Cambridgeshire County Council,14-Feb-19,51300713212,"-2,977.44",DECOY FARM,CARE ESTABLISHMENT,LD - East Locality,LD - East Cambs - Special Needs,Residential Care
Cambridgeshire County Council,14-Feb-19,51300724797,"-2,977.44",DECOY FARM,CARE ESTABLISHMENT,LD - East Locality,LD - East Cambs - Special Needs,Residential Care
Cambridgeshire County Council,14-Feb-19,51300713185,"-2,977.44",DECOY FARM,CARE ESTABLISHMENT,LD - East Locality,LD - East Cambs - Special Needs,Residential Care
Cambridgeshire County Council,14-Feb-19,51300724886,"-2,977.44",DECOY FARM,CARE ESTABLISHMENT,LD - East Locality,LD - East Cambs - Special Needs,Residential Care
Cambridgeshire County Council,14-Feb-19,51300713135,"-2,977.44",DECOY FARM,CARE ESTABLISHMENT,LD - East Locality,LD - East Cambs - Special Needs,Residential Care
Cambridgeshire County Council,14-Feb-19,51300713200,"-2,977.44",DECOY FARM,CARE ESTABLISHMENT,LD - East Locality,LD - East Cambs - Special Needs,Residential Care
Cambridgeshire County Council,14-Feb-19,51300713116,"-2,977.44",DECOY FARM,CARE ESTABLISHMENT,LD - East Locality,LD - East Cambs - Special Needs,Residential Care
Cambridgeshire County Council,14-Feb-19,51300724828,"-2,977.44",DECOY FARM,CARE ESTABLISHMENT,LD - East Locality,LD - East Cambs - Special Needs,Residential Care
Cambridgeshire County Council,14-Feb-19,51300724851,"-2,977.44",DECOY FARM,CARE ESTABLISHMENT,LD - East Locality,LD - East Cambs - Special Needs,Residential Care
Cambridgeshire County Council,14-Feb-19,51300724815,"-2,977.44",DECOY FARM,CARE ESTABLISHMENT,LD - East Locality,LD - East Cambs - Special Needs,Residential Care
Cambridgeshire County Council,14-Feb-19,51300713100,"-2,977.44",DECOY FARM,CARE ESTABLISHMENT,LD - East Locality,LD - East Cambs - Special Needs,Residential Care
Cambridgeshire County Council,14-Feb-19,51300713149,"-2,977.44",DECOY FARM,CARE ESTABLISHMENT,LD - East Locality,LD - East Cambs - Special Needs,Residential Care
Cambridgeshire County Council,14-Feb-19,51300713178,"-2,977.44",DECOY FARM,CARE ESTABLISHMENT,LD - East Locality,LD - East Cambs - Special Needs,Residential Care
Cambridgeshire County Council,14-Feb-19,51300713188,"-2,977.44",DECOY FARM,CARE ESTABLISHMENT,LD - East Locality,LD - East Cambs - Special Needs,Residential Care
Cambridgeshire County Council,14-Feb-19,51300713120,"-2,977.44",DECOY FARM,CARE ESTABLISHMENT,LD - East Locality,LD - East Cambs - Special Needs,Residential Care
Cambridgeshire County Council,14-Feb-19,51300724776,"-2,977.44",DECOY FARM,CARE ESTABLISHMENT,LD - East Locality,LD - East Cambs - Special Needs,Residential Care
Cambridgeshire County Council,14-Feb-19,51300724796,"-2,977.44",DECOY FARM,CARE ESTABLISHMENT,LD - East Locality,LD - East Cambs - Special Needs,Residential Care
Cambridgeshire County Council,14-Feb-19,51300724807,"-2,977.44",DECOY FARM,CARE ESTABLISHMENT,LD - East Locality,LD - East Cambs - Special Needs,Residential Care
Cambridgeshire County Council,14-Feb-19,51300724849,"-2,977.44",DECOY FARM,CARE ESTABLISHMENT,LD - East Locality,LD - East Cambs - Special Needs,Residential Care
Cambridgeshire County Council,14-Feb-19,51300724853,"-2,977.44",DECOY FARM,CARE ESTABLISHMENT,LD - East Locality,LD - East Cambs - Special Needs,Residential Care
Cambridgeshire County Council,14-Feb-19,51300724864,"-2,977.44",DECOY FARM,CARE ESTABLISHMENT,LD - East Locality,LD - East Cambs - Special Needs,Residential Care
Cambridgeshire County Council,14-Feb-19,51300713211,"-2,977.44",DECOY FARM,CARE ESTABLISHMENT,LD - East Locality,LD - East Cambs - Special Needs,Residential Care
Cambridgeshire County Council,14-Feb-19,51300713136,"-2,977.44",DECOY FARM,CARE ESTABLISHMENT,LD - East Locality,LD - East Cambs - Special Needs,Residential Care
Cambridgeshire County Council,14-Feb-19,51300713150,"-2,977.44",DECOY FARM,CARE ESTABLISHMENT,LD - East Locality,LD - East Cambs - Special Needs,Residential Care
Cambridgeshire County Council,14-Feb-19,51300724772,"-2,977.44",DECOY FARM,CARE ESTABLISHMENT,LD - East Locality,LD - East Cambs - Special Needs,Residential Care
Cambridgeshire County Council,14-Feb-19,51300713181,"-2,977.44",DECOY FARM,CARE ESTABLISHMENT,LD - East Locality,LD - East Cambs - Special Needs,Residential Care
Cambridgeshire County Council,14-Feb-19,51300724848,"-2,977.44",DECOY FARM,CARE ESTABLISHMENT,LD - East Locality,LD - East Cambs - Special Needs,Residential Care
Cambridgeshire County Council,14-Feb-19,51300724895,"-2,977.44",DECOY FARM,CARE ESTABLISHMENT,LD - East Locality,LD - East Cambs - Special Needs,Residential Care
Cambridgeshire County Council,14-Feb-19,51300713144,"-2,977.44",DECOY FARM,CARE ESTABLISHMENT,LD - East Locality,LD - East Cambs - Special Needs,Residential Care
Cambridgeshire County Council,14-Feb-19,51300724767,"-2,977.44",DECOY FARM,CARE ESTABLISHMENT,LD - East Locality,LD - East Cambs - Special Needs,Residential Care
Cambridgeshire County Council,26-Feb-19,51300742714,"-2,758.80",ROLAND FLETCHER,SOLETRADER,Highways - Rights of Way,Highways - Rights of Way,Construction - External Professional Fees
Cambridgeshire County Council,07-Feb-19,51300716745,"-2,713.08",VOYAGE,CARE ESTABLISHMENT,LD - Hunts Locality,LD - Huntigndonshire  - Special Needs,Residential Care
Cambridgeshire County Council,07-Feb-19,51300716743,"-2,713.08",VOYAGE,CARE ESTABLISHMENT,LD - Hunts Locality,LD - Huntigndonshire  - Special Needs,Residential Care
Cambridgeshire County Council,14-Feb-19,51300724860,"-2,552.09",DECOY FARM,CARE ESTABLISHMENT,LD - East Locality,LD - East Cambs - Special Needs,Residential Care
Cambridgeshire County Council,14-Feb-19,51300713079,"-2,552.09",DECOY FARM,CARE ESTABLISHMENT,LD - East Locality,LD - East Cambs - Special Needs,Residential Care
Cambridgeshire County Council,28-Feb-19,51300733870,"-2,428.06",TARMAC TRADING LIMITED,COMPANY,Highways - 90m Mtce,Highways - 90m Mtce,Construction - External Professional Fees
Cambridgeshire County Council,07-Feb-19,51300719962,"-2,355.71",VOYAGE,CARE ESTABLISHMENT,LD - South Locality,LD - South Cambs - Special Needs,Residential Care
Cambridgeshire County Council,07-Feb-19,51300719956,"-2,355.71",VOYAGE,CARE ESTABLISHMENT,LD - South Locality,LD - South Cambs - Special Needs,Residential Care
Cambridgeshire County Council,07-Feb-19,51300719954,"-2,355.71",VOYAGE,CARE ESTABLISHMENT,LD - South Locality,LD - South Cambs - Special Needs,Residential Care
Cambridgeshire County Council,07-Feb-19,51300719970,"-2,355.71",VOYAGE,CARE ESTABLISHMENT,LD - South Locality,LD - South Cambs - Special Needs,Residential Care
Cambridgeshire County Council,07-Feb-19,51300718876,"-2,337.29",DIMENSIONS (UK) LTD,CARE ESTABLISHMENT,LD - South Locality,LD - South Cambs - Special Needs,Supported Living
Cambridgeshire County Council,07-Feb-19,51300718879,"-2,337.29",DIMENSIONS (UK) LTD,CARE ESTABLISHMENT,LD - South Locality,LD - South Cambs - Special Needs,Supported Living
Cambridgeshire County Council,07-Feb-19,51300718867,"-2,337.29",DIMENSIONS (UK) LTD,CARE ESTABLISHMENT,LD - South Locality,LD - South Cambs - Special Needs,Supported Living
Cambridgeshire County Council,07-Feb-19,51300718874,"-2,337.29",DIMENSIONS (UK) LTD,CARE ESTABLISHMENT,LD - South Locality,LD - South Cambs - Special Needs,Supported Living
Cambridgeshire County Council,07-Feb-19,51300718878,"-2,337.29",DIMENSIONS (UK) LTD,CARE ESTABLISHMENT,LD - South Locality,LD - South Cambs - Special Needs,Supported Living
Cambridgeshire County Council,07-Feb-19,51300718865,"-2,337.29",DIMENSIONS (UK) LTD,CARE ESTABLISHMENT,LD - City Locality,LD - City - Special Needs,Supported Living
Cambridgeshire County Council,07-Feb-19,51300718880,"-2,337.29",DIMENSIONS (UK) LTD,CARE ESTABLISHMENT,LD - South Locality,LD - South Cambs - Special Needs,Supported Living
Cambridgeshire County Council,07-Feb-19,51300718872,"-2,337.29",DIMENSIONS (UK) LTD,CARE ESTABLISHMENT,LD - City Locality,LD - City - Special Needs,Supported Living
Cambridgeshire County Council,07-Feb-19,51300716744,"-2,325.50",VOYAGE,CARE ESTABLISHMENT,LD - Hunts Locality,LD - Huntigndonshire  - Special Needs,Residential Care
Cambridgeshire County Council,07-Feb-19,51300626120,"-2,300.00",EDEN VIEW,CARE ESTABLISHMENT,Physical Disablity,Countywide PD Service - Care,Nursing Care
Cambridgeshire County Council,07-Feb-19,51300626119,"-2,300.00",EDEN VIEW,CARE ESTABLISHMENT,Physical Disablity,Countywide PD Service - Care,Nursing Care
Cambridgeshire County Council,07-Feb-19,51300626118,"-2,300.00",EDEN VIEW,CARE ESTABLISHMENT,Physical Disablity,Countywide PD Service - Care,Nursing Care
Cambridgeshire County Council,07-Feb-19,51300721545,"-2,104.89",VOYAGE,CARE ESTABLISHMENT,LD - East Locality,LD - East Cambs - Special Needs,Residential Care
Cambridgeshire County Council,07-Feb-19,51300721551,"-2,104.89",VOYAGE,CARE ESTABLISHMENT,LD - East Locality,LD - East Cambs - Special Needs,Residential Care
Cambridgeshire County Council,07-Feb-19,51300721555,"-2,104.89",VOYAGE,CARE ESTABLISHMENT,LD - East Locality,LD - East Cambs - Special Needs,Residential Care
Cambridgeshire County Council,07-Feb-19,51300721559,"-2,104.89",VOYAGE,CARE ESTABLISHMENT,LD - East Locality,LD - East Cambs - Special Needs,Residential Care
Cambridgeshire County Council,07-Feb-19,51300721105,"-2,098.94",VOYAGE,CARE ESTABLISHMENT,LD - South Locality,LD - South Cambs - Special Needs,Residential Care
Cambridgeshire County Council,07-Feb-19,51300721102,"-2,098.94",VOYAGE,CARE ESTABLISHMENT,LD - South Locality,LD - South Cambs - Special Needs,Residential Care
Cambridgeshire County Council,07-Feb-19,51300720255,"-2,098.94",VOYAGE,CARE ESTABLISHMENT,LD - South Locality,LD - South Cambs - Special Needs,Residential Care
Cambridgeshire County Council,07-Feb-19,51300720262,"-2,098.94",VOYAGE,CARE ESTABLISHMENT,LD - South Locality,LD - South Cambs - Special Needs,Residential Care
Cambridgeshire County Council,07-Feb-19,51300721111,"-2,098.94",VOYAGE,CARE ESTABLISHMENT,LD - South Locality,LD - South Cambs - Special Needs,Residential Care
Cambridgeshire County Council,07-Feb-19,51300720266,"-2,098.94",VOYAGE,CARE ESTABLISHMENT,LD - South Locality,LD - South Cambs - Special Needs,Residential Care
Cambridgeshire County Council,07-Feb-19,51300721106,"-2,098.94",VOYAGE,CARE ESTABLISHMENT,LD - South Locality,LD - South Cambs - Special Needs,Residential Care
Cambridgeshire County Council,07-Feb-19,51300720272,"-2,098.94",VOYAGE,CARE ESTABLISHMENT,LD - South Locality,LD - South Cambs - Special Needs,Residential Care
Cambridgeshire County Council,07-Feb-19,51300713815,"-2,098.44",VOYAGE,CARE ESTABLISHMENT,LD - South Locality,LD - South Cambs - Special Needs,Residential Care
Cambridgeshire County Council,07-Feb-19,51300713812,"-2,098.44",VOYAGE,CARE ESTABLISHMENT,LD - South Locality,LD - South Cambs - Special Needs,Residential Care
Cambridgeshire County Council,07-Feb-19,51300713810,"-2,098.44",VOYAGE,CARE ESTABLISHMENT,LD - South Locality,LD - South Cambs - Special Needs,Residential Care
Cambridgeshire County Council,07-Feb-19,51300713811,"-2,098.44",VOYAGE,CARE ESTABLISHMENT,LD - South Locality,LD - South Cambs - Special Needs,Residential Care
Cambridgeshire County Council,28-Feb-19,51300742902,"-2,037.05",ANGLIAN WATER SERVICES LIMITED,COMPANY,MID - Ely Crossing,MID - Ely Crossing,Construction - External Professional Fees
Cambridgeshire County Council,07-Feb-19,51300719959,"-2,019.18",VOYAGE,CARE ESTABLISHMENT,LD - South Locality,LD - South Cambs - Special Needs,Residential Care
Cambridgeshire County Council,07-Feb-19,51300712496,"-2,004.26",VOYAGE,CARE ESTABLISHMENT,LD - South Locality,LD - South Cambs - Special Needs,Residential Care
Cambridgeshire County Council,07-Feb-19,51300719161,"-2,004.26",VOYAGE,CARE ESTABLISHMENT,LD - City Locality,LD - City - Special Needs,Residential Care
Cambridgeshire County Council,07-Feb-19,51300719159,"-2,004.26",VOYAGE,CARE ESTABLISHMENT,LD - City Locality,LD - City - Special Needs,Residential Care
Cambridgeshire County Council,07-Feb-19,51300712551,"-2,004.26",VOYAGE,CARE ESTABLISHMENT,LD - South Locality,LD - South Cambs - Special Needs,Residential Care
Cambridgeshire County Council,07-Feb-19,51300712512,"-2,004.26",VOYAGE,CARE ESTABLISHMENT,LD - South Locality,LD - South Cambs - Special Needs,Residential Care
Cambridgeshire County Council,07-Feb-19,51300712559,"-2,004.26",VOYAGE,CARE ESTABLISHMENT,LD - South Locality,LD - South Cambs - Special Needs,Residential Care
Cambridgeshire County Council,07-Feb-19,51300716475,"-2,004.04",VOYAGE,CARE ESTABLISHMENT,LD - East Locality,LD - East Cambs - Special Needs,Residential Care
Cambridgeshire County Council,07-Feb-19,51300716472,"-2,004.04",VOYAGE,CARE ESTABLISHMENT,LD - East Locality,LD - East Cambs - Special Needs,Residential Care
Cambridgeshire County Council,07-Feb-19,51300716471,"-2,004.04",VOYAGE,CARE ESTABLISHMENT,LD - East Locality,LD - East Cambs - Special Needs,Residential Care
Cambridgeshire County Council,07-Feb-19,51300716476,"-2,004.04",VOYAGE,CARE ESTABLISHMENT,LD - East Locality,LD - East Cambs - Special Needs,Residential Care
Cambridgeshire County Council,07-Feb-19,51300714463,"-1,984.55",VOYAGE (LICHFIELD),CARE ESTABLISHMENT,LD - Fenland Locality,LD - Fenland  - Special Needs,Residential Care
Cambridgeshire County Council,07-Feb-19,51300713646,"-1,917.75",VOYAGE,CARE ESTABLISHMENT,LD - East Locality,LD - East Cambs - Care,Residential Care
Cambridgeshire County Council,07-Feb-19,51300713653,"-1,917.75",VOYAGE,CARE ESTABLISHMENT,LD - East Locality,LD - East Cambs - Care,Residential Care
Cambridgeshire County Council,07-Feb-19,51300713652,"-1,917.75",VOYAGE,CARE ESTABLISHMENT,LD - East Locality,LD - East Cambs - Care,Residential Care
Cambridgeshire County Council,07-Feb-19,51300713649,"-1,917.75",VOYAGE,CARE ESTABLISHMENT,LD - East Locality,LD - East Cambs - Care,Residential Care
Cambridgeshire County Council,18-Feb-19,51300569984,"-1,896.00",CARTER CABIN HIRE LIMITED,COMPANY,Libraries - South Cambridgeshire,Libraries - Sawston,Rents and Leases
Cambridgeshire County Council,07-Feb-19,51300714503,"-1,888.67",VOYAGE,CARE ESTABLISHMENT,LD - East Locality,LD - East Cambs - Care,Residential Care
Cambridgeshire County Council,07-Feb-19,51300714498,"-1,888.67",VOYAGE,CARE ESTABLISHMENT,LD - East Locality,LD - East Cambs - Care,Residential Care
Cambridgeshire County Council,07-Feb-19,51300714499,"-1,888.67",VOYAGE,CARE ESTABLISHMENT,LD - East Locality,LD - East Cambs - Care,Residential Care
Cambridgeshire County Council,07-Feb-19,51300714501,"-1,888.67",VOYAGE,CARE ESTABLISHMENT,LD - East Locality,LD - East Cambs - Care,Residential Care
Cambridgeshire County Council,07-Feb-19,51300721245,"-1,853.11",THE MARBROOK CENTRE,CARE ESTABLISHMENT,OPMH - Hunts & Fens,Older People Mental Health Hunts,Nursing Care
Cambridgeshire County Council,07-Feb-19,51300721249,"-1,853.11",THE MARBROOK CENTRE,CARE ESTABLISHMENT,OPMH - Hunts & Fens,Older People Mental Health Hunts,Nursing Care
Cambridgeshire County Council,07-Feb-19,51300721248,"-1,853.11",THE MARBROOK CENTRE,CARE ESTABLISHMENT,OPMH - Hunts & Fens,Older People Mental Health Hunts,Nursing Care
Cambridgeshire County Council,07-Feb-19,51300721250,"-1,853.11",THE MARBROOK CENTRE,CARE ESTABLISHMENT,OPMH - Hunts & Fens,Older People Mental Health Hunts,Nursing Care
Cambridgeshire County Council,07-Feb-19,51300716566,"-1,826.68",VOYAGE,CARE ESTABLISHMENT,LD - South Locality,LD - South Cambs - Special Needs,Residential Care
Cambridgeshire County Council,07-Feb-19,51300716563,"-1,826.68",VOYAGE,CARE ESTABLISHMENT,LD - South Locality,LD - South Cambs - Special Needs,Residential Care
Cambridgeshire County Council,07-Feb-19,51300720260,"-1,799.09",VOYAGE,CARE ESTABLISHMENT,LD - South Locality,LD - South Cambs - Special Needs,Residential Care
Cambridgeshire County Council,07-Feb-19,51300721110,"-1,799.09",VOYAGE,CARE ESTABLISHMENT,LD - South Locality,LD - South Cambs - Special Needs,Residential Care
Cambridgeshire County Council,07-Feb-19,51300713813,"-1,798.66",VOYAGE,CARE ESTABLISHMENT,LD - South Locality,LD - South Cambs - Special Needs,Residential Care
Cambridgeshire County Council,07-Feb-19,51300712808,"-1,789.19",REDMOND HOUSE (VOYAGE),CARE ESTABLISHMENT,LD - City Locality,LD - City - Care,Residential Care
Cambridgeshire County Council,07-Feb-19,51300712801,"-1,789.19",REDMOND HOUSE (VOYAGE),CARE ESTABLISHMENT,LD - City Locality,LD - City - Care,Residential Care
Cambridgeshire County Council,07-Feb-19,51300719167,"-1,717.94",VOYAGE,CARE ESTABLISHMENT,LD - City Locality,LD - City - Special Needs,Residential Care
Cambridgeshire County Council,07-Feb-19,51300712518,"-1,717.94",VOYAGE,CARE ESTABLISHMENT,LD - South Locality,LD - South Cambs - Special Needs,Residential Care
Cambridgeshire County Council,07-Feb-19,51300718818,"-1,710.64",VOYAGE,CARE ESTABLISHMENT,LD - City Locality,LD - City - Special Needs,Residential Care
Cambridgeshire County Council,07-Feb-19,51300720240,"-1,710.64",VOYAGE,CARE ESTABLISHMENT,LD - City Locality,LD - City - Special Needs,Residential Care
Cambridgeshire County Council,07-Feb-19,51300718817,"-1,710.64",VOYAGE,CARE ESTABLISHMENT,LD - City Locality,LD - City - Special Needs,Residential Care
Cambridgeshire County Council,07-Feb-19,51300720243,"-1,710.64",VOYAGE,CARE ESTABLISHMENT,LD - City Locality,LD - City - Special Needs,Residential Care
Cambridgeshire County Council,07-Feb-19,51300718820,"-1,710.64",VOYAGE,CARE ESTABLISHMENT,LD - City Locality,LD - City - Special Needs,Residential Care
Cambridgeshire County Council,07-Feb-19,51300718816,"-1,710.64",VOYAGE,CARE ESTABLISHMENT,LD - City Locality,LD - City - Special Needs,Residential Care
Cambridgeshire County Council,07-Feb-19,51300720244,"-1,710.64",VOYAGE,CARE ESTABLISHMENT,LD - City Locality,LD - City - Special Needs,Residential Care
Cambridgeshire County Council,07-Feb-19,51300720239,"-1,710.64",VOYAGE,CARE ESTABLISHMENT,LD - City Locality,LD - City - Special Needs,Residential Care
Cambridgeshire County Council,07-Feb-19,51300714459,"-1,701.04",VOYAGE (LICHFIELD),CARE ESTABLISHMENT,LD - Fenland Locality,LD - Fenland  - Special Needs,Residential Care
Cambridgeshire County Council,07-Feb-19,51300626117,"-1,642.86",EDEN VIEW,CARE ESTABLISHMENT,Physical Disablity,Countywide PD Service - Care,Nursing Care
Cambridgeshire County Council,13-Feb-19,51300723698,"-1,600.00",FOSTERING PEOPLE TOO LIMITED,CARE ESTABLISHMENT,LAC Placements,Placements - independent fostering,Agency Placements - Out of  County
Cambridgeshire County Council,07-Feb-19,51300716561,"-1,565.73",VOYAGE,CARE ESTABLISHMENT,LD - South Locality,LD - South Cambs - Special Needs,Residential Care
Cambridgeshire County Council,07-Feb-19,51300712800,"-1,533.59",REDMOND HOUSE (VOYAGE),CARE ESTABLISHMENT,LD - City Locality,LD - City - Care,Residential Care
Cambridgeshire County Council,25-Feb-19,51300427155,"-1,531.00",THE MARY HARE PRIMARY SCHOOL,EDUCATION,SEN Placements,Placements - Education,Educational Materials
Cambridgeshire County Council,25-Feb-19,51300507648,"-1,531.00",THE MARY HARE PRIMARY SCHOOL,EDUCATION,SEN Placements,Placements - Education,Educational Materials
Cambridgeshire County Council,07-Feb-19,51300721547,"-1,503.49",VOYAGE,CARE ESTABLISHMENT,LD - East Locality,LD - East Cambs - Special Needs,Residential Care
Cambridgeshire County Council,07-Feb-19,51300720246,"-1,466.26",VOYAGE,CARE ESTABLISHMENT,LD - City Locality,LD - City - Special Needs,Residential Care
Cambridgeshire County Council,07-Feb-19,51300718809,"-1,466.26",VOYAGE,CARE ESTABLISHMENT,LD - City Locality,LD - City - Special Needs,Residential Care
Cambridgeshire County Council,07-Feb-19,51300717279,"-1,438.69",VOYAGE,CARE ESTABLISHMENT,LD - South Locality,LD - South Cambs - Special Needs,Residential Care
Cambridgeshire County Council,07-Feb-19,51300717281,"-1,438.69",VOYAGE,CARE ESTABLISHMENT,LD - South Locality,LD - South Cambs - Special Needs,Residential Care
Cambridgeshire County Council,07-Feb-19,51300717284,"-1,438.69",VOYAGE,CARE ESTABLISHMENT,LD - South Locality,LD - South Cambs - Special Needs,Residential Care
Cambridgeshire County Council,07-Feb-19,51300714154,"-1,438.69",VOYAGE,CARE ESTABLISHMENT,LD - South Locality,LD - South Cambs - Special Needs,Residential Care
Cambridgeshire County Council,07-Feb-19,51300714147,"-1,438.69",VOYAGE,CARE ESTABLISHMENT,LD - South Locality,LD - South Cambs - Special Needs,Residential Care
Cambridgeshire County Council,07-Feb-19,51300717277,"-1,438.69",VOYAGE,CARE ESTABLISHMENT,LD - South Locality,LD - South Cambs - Special Needs,Residential Care
Cambridgeshire County Council,07-Feb-19,51300716469,"-1,431.46",VOYAGE,CARE ESTABLISHMENT,LD - East Locality,LD - East Cambs - Special Needs,Residential Care
Cambridgeshire County Council,07-Feb-19,51300716394,"-1,426.24",VOYAGE,CARE ESTABLISHMENT,LD - South Locality,LD - South Cambs - Special Needs,Residential Care
Cambridgeshire County Council,07-Feb-19,51300716396,"-1,426.24",VOYAGE,CARE ESTABLISHMENT,LD - South Locality,LD - South Cambs - Special Needs,Residential Care
Cambridgeshire County Council,07-Feb-19,51300716402,"-1,426.24",VOYAGE,CARE ESTABLISHMENT,LD - South Locality,LD - South Cambs - Special Needs,Residential Care
Cambridgeshire County Council,07-Feb-19,51300716403,"-1,426.24",VOYAGE,CARE ESTABLISHMENT,LD - South Locality,LD - South Cambs - Special Needs,Residential Care
Cambridgeshire County Council,22-Feb-19,51300733805,"-1,376.57",BT OPENREACH,TRADE SUPPLIER,Highways - Bridges,Highways - Bridges,Construction - External Professional Fees
Cambridgeshire County Council,07-Feb-19,51300713651,"-1,369.82",VOYAGE,CARE ESTABLISHMENT,LD - East Locality,LD - East Cambs - Care,Residential Care
Cambridgeshire County Council,07-Feb-19,51300714500,"-1,349.05",VOYAGE,CARE ESTABLISHMENT,LD - East Locality,LD - East Cambs - Care,Residential Care
Cambridgeshire County Council,07-Feb-19,51300714612,"-1,344.99",VOYAGE,CARE ESTABLISHMENT,LD - South Locality,LD - South Cambs - Special Needs,Residential Care
Cambridgeshire County Council,07-Feb-19,51300715991,"-1,344.99",VOYAGE,CARE ESTABLISHMENT,LD - South Locality,LD - South Cambs - Special Needs,Residential Care
Cambridgeshire County Council,07-Feb-19,51300715993,"-1,344.99",VOYAGE,CARE ESTABLISHMENT,LD - South Locality,LD - South Cambs - Special Needs,Residential Care
Cambridgeshire County Council,07-Feb-19,51300714619,"-1,344.99",VOYAGE,CARE ESTABLISHMENT,LD - South Locality,LD - South Cambs - Special Needs,Residential Care
Cambridgeshire County Council,07-Feb-19,51300719559,"-1,344.95",CAMBRIDGE MANOR CARE HOME (TLC),CARE ESTABLISHMENT,OPMH - City & South,Older People Mental Health City & South,Nursing Care
Cambridgeshire County Council,07-Feb-19,51300719554,"-1,344.95",CAMBRIDGE MANOR CARE HOME (TLC),CARE ESTABLISHMENT,OPMH - City & South,Older People Mental Health City & South,Nursing Care
Cambridgeshire County Council,07-Feb-19,51300719555,"-1,344.95",CAMBRIDGE MANOR CARE HOME (TLC),CARE ESTABLISHMENT,OPMH - City & South,Older People Mental Health City & South,Nursing Care
Cambridgeshire County Council,07-Feb-19,51300719557,"-1,344.95",CAMBRIDGE MANOR CARE HOME (TLC),CARE ESTABLISHMENT,OPMH - City & South,Older People Mental Health City & South,Nursing Care
Cambridgeshire County Council,14-Feb-19,51300720162,"-1,328.44",CARE MANAGEMENT GROUP (64-66 CARLTON),CARE ESTABLISHMENT,LD - East Locality,LD - East Cambs - Special Needs,Residential Care
Cambridgeshire County Council,14-Feb-19,51300729528,"-1,328.44",CARE MANAGEMENT GROUP (64-66 CARLTON),CARE ESTABLISHMENT,LD - East Locality,LD - East Cambs - Special Needs,Residential Care
Cambridgeshire County Council,14-Feb-19,51300729490,"-1,328.44",CARE MANAGEMENT GROUP (64-66 CARLTON),CARE ESTABLISHMENT,LD - East Locality,LD - East Cambs - Special Needs,Residential Care
Cambridgeshire County Council,14-Feb-19,51300720224,"-1,328.44",CARE MANAGEMENT GROUP (64-66 CARLTON),CARE ESTABLISHMENT,LD - East Locality,LD - East Cambs - Special Needs,Residential Care
Cambridgeshire County Council,14-Feb-19,51300720097,"-1,328.44",CARE MANAGEMENT GROUP (64-66 CARLTON),CARE ESTABLISHMENT,LD - East Locality,LD - East Cambs - Special Needs,Residential Care
Cambridgeshire County Council,14-Feb-19,51300720115,"-1,328.44",CARE MANAGEMENT GROUP (64-66 CARLTON),CARE ESTABLISHMENT,LD - East Locality,LD - East Cambs - Special Needs,Residential Care
Cambridgeshire County Council,14-Feb-19,51300720126,"-1,328.44",CARE MANAGEMENT GROUP (64-66 CARLTON),CARE ESTABLISHMENT,LD - East Locality,LD - East Cambs - Special Needs,Residential Care
Cambridgeshire County Council,14-Feb-19,51300720120,"-1,328.44",CARE MANAGEMENT GROUP (64-66 CARLTON),CARE ESTABLISHMENT,LD - East Locality,LD - East Cambs - Special Needs,Residential Care
Cambridgeshire County Council,14-Feb-19,51300720136,"-1,328.44",CARE MANAGEMENT GROUP (64-66 CARLTON),CARE ESTABLISHMENT,LD - East Locality,LD - East Cambs - Special Needs,Residential Care
Cambridgeshire County Council,14-Feb-19,51300720176,"-1,328.44",CARE MANAGEMENT GROUP (64-66 CARLTON),CARE ESTABLISHMENT,LD - East Locality,LD - East Cambs - Special Needs,Residential Care
Cambridgeshire County Council,14-Feb-19,51300720203,"-1,328.44",CARE MANAGEMENT GROUP (64-66 CARLTON),CARE ESTABLISHMENT,LD - East Locality,LD - East Cambs - Special Needs,Residential Care
Cambridgeshire County Council,14-Feb-19,51300720216,"-1,328.44",CARE MANAGEMENT GROUP (64-66 CARLTON),CARE ESTABLISHMENT,LD - East Locality,LD - East Cambs - Special Needs,Residential Care
Cambridgeshire County Council,14-Feb-19,51300720223,"-1,328.44",CARE MANAGEMENT GROUP (64-66 CARLTON),CARE ESTABLISHMENT,LD - East Locality,LD - East Cambs - Special Needs,Residential Care
Cambridgeshire County Council,14-Feb-19,51300729384,"-1,328.44",CARE MANAGEMENT GROUP (64-66 CARLTON),CARE ESTABLISHMENT,LD - East Locality,LD - East Cambs - Special Needs,Residential Care
Cambridgeshire County Council,14-Feb-19,51300729408,"-1,328.44",CARE MANAGEMENT GROUP (64-66 CARLTON),CARE ESTABLISHMENT,LD - East Locality,LD - East Cambs - Special Needs,Residential Care
Cambridgeshire County Council,14-Feb-19,51300729409,"-1,328.44",CARE MANAGEMENT GROUP (64-66 CARLTON),CARE ESTABLISHMENT,LD - East Locality,LD - East Cambs - Special Needs,Residential Care
Cambridgeshire County Council,14-Feb-19,51300729402,"-1,328.44",CARE MANAGEMENT GROUP (64-66 CARLTON),CARE ESTABLISHMENT,LD - East Locality,LD - East Cambs - Special Needs,Residential Care
Cambridgeshire County Council,14-Feb-19,51300720150,"-1,328.44",CARE MANAGEMENT GROUP (64-66 CARLTON),CARE ESTABLISHMENT,LD - East Locality,LD - East Cambs - Special Needs,Residential Care
Cambridgeshire County Council,14-Feb-19,51300729430,"-1,328.44",CARE MANAGEMENT GROUP (64-66 CARLTON),CARE ESTABLISHMENT,LD - East Locality,LD - East Cambs - Special Needs,Residential Care
Cambridgeshire County Council,14-Feb-19,51300720106,"-1,328.44",CARE MANAGEMENT GROUP (64-66 CARLTON),CARE ESTABLISHMENT,LD - East Locality,LD - East Cambs - Special Needs,Residential Care
Cambridgeshire County Council,14-Feb-19,51300720122,"-1,328.44",CARE MANAGEMENT GROUP (64-66 CARLTON),CARE ESTABLISHMENT,LD - East Locality,LD - East Cambs - Special Needs,Residential Care
Cambridgeshire County Council,14-Feb-19,51300729456,"-1,328.44",CARE MANAGEMENT GROUP (64-66 CARLTON),CARE ESTABLISHMENT,LD - East Locality,LD - East Cambs - Special Needs,Residential Care
Cambridgeshire County Council,14-Feb-19,51300729444,"-1,328.44",CARE MANAGEMENT GROUP (64-66 CARLTON),CARE ESTABLISHMENT,LD - East Locality,LD - East Cambs - Special Needs,Residential Care
Cambridgeshire County Council,14-Feb-19,51300720158,"-1,328.44",CARE MANAGEMENT GROUP (64-66 CARLTON),CARE ESTABLISHMENT,LD - East Locality,LD - East Cambs - Special Needs,Residential Care
Cambridgeshire County Council,14-Feb-19,51300729527,"-1,328.44",CARE MANAGEMENT GROUP (64-66 CARLTON),CARE ESTABLISHMENT,LD - East Locality,LD - East Cambs - Special Needs,Residential Care
Cambridgeshire County Council,14-Feb-19,51300729533,"-1,328.44",CARE MANAGEMENT GROUP (64-66 CARLTON),CARE ESTABLISHMENT,LD - East Locality,LD - East Cambs - Special Needs,Residential Care
Cambridgeshire County Council,14-Feb-19,51300729433,"-1,328.44",CARE MANAGEMENT GROUP (64-66 CARLTON),CARE ESTABLISHMENT,LD - East Locality,LD - East Cambs - Special Needs,Residential Care
Cambridgeshire County Council,14-Feb-19,51300720156,"-1,328.44",CARE MANAGEMENT GROUP (64-66 CARLTON),CARE ESTABLISHMENT,LD - East Locality,LD - East Cambs - Special Needs,Residential Care
Cambridgeshire County Council,14-Feb-19,51300729427,"-1,328.44",CARE MANAGEMENT GROUP (64-66 CARLTON),CARE ESTABLISHMENT,LD - East Locality,LD - East Cambs - Special Needs,Residential Care
Cambridgeshire County Council,14-Feb-19,51300720166,"-1,328.44",CARE MANAGEMENT GROUP (64-66 CARLTON),CARE ESTABLISHMENT,LD - East Locality,LD - East Cambs - Special Needs,Residential Care
Cambridgeshire County Council,14-Feb-19,51300729476,"-1,328.44",CARE MANAGEMENT GROUP (64-66 CARLTON),CARE ESTABLISHMENT,LD - East Locality,LD - East Cambs - Special Needs,Residential Care
Cambridgeshire County Council,14-Feb-19,51300729523,"-1,328.44",CARE MANAGEMENT GROUP (64-66 CARLTON),CARE ESTABLISHMENT,LD - East Locality,LD - East Cambs - Special Needs,Residential Care
Cambridgeshire County Council,14-Feb-19,51300720085,"-1,328.44",CARE MANAGEMENT GROUP (64-66 CARLTON),CARE ESTABLISHMENT,LD - East Locality,LD - East Cambs - Special Needs,Residential Care
Cambridgeshire County Council,14-Feb-19,51300720144,"-1,328.44",CARE MANAGEMENT GROUP (64-66 CARLTON),CARE ESTABLISHMENT,LD - East Locality,LD - East Cambs - Special Needs,Residential Care
Cambridgeshire County Council,14-Feb-19,51300729509,"-1,328.44",CARE MANAGEMENT GROUP (64-66 CARLTON),CARE ESTABLISHMENT,LD - East Locality,LD - East Cambs - Special Needs,Residential Care
Cambridgeshire County Council,14-Feb-19,51300720083,"-1,328.44",CARE MANAGEMENT GROUP (64-66 CARLTON),CARE ESTABLISHMENT,LD - East Locality,LD - East Cambs - Special Needs,Residential Care
Cambridgeshire County Council,14-Feb-19,51300720139,"-1,328.44",CARE MANAGEMENT GROUP (64-66 CARLTON),CARE ESTABLISHMENT,LD - East Locality,LD - East Cambs - Special Needs,Residential Care
Cambridgeshire County Council,14-Feb-19,51300729440,"-1,328.44",CARE MANAGEMENT GROUP (64-66 CARLTON),CARE ESTABLISHMENT,LD - East Locality,LD - East Cambs - Special Needs,Residential Care
Cambridgeshire County Council,14-Feb-19,51300720117,"-1,328.44",CARE MANAGEMENT GROUP (64-66 CARLTON),CARE ESTABLISHMENT,LD - East Locality,LD - East Cambs - Special Needs,Residential Care
Cambridgeshire County Council,14-Feb-19,51300720131,"-1,328.44",CARE MANAGEMENT GROUP (64-66 CARLTON),CARE ESTABLISHMENT,LD - East Locality,LD - East Cambs - Special Needs,Residential Care
Cambridgeshire County Council,14-Feb-19,51300720147,"-1,328.44",CARE MANAGEMENT GROUP (64-66 CARLTON),CARE ESTABLISHMENT,LD - East Locality,LD - East Cambs - Special Needs,Residential Care
Cambridgeshire County Council,14-Feb-19,51300720232,"-1,328.44",CARE MANAGEMENT GROUP (64-66 CARLTON),CARE ESTABLISHMENT,LD - East Locality,LD - East Cambs - Special Needs,Residential Care
Cambridgeshire County Council,14-Feb-19,51300729451,"-1,328.44",CARE MANAGEMENT GROUP (64-66 CARLTON),CARE ESTABLISHMENT,LD - East Locality,LD - East Cambs - Special Needs,Residential Care
Cambridgeshire County Council,14-Feb-19,51300729454,"-1,328.44",CARE MANAGEMENT GROUP (64-66 CARLTON),CARE ESTABLISHMENT,LD - East Locality,LD - East Cambs - Special Needs,Residential Care
Cambridgeshire County Council,14-Feb-19,51300720187,"-1,328.44",CARE MANAGEMENT GROUP (64-66 CARLTON),CARE ESTABLISHMENT,LD - East Locality,LD - East Cambs - Special Needs,Residential Care
Cambridgeshire County Council,14-Feb-19,51300720189,"-1,328.44",CARE MANAGEMENT GROUP (64-66 CARLTON),CARE ESTABLISHMENT,LD - East Locality,LD - East Cambs - Special Needs,Residential Care
Cambridgeshire County Council,14-Feb-19,51300729465,"-1,328.44",CARE MANAGEMENT GROUP (64-66 CARLTON),CARE ESTABLISHMENT,LD - East Locality,LD - East Cambs - Special Needs,Residential Care
Cambridgeshire County Council,14-Feb-19,51300729514,"-1,328.44",CARE MANAGEMENT GROUP (64-66 CARLTON),CARE ESTABLISHMENT,LD - East Locality,LD - East Cambs - Special Needs,Residential Care
Cambridgeshire County Council,14-Feb-19,51300729534,"-1,328.44",CARE MANAGEMENT GROUP (64-66 CARLTON),CARE ESTABLISHMENT,LD - East Locality,LD - East Cambs - Special Needs,Residential Care
Cambridgeshire County Council,14-Feb-19,51300720220,"-1,328.44",CARE MANAGEMENT GROUP (64-66 CARLTON),CARE ESTABLISHMENT,LD - East Locality,LD - East Cambs - Special Needs,Residential Care
Cambridgeshire County Council,14-Feb-19,51300729537,"-1,328.44",CARE MANAGEMENT GROUP (64-66 CARLTON),CARE ESTABLISHMENT,LD - East Locality,LD - East Cambs - Special Needs,Residential Care
Cambridgeshire County Council,14-Feb-19,51300720198,"-1,328.44",CARE MANAGEMENT GROUP (64-66 CARLTON),CARE ESTABLISHMENT,LD - East Locality,LD - East Cambs - Special Needs,Residential Care
Cambridgeshire County Council,14-Feb-19,51300720179,"-1,328.44",CARE MANAGEMENT GROUP (64-66 CARLTON),CARE ESTABLISHMENT,LD - East Locality,LD - East Cambs - Special Needs,Residential Care
Cambridgeshire County Council,14-Feb-19,51300720184,"-1,328.44",CARE MANAGEMENT GROUP (64-66 CARLTON),CARE ESTABLISHMENT,LD - East Locality,LD - East Cambs - Special Needs,Residential Care
Cambridgeshire County Council,14-Feb-19,51300729390,"-1,328.44",CARE MANAGEMENT GROUP (64-66 CARLTON),CARE ESTABLISHMENT,LD - East Locality,LD - East Cambs - Special Needs,Residential Care
Cambridgeshire County Council,14-Feb-19,51300729529,"-1,328.44",CARE MANAGEMENT GROUP (64-66 CARLTON),CARE ESTABLISHMENT,LD - East Locality,LD - East Cambs - Special Needs,Residential Care
Cambridgeshire County Council,14-Feb-19,51300720125,"-1,328.44",CARE MANAGEMENT GROUP (64-66 CARLTON),CARE ESTABLISHMENT,LD - East Locality,LD - East Cambs - Special Needs,Residential Care
Cambridgeshire County Council,14-Feb-19,51300720209,"-1,328.44",CARE MANAGEMENT GROUP (64-66 CARLTON),CARE ESTABLISHMENT,LD - East Locality,LD - East Cambs - Special Needs,Residential Care
Cambridgeshire County Council,14-Feb-19,51300729449,"-1,328.44",CARE MANAGEMENT GROUP (64-66 CARLTON),CARE ESTABLISHMENT,LD - East Locality,LD - East Cambs - Special Needs,Residential Care
Cambridgeshire County Council,14-Feb-19,51300729452,"-1,328.44",CARE MANAGEMENT GROUP (64-66 CARLTON),CARE ESTABLISHMENT,LD - East Locality,LD - East Cambs - Special Needs,Residential Care
Cambridgeshire County Council,14-Feb-19,51300729470,"-1,328.44",CARE MANAGEMENT GROUP (64-66 CARLTON),CARE ESTABLISHMENT,LD - East Locality,LD - East Cambs - Special Needs,Residential Care
Cambridgeshire County Council,14-Feb-19,51300729506,"-1,328.44",CARE MANAGEMENT GROUP (64-66 CARLTON),CARE ESTABLISHMENT,LD - East Locality,LD - East Cambs - Special Needs,Residential Care
Cambridgeshire County Council,14-Feb-19,51300720132,"-1,328.44",CARE MANAGEMENT GROUP (64-66 CARLTON),CARE ESTABLISHMENT,LD - East Locality,LD - East Cambs - Special Needs,Residential Care
Cambridgeshire County Council,14-Feb-19,51300720092,"-1,328.44",CARE MANAGEMENT GROUP (64-66 CARLTON),CARE ESTABLISHMENT,LD - East Locality,LD - East Cambs - Special Needs,Residential Care
Cambridgeshire County Council,14-Feb-19,51300720196,"-1,328.44",CARE MANAGEMENT GROUP (64-66 CARLTON),CARE ESTABLISHMENT,LD - East Locality,LD - East Cambs - Special Needs,Residential Care
Cambridgeshire County Council,14-Feb-19,51300720197,"-1,328.44",CARE MANAGEMENT GROUP (64-66 CARLTON),CARE ESTABLISHMENT,LD - East Locality,LD - East Cambs - Special Needs,Residential Care
Cambridgeshire County Council,14-Feb-19,51300720227,"-1,328.44",CARE MANAGEMENT GROUP (64-66 CARLTON),CARE ESTABLISHMENT,LD - East Locality,LD - East Cambs - Special Needs,Residential Care
Cambridgeshire County Council,14-Feb-19,51300720098,"-1,328.44",CARE MANAGEMENT GROUP (64-66 CARLTON),CARE ESTABLISHMENT,LD - East Locality,LD - East Cambs - Special Needs,Residential Care
Cambridgeshire County Council,14-Feb-19,51300729399,"-1,328.44",CARE MANAGEMENT GROUP (64-66 CARLTON),CARE ESTABLISHMENT,LD - East Locality,LD - East Cambs - Special Needs,Residential Care
Cambridgeshire County Council,14-Feb-19,51300729441,"-1,328.44",CARE MANAGEMENT GROUP (64-66 CARLTON),CARE ESTABLISHMENT,LD - East Locality,LD - East Cambs - Special Needs,Residential Care
Cambridgeshire County Council,14-Feb-19,51300729524,"-1,328.44",CARE MANAGEMENT GROUP (64-66 CARLTON),CARE ESTABLISHMENT,LD - East Locality,LD - East Cambs - Special Needs,Residential Care
Cambridgeshire County Council,14-Feb-19,51300720138,"-1,328.44",CARE MANAGEMENT GROUP (64-66 CARLTON),CARE ESTABLISHMENT,LD - East Locality,LD - East Cambs - Special Needs,Residential Care
Cambridgeshire County Council,14-Feb-19,51300720112,"-1,328.44",CARE MANAGEMENT GROUP (64-66 CARLTON),CARE ESTABLISHMENT,LD - East Locality,LD - East Cambs - Special Needs,Residential Care
Cambridgeshire County Council,14-Feb-19,51300720089,"-1,328.44",CARE MANAGEMENT GROUP (64-66 CARLTON),CARE ESTABLISHMENT,LD - East Locality,LD - East Cambs - Special Needs,Residential Care
Cambridgeshire County Council,14-Feb-19,51300729453,"-1,328.44",CARE MANAGEMENT GROUP (64-66 CARLTON),CARE ESTABLISHMENT,LD - East Locality,LD - East Cambs - Special Needs,Residential Care
Cambridgeshire County Council,14-Feb-19,51300729510,"-1,328.44",CARE MANAGEMENT GROUP (64-66 CARLTON),CARE ESTABLISHMENT,LD - East Locality,LD - East Cambs - Special Needs,Residential Care
Cambridgeshire County Council,14-Feb-19,51300729417,"-1,328.44",CARE MANAGEMENT GROUP (64-66 CARLTON),CARE ESTABLISHMENT,LD - East Locality,LD - East Cambs - Special Needs,Residential Care
Cambridgeshire County Council,14-Feb-19,51300729495,"-1,328.44",CARE MANAGEMENT GROUP (64-66 CARLTON),CARE ESTABLISHMENT,LD - East Locality,LD - East Cambs - Special Needs,Residential Care
Cambridgeshire County Council,14-Feb-19,51300720233,"-1,328.44",CARE MANAGEMENT GROUP (64-66 CARLTON),CARE ESTABLISHMENT,LD - East Locality,LD - East Cambs - Special Needs,Residential Care
Cambridgeshire County Council,14-Feb-19,51300729442,"-1,328.44",CARE MANAGEMENT GROUP (64-66 CARLTON),CARE ESTABLISHMENT,LD - East Locality,LD - East Cambs - Special Needs,Residential Care
Cambridgeshire County Council,14-Feb-19,51300729443,"-1,328.44",CARE MANAGEMENT GROUP (64-66 CARLTON),CARE ESTABLISHMENT,LD - East Locality,LD - East Cambs - Special Needs,Residential Care
Cambridgeshire County Council,14-Feb-19,51300729481,"-1,328.44",CARE MANAGEMENT GROUP (64-66 CARLTON),CARE ESTABLISHMENT,LD - East Locality,LD - East Cambs - Special Needs,Residential Care
Cambridgeshire County Council,14-Feb-19,51300720210,"-1,328.44",CARE MANAGEMENT GROUP (64-66 CARLTON),CARE ESTABLISHMENT,LD - East Locality,LD - East Cambs - Special Needs,Residential Care
Cambridgeshire County Council,14-Feb-19,51300729515,"-1,328.44",CARE MANAGEMENT GROUP (64-66 CARLTON),CARE ESTABLISHMENT,LD - East Locality,LD - East Cambs - Special Needs,Residential Care
Cambridgeshire County Council,14-Feb-19,51300729525,"-1,328.44",CARE MANAGEMENT GROUP (64-66 CARLTON),CARE ESTABLISHMENT,LD - East Locality,LD - East Cambs - Special Needs,Residential Care
Cambridgeshire County Council,14-Feb-19,51300729531,"-1,328.44",CARE MANAGEMENT GROUP (64-66 CARLTON),CARE ESTABLISHMENT,LD - East Locality,LD - East Cambs - Special Needs,Residential Care
Cambridgeshire County Council,14-Feb-19,51300720221,"-1,328.44",CARE MANAGEMENT GROUP (64-66 CARLTON),CARE ESTABLISHMENT,LD - East Locality,LD - East Cambs - Special Needs,Residential Care
Cambridgeshire County Council,14-Feb-19,51300720183,"-1,328.44",CARE MANAGEMENT GROUP (64-66 CARLTON),CARE ESTABLISHMENT,LD - East Locality,LD - East Cambs - Special Needs,Residential Care
Cambridgeshire County Council,14-Feb-19,51300729496,"-1,328.44",CARE MANAGEMENT GROUP (64-66 CARLTON),CARE ESTABLISHMENT,LD - East Locality,LD - East Cambs - Special Needs,Residential Care
Cambridgeshire County Council,14-Feb-19,51300729489,"-1,328.44",CARE MANAGEMENT GROUP (64-66 CARLTON),CARE ESTABLISHMENT,LD - East Locality,LD - East Cambs - Special Needs,Residential Care
Cambridgeshire County Council,14-Feb-19,51300729403,"-1,328.44",CARE MANAGEMENT GROUP (64-66 CARLTON),CARE ESTABLISHMENT,LD - East Locality,LD - East Cambs - Special Needs,Residential Care
Cambridgeshire County Council,14-Feb-19,51300729410,"-1,328.44",CARE MANAGEMENT GROUP (64-66 CARLTON),CARE ESTABLISHMENT,LD - East Locality,LD - East Cambs - Special Needs,Residential Care
Cambridgeshire County Council,14-Feb-19,51300729391,"-1,328.44",CARE MANAGEMENT GROUP (64-66 CARLTON),CARE ESTABLISHMENT,LD - East Locality,LD - East Cambs - Special Needs,Residential Care
Cambridgeshire County Council,14-Feb-19,51300729398,"-1,328.44",CARE MANAGEMENT GROUP (64-66 CARLTON),CARE ESTABLISHMENT,LD - East Locality,LD - East Cambs - Special Needs,Residential Care
Cambridgeshire County Council,14-Feb-19,51300720155,"-1,328.44",CARE MANAGEMENT GROUP (64-66 CARLTON),CARE ESTABLISHMENT,LD - East Locality,LD - East Cambs - Special Needs,Residential Care
Cambridgeshire County Council,14-Feb-19,51300720202,"-1,328.44",CARE MANAGEMENT GROUP (64-66 CARLTON),CARE ESTABLISHMENT,LD - East Locality,LD - East Cambs - Special Needs,Residential Care
Cambridgeshire County Council,14-Feb-19,51300720129,"-1,328.44",CARE MANAGEMENT GROUP (64-66 CARLTON),CARE ESTABLISHMENT,LD - East Locality,LD - East Cambs - Special Needs,Residential Care
Cambridgeshire County Council,14-Feb-19,51300720199,"-1,328.44",CARE MANAGEMENT GROUP (64-66 CARLTON),CARE ESTABLISHMENT,LD - East Locality,LD - East Cambs - Special Needs,Residential Care
Cambridgeshire County Council,14-Feb-19,51300729485,"-1,328.44",CARE MANAGEMENT GROUP (64-66 CARLTON),CARE ESTABLISHMENT,LD - East Locality,LD - East Cambs - Special Needs,Residential Care
Cambridgeshire County Council,14-Feb-19,51300720200,"-1,328.44",CARE MANAGEMENT GROUP (64-66 CARLTON),CARE ESTABLISHMENT,LD - East Locality,LD - East Cambs - Special Needs,Residential Care
Cambridgeshire County Council,14-Feb-19,51300729378,"-1,328.44",CARE MANAGEMENT GROUP (64-66 CARLTON),CARE ESTABLISHMENT,LD - East Locality,LD - East Cambs - Special Needs,Residential Care
Cambridgeshire County Council,14-Feb-19,51300720212,"-1,328.44",CARE MANAGEMENT GROUP (64-66 CARLTON),CARE ESTABLISHMENT,LD - East Locality,LD - East Cambs - Special Needs,Residential Care
Cambridgeshire County Council,14-Feb-19,51300729462,"-1,328.44",CARE MANAGEMENT GROUP (64-66 CARLTON),CARE ESTABLISHMENT,LD - East Locality,LD - East Cambs - Special Needs,Residential Care
Cambridgeshire County Council,14-Feb-19,51300729535,"-1,328.44",CARE MANAGEMENT GROUP (64-66 CARLTON),CARE ESTABLISHMENT,LD - East Locality,LD - East Cambs - Special Needs,Residential Care
Cambridgeshire County Council,14-Feb-19,51300720134,"-1,328.44",CARE MANAGEMENT GROUP (64-66 CARLTON),CARE ESTABLISHMENT,LD - East Locality,LD - East Cambs - Special Needs,Residential Care
Cambridgeshire County Council,14-Feb-19,51300720157,"-1,328.44",CARE MANAGEMENT GROUP (64-66 CARLTON),CARE ESTABLISHMENT,LD - East Locality,LD - East Cambs - Special Needs,Residential Care
Cambridgeshire County Council,14-Feb-19,51300720167,"-1,328.44",CARE MANAGEMENT GROUP (64-66 CARLTON),CARE ESTABLISHMENT,LD - East Locality,LD - East Cambs - Special Needs,Residential Care
Cambridgeshire County Council,14-Feb-19,51300720173,"-1,328.44",CARE MANAGEMENT GROUP (64-66 CARLTON),CARE ESTABLISHMENT,LD - East Locality,LD - East Cambs - Special Needs,Residential Care
Cambridgeshire County Council,14-Feb-19,51300729484,"-1,328.44",CARE MANAGEMENT GROUP (64-66 CARLTON),CARE ESTABLISHMENT,LD - East Locality,LD - East Cambs - Special Needs,Residential Care
Cambridgeshire County Council,14-Feb-19,51300729500,"-1,328.44",CARE MANAGEMENT GROUP (64-66 CARLTON),CARE ESTABLISHMENT,LD - East Locality,LD - East Cambs - Special Needs,Residential Care
Cambridgeshire County Council,14-Feb-19,51300729463,"-1,328.44",CARE MANAGEMENT GROUP (64-66 CARLTON),CARE ESTABLISHMENT,LD - East Locality,LD - East Cambs - Special Needs,Residential Care
Cambridgeshire County Council,14-Feb-19,51300729471,"-1,328.44",CARE MANAGEMENT GROUP (64-66 CARLTON),CARE ESTABLISHMENT,LD - East Locality,LD - East Cambs - Special Needs,Residential Care
Cambridgeshire County Council,14-Feb-19,51300729488,"-1,328.44",CARE MANAGEMENT GROUP (64-66 CARLTON),CARE ESTABLISHMENT,LD - East Locality,LD - East Cambs - Special Needs,Residential Care
Cambridgeshire County Council,14-Feb-19,51300720207,"-1,328.44",CARE MANAGEMENT GROUP (64-66 CARLTON),CARE ESTABLISHMENT,LD - East Locality,LD - East Cambs - Special Needs,Residential Care
Cambridgeshire County Council,14-Feb-19,51300720213,"-1,328.44",CARE MANAGEMENT GROUP (64-66 CARLTON),CARE ESTABLISHMENT,LD - East Locality,LD - East Cambs - Special Needs,Residential Care
Cambridgeshire County Council,14-Feb-19,51300729429,"-1,328.44",CARE MANAGEMENT GROUP (64-66 CARLTON),CARE ESTABLISHMENT,LD - East Locality,LD - East Cambs - Special Needs,Residential Care
Cambridgeshire County Council,14-Feb-19,51300729502,"-1,328.44",CARE MANAGEMENT GROUP (64-66 CARLTON),CARE ESTABLISHMENT,LD - East Locality,LD - East Cambs - Special Needs,Residential Care
Cambridgeshire County Council,14-Feb-19,51300720159,"-1,328.44",CARE MANAGEMENT GROUP (64-66 CARLTON),CARE ESTABLISHMENT,LD - East Locality,LD - East Cambs - Special Needs,Residential Care
Cambridgeshire County Council,14-Feb-19,51300729520,"-1,328.44",CARE MANAGEMENT GROUP (64-66 CARLTON),CARE ESTABLISHMENT,LD - East Locality,LD - East Cambs - Special Needs,Residential Care
Cambridgeshire County Council,14-Feb-19,51300729394,"-1,328.44",CARE MANAGEMENT GROUP (64-66 CARLTON),CARE ESTABLISHMENT,LD - East Locality,LD - East Cambs - Special Needs,Residential Care
Cambridgeshire County Council,14-Feb-19,51300729387,"-1,328.44",CARE MANAGEMENT GROUP (64-66 CARLTON),CARE ESTABLISHMENT,LD - East Locality,LD - East Cambs - Special Needs,Residential Care
Cambridgeshire County Council,14-Feb-19,51300729478,"-1,328.44",CARE MANAGEMENT GROUP (64-66 CARLTON),CARE ESTABLISHMENT,LD - East Locality,LD - East Cambs - Special Needs,Residential Care
Cambridgeshire County Council,14-Feb-19,51300720208,"-1,328.44",CARE MANAGEMENT GROUP (64-66 CARLTON),CARE ESTABLISHMENT,LD - East Locality,LD - East Cambs - Special Needs,Residential Care
Cambridgeshire County Council,14-Feb-19,51300720169,"-1,328.44",CARE MANAGEMENT GROUP (64-66 CARLTON),CARE ESTABLISHMENT,LD - East Locality,LD - East Cambs - Special Needs,Residential Care
Cambridgeshire County Council,14-Feb-19,51300720168,"-1,328.44",CARE MANAGEMENT GROUP (64-66 CARLTON),CARE ESTABLISHMENT,LD - East Locality,LD - East Cambs - Special Needs,Residential Care
Cambridgeshire County Council,14-Feb-19,51300729507,"-1,328.44",CARE MANAGEMENT GROUP (64-66 CARLTON),CARE ESTABLISHMENT,LD - East Locality,LD - East Cambs - Special Needs,Residential Care
Cambridgeshire County Council,14-Feb-19,51300720099,"-1,328.44",CARE MANAGEMENT GROUP (64-66 CARLTON),CARE ESTABLISHMENT,LD - East Locality,LD - East Cambs - Special Needs,Residential Care
Cambridgeshire County Council,14-Feb-19,51300720124,"-1,328.44",CARE MANAGEMENT GROUP (64-66 CARLTON),CARE ESTABLISHMENT,LD - East Locality,LD - East Cambs - Special Needs,Residential Care
Cambridgeshire County Council,14-Feb-19,51300729536,"-1,328.44",CARE MANAGEMENT GROUP (64-66 CARLTON),CARE ESTABLISHMENT,LD - East Locality,LD - East Cambs - Special Needs,Residential Care
Cambridgeshire County Council,14-Feb-19,51300720205,"-1,328.44",CARE MANAGEMENT GROUP (64-66 CARLTON),CARE ESTABLISHMENT,LD - East Locality,LD - East Cambs - Special Needs,Residential Care
Cambridgeshire County Council,14-Feb-19,51300729420,"-1,328.44",CARE MANAGEMENT GROUP (64-66 CARLTON),CARE ESTABLISHMENT,LD - East Locality,LD - East Cambs - Special Needs,Residential Care
Cambridgeshire County Council,14-Feb-19,51300729512,"-1,328.44",CARE MANAGEMENT GROUP (64-66 CARLTON),CARE ESTABLISHMENT,LD - East Locality,LD - East Cambs - Special Needs,Residential Care
Cambridgeshire County Council,14-Feb-19,51300729432,"-1,328.44",CARE MANAGEMENT GROUP (64-66 CARLTON),CARE ESTABLISHMENT,LD - East Locality,LD - East Cambs - Special Needs,Residential Care
Cambridgeshire County Council,14-Feb-19,51300720163,"-1,328.44",CARE MANAGEMENT GROUP (64-66 CARLTON),CARE ESTABLISHMENT,LD - East Locality,LD - East Cambs - Special Needs,Residential Care
Cambridgeshire County Council,14-Feb-19,51300720204,"-1,328.44",CARE MANAGEMENT GROUP (64-66 CARLTON),CARE ESTABLISHMENT,LD - East Locality,LD - East Cambs - Special Needs,Residential Care
Cambridgeshire County Council,14-Feb-19,51300729469,"-1,328.44",CARE MANAGEMENT GROUP (64-66 CARLTON),CARE ESTABLISHMENT,LD - East Locality,LD - East Cambs - Special Needs,Residential Care
Cambridgeshire County Council,14-Feb-19,51300729447,"-1,328.44",CARE MANAGEMENT GROUP (64-66 CARLTON),CARE ESTABLISHMENT,LD - East Locality,LD - East Cambs - Special Needs,Residential Care
Cambridgeshire County Council,14-Feb-19,51300720096,"-1,328.44",CARE MANAGEMENT GROUP (64-66 CARLTON),CARE ESTABLISHMENT,LD - East Locality,LD - East Cambs - Special Needs,Residential Care
Cambridgeshire County Council,14-Feb-19,51300720101,"-1,328.44",CARE MANAGEMENT GROUP (64-66 CARLTON),CARE ESTABLISHMENT,LD - East Locality,LD - East Cambs - Special Needs,Residential Care
Cambridgeshire County Council,14-Feb-19,51300729393,"-1,328.44",CARE MANAGEMENT GROUP (64-66 CARLTON),CARE ESTABLISHMENT,LD - East Locality,LD - East Cambs - Special Needs,Residential Care
Cambridgeshire County Council,14-Feb-19,51300729414,"-1,328.44",CARE MANAGEMENT GROUP (64-66 CARLTON),CARE ESTABLISHMENT,LD - East Locality,LD - East Cambs - Special Needs,Residential Care
Cambridgeshire County Council,14-Feb-19,51300720128,"-1,328.44",CARE MANAGEMENT GROUP (64-66 CARLTON),CARE ESTABLISHMENT,LD - East Locality,LD - East Cambs - Special Needs,Residential Care
Cambridgeshire County Council,14-Feb-19,51300720234,"-1,328.44",CARE MANAGEMENT GROUP (64-66 CARLTON),CARE ESTABLISHMENT,LD - East Locality,LD - East Cambs - Special Needs,Residential Care
Cambridgeshire County Council,14-Feb-19,51300720174,"-1,328.44",CARE MANAGEMENT GROUP (64-66 CARLTON),CARE ESTABLISHMENT,LD - East Locality,LD - East Cambs - Special Needs,Residential Care
Cambridgeshire County Council,14-Feb-19,51300729407,"-1,328.44",CARE MANAGEMENT GROUP (64-66 CARLTON),CARE ESTABLISHMENT,LD - East Locality,LD - East Cambs - Special Needs,Residential Care
Cambridgeshire County Council,14-Feb-19,51300720181,"-1,328.44",CARE MANAGEMENT GROUP (64-66 CARLTON),CARE ESTABLISHMENT,LD - East Locality,LD - East Cambs - Special Needs,Residential Care
Cambridgeshire County Council,07-Feb-19,51300721243,"-1,323.65",THE MARBROOK CENTRE,CARE ESTABLISHMENT,OPMH - Hunts & Fens,Older People Mental Health Hunts,Nursing Care
Cambridgeshire County Council,14-Feb-19,51300714931,"-1,317.11",ALDERTON HOUSE,CARE ESTABLISHMENT,LD - East Locality,LD - East Cambs - Special Needs,Residential Care
Cambridgeshire County Council,14-Feb-19,51300714932,"-1,317.11",ALDERTON HOUSE,CARE ESTABLISHMENT,LD - East Locality,LD - East Cambs - Special Needs,Residential Care
Cambridgeshire County Council,14-Feb-19,51300714953,"-1,317.11",ALDERTON HOUSE,CARE ESTABLISHMENT,LD - East Locality,LD - East Cambs - Special Needs,Residential Care
Cambridgeshire County Council,14-Feb-19,51300714992,"-1,317.11",ALDERTON HOUSE,CARE ESTABLISHMENT,LD - East Locality,LD - East Cambs - Special Needs,Residential Care
Cambridgeshire County Council,14-Feb-19,51300715027,"-1,317.11",ALDERTON HOUSE,CARE ESTABLISHMENT,LD - East Locality,LD - East Cambs - Special Needs,Residential Care
Cambridgeshire County Council,14-Feb-19,51300726096,"-1,317.11",ALDERTON HOUSE,CARE ESTABLISHMENT,LD - East Locality,LD - East Cambs - Special Needs,Residential Care
Cambridgeshire County Council,14-Feb-19,51300726229,"-1,317.11",ALDERTON HOUSE,CARE ESTABLISHMENT,LD - East Locality,LD - East Cambs - Special Needs,Residential Care
Cambridgeshire County Council,14-Feb-19,51300714882,"-1,317.11",ALDERTON HOUSE,CARE ESTABLISHMENT,LD - East Locality,LD - East Cambs - Special Needs,Residential Care
Cambridgeshire County Council,14-Feb-19,51300726153,"-1,317.11",ALDERTON HOUSE,CARE ESTABLISHMENT,LD - East Locality,LD - East Cambs - Special Needs,Residential Care
Cambridgeshire County Council,14-Feb-19,51300726180,"-1,317.11",ALDERTON HOUSE,CARE ESTABLISHMENT,LD - East Locality,LD - East Cambs - Special Needs,Residential Care
Cambridgeshire County Council,14-Feb-19,51300714929,"-1,317.11",ALDERTON HOUSE,CARE ESTABLISHMENT,LD - East Locality,LD - East Cambs - Special Needs,Residential Care
Cambridgeshire County Council,14-Feb-19,51300714897,"-1,317.11",ALDERTON HOUSE,CARE ESTABLISHMENT,LD - East Locality,LD - East Cambs - Special Needs,Residential Care
Cambridgeshire County Council,14-Feb-19,51300714912,"-1,317.11",ALDERTON HOUSE,CARE ESTABLISHMENT,LD - East Locality,LD - East Cambs - Special Needs,Residential Care
Cambridgeshire County Council,14-Feb-19,51300714969,"-1,317.11",ALDERTON HOUSE,CARE ESTABLISHMENT,LD - East Locality,LD - East Cambs - Special Needs,Residential Care
Cambridgeshire County Council,14-Feb-19,51300715007,"-1,317.11",ALDERTON HOUSE,CARE ESTABLISHMENT,LD - East Locality,LD - East Cambs - Special Needs,Residential Care
Cambridgeshire County Council,14-Feb-19,51300726108,"-1,317.11",ALDERTON HOUSE,CARE ESTABLISHMENT,LD - East Locality,LD - East Cambs - Special Needs,Residential Care
Cambridgeshire County Council,14-Feb-19,51300714920,"-1,317.11",ALDERTON HOUSE,CARE ESTABLISHMENT,LD - East Locality,LD - East Cambs - Special Needs,Residential Care
Cambridgeshire County Council,14-Feb-19,51300726197,"-1,317.11",ALDERTON HOUSE,CARE ESTABLISHMENT,LD - East Locality,LD - East Cambs - Special Needs,Residential Care
Cambridgeshire County Council,14-Feb-19,51300714958,"-1,317.11",ALDERTON HOUSE,CARE ESTABLISHMENT,LD - East Locality,LD - East Cambs - Special Needs,Residential Care
Cambridgeshire County Council,14-Feb-19,51300715028,"-1,317.11",ALDERTON HOUSE,CARE ESTABLISHMENT,LD - East Locality,LD - East Cambs - Special Needs,Residential Care
Cambridgeshire County Council,14-Feb-19,51300726089,"-1,317.11",ALDERTON HOUSE,CARE ESTABLISHMENT,LD - East Locality,LD - East Cambs - Special Needs,Residential Care
Cambridgeshire County Council,14-Feb-19,51300726115,"-1,317.11",ALDERTON HOUSE,CARE ESTABLISHMENT,LD - East Locality,LD - East Cambs - Special Needs,Residential Care
Cambridgeshire County Council,14-Feb-19,51300714880,"-1,317.11",ALDERTON HOUSE,CARE ESTABLISHMENT,LD - East Locality,LD - East Cambs - Special Needs,Residential Care
Cambridgeshire County Council,14-Feb-19,51300715034,"-1,317.11",ALDERTON HOUSE,CARE ESTABLISHMENT,LD - East Locality,LD - East Cambs - Special Needs,Residential Care
Cambridgeshire County Council,14-Feb-19,51300714891,"-1,317.11",ALDERTON HOUSE,CARE ESTABLISHMENT,LD - East Locality,LD - East Cambs - Special Needs,Residential Care
Cambridgeshire County Council,14-Feb-19,51300714977,"-1,317.11",ALDERTON HOUSE,CARE ESTABLISHMENT,LD - East Locality,LD - East Cambs - Special Needs,Residential Care
Cambridgeshire County Council,14-Feb-19,51300715009,"-1,317.11",ALDERTON HOUSE,CARE ESTABLISHMENT,LD - East Locality,LD - East Cambs - Special Needs,Residential Care
Cambridgeshire County Council,14-Feb-19,51300726113,"-1,317.11",ALDERTON HOUSE,CARE ESTABLISHMENT,LD - East Locality,LD - East Cambs - Special Needs,Residential Care
Cambridgeshire County Council,14-Feb-19,51300726183,"-1,317.11",ALDERTON HOUSE,CARE ESTABLISHMENT,LD - East Locality,LD - East Cambs - Special Needs,Residential Care
Cambridgeshire County Council,14-Feb-19,51300726212,"-1,317.11",ALDERTON HOUSE,CARE ESTABLISHMENT,LD - East Locality,LD - East Cambs - Special Needs,Residential Care
Cambridgeshire County Council,14-Feb-19,51300714924,"-1,317.11",ALDERTON HOUSE,CARE ESTABLISHMENT,LD - East Locality,LD - East Cambs - Special Needs,Residential Care
Cambridgeshire County Council,14-Feb-19,51300726079,"-1,317.11",ALDERTON HOUSE,CARE ESTABLISHMENT,LD - East Locality,LD - East Cambs - Special Needs,Residential Care
Cambridgeshire County Council,14-Feb-19,51300726129,"-1,317.11",ALDERTON HOUSE,CARE ESTABLISHMENT,LD - East Locality,LD - East Cambs - Special Needs,Residential Care
Cambridgeshire County Council,14-Feb-19,51300726159,"-1,317.11",ALDERTON HOUSE,CARE ESTABLISHMENT,LD - East Locality,LD - East Cambs - Special Needs,Residential Care
Cambridgeshire County Council,14-Feb-19,51300726206,"-1,317.11",ALDERTON HOUSE,CARE ESTABLISHMENT,LD - East Locality,LD - East Cambs - Special Needs,Residential Care
Cambridgeshire County Council,14-Feb-19,51300726171,"-1,317.11",ALDERTON HOUSE,CARE ESTABLISHMENT,LD - East Locality,LD - East Cambs - Special Needs,Residential Care
Cambridgeshire County Council,14-Feb-19,51300714879,"-1,317.11",ALDERTON HOUSE,CARE ESTABLISHMENT,LD - East Locality,LD - East Cambs - Special Needs,Residential Care
Cambridgeshire County Council,14-Feb-19,51300726141,"-1,317.11",ALDERTON HOUSE,CARE ESTABLISHMENT,LD - East Locality,LD - East Cambs - Special Needs,Residential Care
Cambridgeshire County Council,14-Feb-19,51300714978,"-1,317.11",ALDERTON HOUSE,CARE ESTABLISHMENT,LD - East Locality,LD - East Cambs - Special Needs,Residential Care
Cambridgeshire County Council,14-Feb-19,51300714898,"-1,317.11",ALDERTON HOUSE,CARE ESTABLISHMENT,LD - East Locality,LD - East Cambs - Special Needs,Residential Care
Cambridgeshire County Council,14-Feb-19,51300726120,"-1,317.11",ALDERTON HOUSE,CARE ESTABLISHMENT,LD - East Locality,LD - East Cambs - Special Needs,Residential Care
Cambridgeshire County Council,14-Feb-19,51300715024,"-1,317.11",ALDERTON HOUSE,CARE ESTABLISHMENT,LD - East Locality,LD - East Cambs - Special Needs,Residential Care
Cambridgeshire County Council,14-Feb-19,51300715035,"-1,317.11",ALDERTON HOUSE,CARE ESTABLISHMENT,LD - East Locality,LD - East Cambs - Special Needs,Residential Care
Cambridgeshire County Council,14-Feb-19,51300715026,"-1,317.11",ALDERTON HOUSE,CARE ESTABLISHMENT,LD - East Locality,LD - East Cambs - Special Needs,Residential Care
Cambridgeshire County Council,14-Feb-19,51300726107,"-1,317.11",ALDERTON HOUSE,CARE ESTABLISHMENT,LD - East Locality,LD - East Cambs - Special Needs,Residential Care
Cambridgeshire County Council,14-Feb-19,51300714914,"-1,317.11",ALDERTON HOUSE,CARE ESTABLISHMENT,LD - East Locality,LD - East Cambs - Special Needs,Residential Care
Cambridgeshire County Council,14-Feb-19,51300714991,"-1,317.11",ALDERTON HOUSE,CARE ESTABLISHMENT,LD - East Locality,LD - East Cambs - Special Needs,Residential Care
Cambridgeshire County Council,14-Feb-19,51300714940,"-1,317.11",ALDERTON HOUSE,CARE ESTABLISHMENT,LD - East Locality,LD - East Cambs - Special Needs,Residential Care
Cambridgeshire County Council,14-Feb-19,51300714990,"-1,317.11",ALDERTON HOUSE,CARE ESTABLISHMENT,LD - East Locality,LD - East Cambs - Special Needs,Residential Care
Cambridgeshire County Council,14-Feb-19,51300726168,"-1,317.11",ALDERTON HOUSE,CARE ESTABLISHMENT,LD - East Locality,LD - East Cambs - Special Needs,Residential Care
Cambridgeshire County Council,14-Feb-19,51300726225,"-1,317.11",ALDERTON HOUSE,CARE ESTABLISHMENT,LD - East Locality,LD - East Cambs - Special Needs,Residential Care
Cambridgeshire County Council,14-Feb-19,51300726124,"-1,317.11",ALDERTON HOUSE,CARE ESTABLISHMENT,LD - East Locality,LD - East Cambs - Care,Residential Care
Cambridgeshire County Council,14-Feb-19,51300726125,"-1,317.11",ALDERTON HOUSE,CARE ESTABLISHMENT,LD - East Locality,LD - East Cambs - Care,Residential Care
Cambridgeshire County Council,14-Feb-19,51300726138,"-1,317.11",ALDERTON HOUSE,CARE ESTABLISHMENT,LD - East Locality,LD - East Cambs - Care,Residential Care
Cambridgeshire County Council,14-Feb-19,51300714983,"-1,317.11",ALDERTON HOUSE,CARE ESTABLISHMENT,LD - East Locality,LD - East Cambs - Care,Residential Care
Cambridgeshire County Council,14-Feb-19,51300714911,"-1,317.11",ALDERTON HOUSE,CARE ESTABLISHMENT,LD - East Locality,LD - East Cambs - Care,Residential Care
Cambridgeshire County Council,14-Feb-19,51300726188,"-1,317.11",ALDERTON HOUSE,CARE ESTABLISHMENT,LD - East Locality,LD - East Cambs - Care,Residential Care
Cambridgeshire County Council,14-Feb-19,51300726203,"-1,317.11",ALDERTON HOUSE,CARE ESTABLISHMENT,LD - East Locality,LD - East Cambs - Care,Residential Care
Cambridgeshire County Council,14-Feb-19,51300726223,"-1,317.11",ALDERTON HOUSE,CARE ESTABLISHMENT,LD - East Locality,LD - East Cambs - Care,Residential Care
Cambridgeshire County Council,14-Feb-19,51300726156,"-1,317.11",ALDERTON HOUSE,CARE ESTABLISHMENT,LD - East Locality,LD - East Cambs - Care,Residential Care
Cambridgeshire County Council,14-Feb-19,51300726147,"-1,317.11",ALDERTON HOUSE,CARE ESTABLISHMENT,LD - East Locality,LD - East Cambs - Care,Residential Care
Cambridgeshire County Council,14-Feb-19,51300715010,"-1,317.11",ALDERTON HOUSE,CARE ESTABLISHMENT,LD - East Locality,LD - East Cambs - Care,Residential Care
Cambridgeshire County Council,14-Feb-19,51300726214,"-1,317.11",ALDERTON HOUSE,CARE ESTABLISHMENT,LD - East Locality,LD - East Cambs - Care,Residential Care
Cambridgeshire County Council,14-Feb-19,51300726231,"-1,317.11",ALDERTON HOUSE,CARE ESTABLISHMENT,LD - East Locality,LD - East Cambs - Care,Residential Care
Cambridgeshire County Council,14-Feb-19,51300715045,"-1,317.11",ALDERTON HOUSE,CARE ESTABLISHMENT,LD - East Locality,LD - East Cambs - Care,Residential Care
Cambridgeshire County Council,14-Feb-19,51300715046,"-1,317.11",ALDERTON HOUSE,CARE ESTABLISHMENT,LD - East Locality,LD - East Cambs - Care,Residential Care
Cambridgeshire County Council,14-Feb-19,51300726130,"-1,317.11",ALDERTON HOUSE,CARE ESTABLISHMENT,LD - East Locality,LD - East Cambs - Care,Residential Care
Cambridgeshire County Council,14-Feb-19,51300726230,"-1,317.11",ALDERTON HOUSE,CARE ESTABLISHMENT,LD - East Locality,LD - East Cambs - Care,Residential Care
Cambridgeshire County Council,14-Feb-19,51300726232,"-1,317.11",ALDERTON HOUSE,CARE ESTABLISHMENT,LD - East Locality,LD - East Cambs - Care,Residential Care
Cambridgeshire County Council,14-Feb-19,51300715040,"-1,317.11",ALDERTON HOUSE,CARE ESTABLISHMENT,LD - East Locality,LD - East Cambs - Care,Residential Care
Cambridgeshire County Council,14-Feb-19,51300726181,"-1,317.11",ALDERTON HOUSE,CARE ESTABLISHMENT,LD - East Locality,LD - East Cambs - Care,Residential Care
Cambridgeshire County Council,14-Feb-19,51300726133,"-1,317.11",ALDERTON HOUSE,CARE ESTABLISHMENT,LD - East Locality,LD - East Cambs - Care,Residential Care
Cambridgeshire County Council,14-Feb-19,51300714974,"-1,317.11",ALDERTON HOUSE,CARE ESTABLISHMENT,LD - East Locality,LD - East Cambs - Care,Residential Care
Cambridgeshire County Council,14-Feb-19,51300714913,"-1,317.11",ALDERTON HOUSE,CARE ESTABLISHMENT,LD - East Locality,LD - East Cambs - Care,Residential Care
Cambridgeshire County Council,14-Feb-19,51300714938,"-1,317.11",ALDERTON HOUSE,CARE ESTABLISHMENT,LD - East Locality,LD - East Cambs - Care,Residential Care
Cambridgeshire County Council,14-Feb-19,51300714951,"-1,317.11",ALDERTON HOUSE,CARE ESTABLISHMENT,LD - East Locality,LD - East Cambs - Care,Residential Care
Cambridgeshire County Council,14-Feb-19,51300714967,"-1,317.11",ALDERTON HOUSE,CARE ESTABLISHMENT,LD - East Locality,LD - East Cambs - Care,Residential Care
Cambridgeshire County Council,14-Feb-19,51300715003,"-1,317.11",ALDERTON HOUSE,CARE ESTABLISHMENT,LD - East Locality,LD - East Cambs - Care,Residential Care
Cambridgeshire County Council,14-Feb-19,51300726186,"-1,317.11",ALDERTON HOUSE,CARE ESTABLISHMENT,LD - East Locality,LD - East Cambs - Care,Residential Care
Cambridgeshire County Council,14-Feb-19,51300726205,"-1,317.11",ALDERTON HOUSE,CARE ESTABLISHMENT,LD - East Locality,LD - East Cambs - Care,Residential Care
Cambridgeshire County Council,14-Feb-19,51300714952,"-1,317.11",ALDERTON HOUSE,CARE ESTABLISHMENT,LD - East Locality,LD - East Cambs - Care,Residential Care
Cambridgeshire County Council,14-Feb-19,51300726109,"-1,317.11",ALDERTON HOUSE,CARE ESTABLISHMENT,LD - East Locality,LD - East Cambs - Care,Residential Care
Cambridgeshire County Council,14-Feb-19,51300726118,"-1,317.11",ALDERTON HOUSE,CARE ESTABLISHMENT,LD - East Locality,LD - East Cambs - Care,Residential Care
Cambridgeshire County Council,14-Feb-19,51300726114,"-1,317.11",ALDERTON HOUSE,CARE ESTABLISHMENT,LD - East Locality,LD - East Cambs - Care,Residential Care
Cambridgeshire County Council,14-Feb-19,51300726122,"-1,317.11",ALDERTON HOUSE,CARE ESTABLISHMENT,LD - East Locality,LD - East Cambs - Care,Residential Care
Cambridgeshire County Council,14-Feb-19,51300714968,"-1,317.11",ALDERTON HOUSE,CARE ESTABLISHMENT,LD - East Locality,LD - East Cambs - Care,Residential Care
Cambridgeshire County Council,14-Feb-19,51300714966,"-1,317.11",ALDERTON HOUSE,CARE ESTABLISHMENT,LD - East Locality,LD - East Cambs - Care,Residential Care
Cambridgeshire County Council,14-Feb-19,51300726087,"-1,317.11",ALDERTON HOUSE,CARE ESTABLISHMENT,LD - East Locality,LD - East Cambs - Care,Residential Care
Cambridgeshire County Council,14-Feb-19,51300714941,"-1,317.11",ALDERTON HOUSE,CARE ESTABLISHMENT,LD - East Locality,LD - East Cambs - Care,Residential Care
Cambridgeshire County Council,14-Feb-19,51300726097,"-1,317.11",ALDERTON HOUSE,CARE ESTABLISHMENT,LD - East Locality,LD - East Cambs - Care,Residential Care
Cambridgeshire County Council,14-Feb-19,51300726137,"-1,317.11",ALDERTON HOUSE,CARE ESTABLISHMENT,LD - East Locality,LD - East Cambs - Care,Residential Care
Cambridgeshire County Council,14-Feb-19,51300715037,"-1,317.11",ALDERTON HOUSE,CARE ESTABLISHMENT,LD - East Locality,LD - East Cambs - Care,Residential Care
Cambridgeshire County Council,14-Feb-19,51300714975,"-1,317.11",ALDERTON HOUSE,CARE ESTABLISHMENT,LD - East Locality,LD - East Cambs - Care,Residential Care
Cambridgeshire County Council,14-Feb-19,51300726078,"-1,317.11",ALDERTON HOUSE,CARE ESTABLISHMENT,LD - East Locality,LD - East Cambs - Care,Residential Care
Cambridgeshire County Council,14-Feb-19,51300714900,"-1,317.11",ALDERTON HOUSE,CARE ESTABLISHMENT,LD - East Locality,LD - East Cambs - Care,Residential Care
Cambridgeshire County Council,14-Feb-19,51300726164,"-1,317.11",ALDERTON HOUSE,CARE ESTABLISHMENT,LD - East Locality,LD - East Cambs - Care,Residential Care
Cambridgeshire County Council,14-Feb-19,51300714954,"-1,317.11",ALDERTON HOUSE,CARE ESTABLISHMENT,LD - East Locality,LD - East Cambs - Care,Residential Care
Cambridgeshire County Council,14-Feb-19,51300726085,"-1,317.11",ALDERTON HOUSE,CARE ESTABLISHMENT,LD - East Locality,LD - East Cambs - Care,Residential Care
Cambridgeshire County Council,14-Feb-19,51300726082,"-1,317.11",ALDERTON HOUSE,CARE ESTABLISHMENT,LD - East Locality,LD - East Cambs - Care,Residential Care
Cambridgeshire County Council,14-Feb-19,51300726131,"-1,317.11",ALDERTON HOUSE,CARE ESTABLISHMENT,LD - East Locality,LD - East Cambs - Care,Residential Care
Cambridgeshire County Council,14-Feb-19,51300714925,"-1,317.11",ALDERTON HOUSE,CARE ESTABLISHMENT,LD - East Locality,LD - East Cambs - Care,Residential Care
Cambridgeshire County Council,14-Feb-19,51300714949,"-1,317.11",ALDERTON HOUSE,CARE ESTABLISHMENT,LD - East Locality,LD - East Cambs - Care,Residential Care
Cambridgeshire County Council,14-Feb-19,51300726155,"-1,317.11",ALDERTON HOUSE,CARE ESTABLISHMENT,LD - East Locality,LD - East Cambs - Care,Residential Care
Cambridgeshire County Council,14-Feb-19,51300726195,"-1,317.11",ALDERTON HOUSE,CARE ESTABLISHMENT,LD - East Locality,LD - East Cambs - Care,Residential Care
Cambridgeshire County Council,14-Feb-19,51300714890,"-1,317.11",ALDERTON HOUSE,CARE ESTABLISHMENT,LD - East Locality,LD - East Cambs - Special Needs,Residential Care
Cambridgeshire County Council,14-Feb-19,51300726189,"-1,317.11",ALDERTON HOUSE,CARE ESTABLISHMENT,LD - East Locality,LD - East Cambs - Special Needs,Residential Care
Cambridgeshire County Council,22-Feb-19,51300733808,"-1,280.64",LGSS LAW LTD,TRADE SUPPLIER,Legal Proceedings,Legal Proceedings,External Legal Fees
Cambridgeshire County Council,07-Feb-19,51300622850,"-1,262.86",EDEN VIEW,CARE ESTABLISHMENT,Physical Disablity,Countywide PD Service - Care,Nursing Care
Cambridgeshire County Council,07-Feb-19,51300714289,"-1,243.75",WOODLANDS CARE CENTRE,CARE ESTABLISHMENT,OPMH - City & South,Older People Mental Health City & South,Nursing Care
Cambridgeshire County Council,07-Feb-19,51300714290,"-1,243.75",WOODLANDS CARE CENTRE,CARE ESTABLISHMENT,OPMH - City & South,Older People Mental Health City & South,Nursing Care
Cambridgeshire County Council,07-Feb-19,51300714291,"-1,243.75",WOODLANDS CARE CENTRE,CARE ESTABLISHMENT,OPMH - City & South,Older People Mental Health City & South,Nursing Care
Cambridgeshire County Council,07-Feb-19,51300714278,"-1,243.75",WOODLANDS CARE CENTRE,CARE ESTABLISHMENT,OPMH - City & South,Older People Mental Health City & South,Nursing Care
Cambridgeshire County Council,07-Feb-19,51300714277,"-1,243.75",WOODLANDS CARE CENTRE,CARE ESTABLISHMENT,OPMH - City & South,Older People Mental Health City & South,Nursing Care
Cambridgeshire County Council,07-Feb-19,51300714279,"-1,243.75",WOODLANDS CARE CENTRE,CARE ESTABLISHMENT,OPMH - City & South,Older People Mental Health City & South,Nursing Care
Cambridgeshire County Council,07-Feb-19,51300714295,"-1,243.75",WOODLANDS CARE CENTRE,CARE ESTABLISHMENT,OPMH - City & South,Older People Mental Health City & South,Nursing Care
Cambridgeshire County Council,07-Feb-19,51300714298,"-1,243.75",WOODLANDS CARE CENTRE,CARE ESTABLISHMENT,OPMH - City & South,Older People Mental Health City & South,Nursing Care
Cambridgeshire County Council,07-Feb-19,51300714296,"-1,243.75",WOODLANDS CARE CENTRE,CARE ESTABLISHMENT,OPMH - City & South,Older People Mental Health City & South,Nursing Care
Cambridgeshire County Council,07-Feb-19,51300714146,"-1,233.16",VOYAGE,CARE ESTABLISHMENT,LD - South Locality,LD - South Cambs - Special Needs,Residential Care
Cambridgeshire County Council,07-Feb-19,51300717287,"-1,233.16",VOYAGE,CARE ESTABLISHMENT,LD - South Locality,LD - South Cambs - Special Needs,Residential Care
Cambridgeshire County Council,07-Feb-19,51300715386,"-1,227.76",VOYAGE,CARE ESTABLISHMENT,LD - City Locality,LD - City - Special Needs,Residential Care
Cambridgeshire County Council,07-Feb-19,51300715390,"-1,227.76",VOYAGE,CARE ESTABLISHMENT,LD - City Locality,LD - City - Special Needs,Residential Care
Cambridgeshire County Council,07-Feb-19,51300715380,"-1,227.76",VOYAGE,CARE ESTABLISHMENT,LD - City Locality,LD - City - Special Needs,Residential Care
Cambridgeshire County Council,07-Feb-19,51300715388,"-1,227.76",VOYAGE,CARE ESTABLISHMENT,LD - City Locality,LD - City - Special Needs,Residential Care
Cambridgeshire County Council,07-Feb-19,51300715381,"-1,227.76",VOYAGE,CARE ESTABLISHMENT,LD - City Locality,LD - City - Special Needs,Residential Care
Cambridgeshire County Council,07-Feb-19,51300716393,"-1,222.49",VOYAGE,CARE ESTABLISHMENT,LD - South Locality,LD - South Cambs - Special Needs,Residential Care
Cambridgeshire County Council,25-Feb-19,51300733852,"-1,200.00",MOTT MACDONALD LTD,TRADE SUPPLIER,GCP - A428 Corridor,GCP - A428 Corridor,Construction - External Professional Fees
Cambridgeshire County Council,14-Feb-19,51300731068,"-1,198.04",CARETECH COMMUNITY SERVICES,CARE ESTABLISHMENT,LD - South Locality,LD - South Cambs - Special Needs,Residential Care
Cambridgeshire County Council,21-Feb-19,51300741642,"-1,198.04",CARETECH COMMUNITY SERVICES,CARE ESTABLISHMENT,LD - South Locality,LD - South Cambs - Special Needs,Residential Care
Cambridgeshire County Council,07-Feb-19,51300722317,"-1,198.04",CARETECH COMMUNITY SERVICES,CARE ESTABLISHMENT,LD - South Locality,LD - South Cambs - Special Needs,Residential Care
Cambridgeshire County Council,07-Feb-19,51300722364,"-1,198.04",CARETECH COMMUNITY SERVICES,CARE ESTABLISHMENT,LD - South Locality,LD - South Cambs - Special Needs,Residential Care
Cambridgeshire County Council,21-Feb-19,51300741633,"-1,198.04",CARETECH COMMUNITY SERVICES,CARE ESTABLISHMENT,LD - South Locality,LD - South Cambs - Special Needs,Residential Care
Cambridgeshire County Council,21-Feb-19,51300741615,"-1,198.04",CARETECH COMMUNITY SERVICES,CARE ESTABLISHMENT,LD - South Locality,LD - South Cambs - Special Needs,Residential Care
Cambridgeshire County Council,14-Feb-19,51300731021,"-1,198.04",CARETECH COMMUNITY SERVICES,CARE ESTABLISHMENT,LD - South Locality,LD - South Cambs - Special Needs,Residential Care
Cambridgeshire County Council,14-Feb-19,51300731063,"-1,198.04",CARETECH COMMUNITY SERVICES,CARE ESTABLISHMENT,LD - South Locality,LD - South Cambs - Special Needs,Residential Care
Cambridgeshire County Council,14-Feb-19,51300731029,"-1,198.04",CARETECH COMMUNITY SERVICES,CARE ESTABLISHMENT,LD - South Locality,LD - South Cambs - Special Needs,Residential Care
Cambridgeshire County Council,14-Feb-19,51300731034,"-1,198.04",CARETECH COMMUNITY SERVICES,CARE ESTABLISHMENT,LD - South Locality,LD - South Cambs - Special Needs,Residential Care
Cambridgeshire County Council,14-Feb-19,51300731030,"-1,198.04",CARETECH COMMUNITY SERVICES,CARE ESTABLISHMENT,LD - South Locality,LD - South Cambs - Special Needs,Residential Care
Cambridgeshire County Council,14-Feb-19,51300731048,"-1,198.04",CARETECH COMMUNITY SERVICES,CARE ESTABLISHMENT,LD - South Locality,LD - South Cambs - Special Needs,Residential Care
Cambridgeshire County Council,14-Feb-19,51300731062,"-1,198.04",CARETECH COMMUNITY SERVICES,CARE ESTABLISHMENT,LD - South Locality,LD - South Cambs - Special Needs,Residential Care
Cambridgeshire County Council,14-Feb-19,51300731065,"-1,198.04",CARETECH COMMUNITY SERVICES,CARE ESTABLISHMENT,LD - South Locality,LD - South Cambs - Special Needs,Residential Care
Cambridgeshire County Council,14-Feb-19,51300731069,"-1,198.04",CARETECH COMMUNITY SERVICES,CARE ESTABLISHMENT,LD - South Locality,LD - South Cambs - Special Needs,Residential Care
Cambridgeshire County Council,14-Feb-19,51300731058,"-1,198.04",CARETECH COMMUNITY SERVICES,CARE ESTABLISHMENT,LD - South Locality,LD - South Cambs - Special Needs,Residential Care
Cambridgeshire County Council,14-Feb-19,51300731055,"-1,198.04",CARETECH COMMUNITY SERVICES,CARE ESTABLISHMENT,LD - South Locality,LD - South Cambs - Special Needs,Residential Care
Cambridgeshire County Council,14-Feb-19,51300731059,"-1,198.04",CARETECH COMMUNITY SERVICES,CARE ESTABLISHMENT,LD - South Locality,LD - South Cambs - Special Needs,Residential Care
Cambridgeshire County Council,07-Feb-19,51300722352,"-1,198.04",CARETECH COMMUNITY SERVICES,CARE ESTABLISHMENT,LD - South Locality,LD - South Cambs - Care,Residential Care
Cambridgeshire County Council,07-Feb-19,51300722324,"-1,198.04",CARETECH COMMUNITY SERVICES,CARE ESTABLISHMENT,LD - South Locality,LD - South Cambs - Care,Residential Care
Cambridgeshire County Council,07-Feb-19,51300722332,"-1,198.04",CARETECH COMMUNITY SERVICES,CARE ESTABLISHMENT,LD - South Locality,LD - South Cambs - Care,Residential Care
Cambridgeshire County Council,07-Feb-19,51300722354,"-1,198.04",CARETECH COMMUNITY SERVICES,CARE ESTABLISHMENT,LD - South Locality,LD - South Cambs - Care,Residential Care
Cambridgeshire County Council,07-Feb-19,51300722331,"-1,198.04",CARETECH COMMUNITY SERVICES,CARE ESTABLISHMENT,LD - South Locality,LD - South Cambs - Care,Residential Care
Cambridgeshire County Council,07-Feb-19,51300722359,"-1,198.04",CARETECH COMMUNITY SERVICES,CARE ESTABLISHMENT,LD - South Locality,LD - South Cambs - Care,Residential Care
Cambridgeshire County Council,07-Feb-19,51300722329,"-1,198.04",CARETECH COMMUNITY SERVICES,CARE ESTABLISHMENT,LD - South Locality,LD - South Cambs - Care,Residential Care
Cambridgeshire County Council,07-Feb-19,51300722336,"-1,198.04",CARETECH COMMUNITY SERVICES,CARE ESTABLISHMENT,LD - South Locality,LD - South Cambs - Care,Residential Care
Cambridgeshire County Council,07-Feb-19,51300722349,"-1,198.04",CARETECH COMMUNITY SERVICES,CARE ESTABLISHMENT,LD - South Locality,LD - South Cambs - Care,Residential Care
Cambridgeshire County Council,07-Feb-19,51300722321,"-1,198.04",CARETECH COMMUNITY SERVICES,CARE ESTABLISHMENT,LD - South Locality,LD - South Cambs - Care,Residential Care
Cambridgeshire County Council,07-Feb-19,51300722320,"-1,198.04",CARETECH COMMUNITY SERVICES,CARE ESTABLISHMENT,LD - South Locality,LD - South Cambs - Care,Residential Care
Cambridgeshire County Council,21-Feb-19,51300741628,"-1,198.04",CARETECH COMMUNITY SERVICES,CARE ESTABLISHMENT,LD - South Locality,LD - South Cambs - Care,Residential Care
Cambridgeshire County Council,21-Feb-19,51300741625,"-1,198.04",CARETECH COMMUNITY SERVICES,CARE ESTABLISHMENT,LD - South Locality,LD - South Cambs - Care,Residential Care
Cambridgeshire County Council,21-Feb-19,51300741620,"-1,198.04",CARETECH COMMUNITY SERVICES,CARE ESTABLISHMENT,LD - South Locality,LD - South Cambs - Care,Residential Care
Cambridgeshire County Council,21-Feb-19,51300741637,"-1,198.04",CARETECH COMMUNITY SERVICES,CARE ESTABLISHMENT,LD - South Locality,LD - South Cambs - Care,Residential Care
Cambridgeshire County Council,21-Feb-19,51300741623,"-1,198.04",CARETECH COMMUNITY SERVICES,CARE ESTABLISHMENT,LD - South Locality,LD - South Cambs - Care,Residential Care
Cambridgeshire County Council,21-Feb-19,51300741635,"-1,198.04",CARETECH COMMUNITY SERVICES,CARE ESTABLISHMENT,LD - South Locality,LD - South Cambs - Care,Residential Care
Cambridgeshire County Council,07-Feb-19,51300722345,"-1,198.04",CARETECH COMMUNITY SERVICES,CARE ESTABLISHMENT,LD - South Locality,LD - South Cambs - Care,Residential Care
Cambridgeshire County Council,07-Feb-19,51300722347,"-1,198.04",CARETECH COMMUNITY SERVICES,CARE ESTABLISHMENT,LD - South Locality,LD - South Cambs - Care,Residential Care
Cambridgeshire County Council,14-Feb-19,51300731026,"-1,198.04",CARETECH COMMUNITY SERVICES,CARE ESTABLISHMENT,LD - South Locality,LD - South Cambs - Care,Residential Care
Cambridgeshire County Council,14-Feb-19,51300731066,"-1,198.04",CARETECH COMMUNITY SERVICES,CARE ESTABLISHMENT,LD - South Locality,LD - South Cambs - Care,Residential Care
Cambridgeshire County Council,14-Feb-19,51300731036,"-1,198.04",CARETECH COMMUNITY SERVICES,CARE ESTABLISHMENT,LD - South Locality,LD - South Cambs - Care,Residential Care
Cambridgeshire County Council,14-Feb-19,51300731025,"-1,198.04",CARETECH COMMUNITY SERVICES,CARE ESTABLISHMENT,LD - South Locality,LD - South Cambs - Care,Residential Care
Cambridgeshire County Council,14-Feb-19,51300731070,"-1,198.04",CARETECH COMMUNITY SERVICES,CARE ESTABLISHMENT,LD - South Locality,LD - South Cambs - Care,Residential Care
Cambridgeshire County Council,14-Feb-19,51300731064,"-1,198.04",CARETECH COMMUNITY SERVICES,CARE ESTABLISHMENT,LD - South Locality,LD - South Cambs - Care,Residential Care
Cambridgeshire County Council,14-Feb-19,51300731024,"-1,198.04",CARETECH COMMUNITY SERVICES,CARE ESTABLISHMENT,LD - South Locality,LD - South Cambs - Care,Residential Care
Cambridgeshire County Council,14-Feb-19,51300731053,"-1,198.04",CARETECH COMMUNITY SERVICES,CARE ESTABLISHMENT,LD - South Locality,LD - South Cambs - Care,Residential Care
Cambridgeshire County Council,14-Feb-19,51300731057,"-1,198.04",CARETECH COMMUNITY SERVICES,CARE ESTABLISHMENT,LD - South Locality,LD - South Cambs - Care,Residential Care
Cambridgeshire County Council,14-Feb-19,51300731051,"-1,198.04",CARETECH COMMUNITY SERVICES,CARE ESTABLISHMENT,LD - South Locality,LD - South Cambs - Care,Residential Care
Cambridgeshire County Council,14-Feb-19,51300731031,"-1,198.04",CARETECH COMMUNITY SERVICES,CARE ESTABLISHMENT,LD - South Locality,LD - South Cambs - Care,Residential Care
Cambridgeshire County Council,14-Feb-19,51300731038,"-1,198.04",CARETECH COMMUNITY SERVICES,CARE ESTABLISHMENT,LD - South Locality,LD - South Cambs - Care,Residential Care
Cambridgeshire County Council,14-Feb-19,51300731035,"-1,198.04",CARETECH COMMUNITY SERVICES,CARE ESTABLISHMENT,LD - South Locality,LD - South Cambs - Care,Residential Care
Cambridgeshire County Council,14-Feb-19,51300731046,"-1,198.04",CARETECH COMMUNITY SERVICES,CARE ESTABLISHMENT,LD - South Locality,LD - South Cambs - Care,Residential Care
Cambridgeshire County Council,07-Feb-19,51300722340,"-1,198.04",CARETECH COMMUNITY SERVICES,CARE ESTABLISHMENT,LD - South Locality,LD - South Cambs - Care,Residential Care
Cambridgeshire County Council,07-Feb-19,51300722350,"-1,198.04",CARETECH COMMUNITY SERVICES,CARE ESTABLISHMENT,LD - South Locality,LD - South Cambs - Care,Residential Care
Cambridgeshire County Council,21-Feb-19,51300741601,"-1,198.04",CARETECH COMMUNITY SERVICES,CARE ESTABLISHMENT,LD - South Locality,LD - South Cambs - Care,Residential Care
Cambridgeshire County Council,21-Feb-19,51300741647,"-1,198.04",CARETECH COMMUNITY SERVICES,CARE ESTABLISHMENT,LD - South Locality,LD - South Cambs - Care,Residential Care
Cambridgeshire County Council,21-Feb-19,51300741641,"-1,198.04",CARETECH COMMUNITY SERVICES,CARE ESTABLISHMENT,LD - South Locality,LD - South Cambs - Care,Residential Care
Cambridgeshire County Council,21-Feb-19,51300741645,"-1,198.04",CARETECH COMMUNITY SERVICES,CARE ESTABLISHMENT,LD - South Locality,LD - South Cambs - Care,Residential Care
Cambridgeshire County Council,21-Feb-19,51300741599,"-1,198.04",CARETECH COMMUNITY SERVICES,CARE ESTABLISHMENT,LD - South Locality,LD - South Cambs - Care,Residential Care
Cambridgeshire County Council,21-Feb-19,51300741609,"-1,198.04",CARETECH COMMUNITY SERVICES,CARE ESTABLISHMENT,LD - South Locality,LD - South Cambs - Special Needs,Residential Care
Cambridgeshire County Council,21-Feb-19,51300741598,"-1,198.04",CARETECH COMMUNITY SERVICES,CARE ESTABLISHMENT,LD - South Locality,LD - South Cambs - Special Needs,Residential Care
Cambridgeshire County Council,21-Feb-19,51300741617,"-1,198.04",CARETECH COMMUNITY SERVICES,CARE ESTABLISHMENT,LD - South Locality,LD - South Cambs - Special Needs,Residential Care
Cambridgeshire County Council,21-Feb-19,51300741632,"-1,198.04",CARETECH COMMUNITY SERVICES,CARE ESTABLISHMENT,LD - South Locality,LD - South Cambs - Special Needs,Residential Care
Cambridgeshire County Council,21-Feb-19,51300741612,"-1,198.04",CARETECH COMMUNITY SERVICES,CARE ESTABLISHMENT,LD - South Locality,LD - South Cambs - Special Needs,Residential Care
Cambridgeshire County Council,21-Feb-19,51300741638,"-1,198.04",CARETECH COMMUNITY SERVICES,CARE ESTABLISHMENT,LD - South Locality,LD - South Cambs - Special Needs,Residential Care
Cambridgeshire County Council,21-Feb-19,51300741646,"-1,198.04",CARETECH COMMUNITY SERVICES,CARE ESTABLISHMENT,LD - South Locality,LD - South Cambs - Special Needs,Residential Care
Cambridgeshire County Council,21-Feb-19,51300741603,"-1,198.04",CARETECH COMMUNITY SERVICES,CARE ESTABLISHMENT,LD - South Locality,LD - South Cambs - Special Needs,Residential Care
Cambridgeshire County Council,07-Feb-19,51300722330,"-1,198.04",CARETECH COMMUNITY SERVICES,CARE ESTABLISHMENT,LD - South Locality,LD - South Cambs - Special Needs,Residential Care
Cambridgeshire County Council,07-Feb-19,51300722341,"-1,198.04",CARETECH COMMUNITY SERVICES,CARE ESTABLISHMENT,LD - South Locality,LD - South Cambs - Special Needs,Residential Care
Cambridgeshire County Council,07-Feb-19,51300722346,"-1,198.04",CARETECH COMMUNITY SERVICES,CARE ESTABLISHMENT,LD - South Locality,LD - South Cambs - Special Needs,Residential Care
Cambridgeshire County Council,07-Feb-19,51300722361,"-1,198.04",CARETECH COMMUNITY SERVICES,CARE ESTABLISHMENT,LD - South Locality,LD - South Cambs - Special Needs,Residential Care
Cambridgeshire County Council,07-Feb-19,51300722323,"-1,198.04",CARETECH COMMUNITY SERVICES,CARE ESTABLISHMENT,LD - South Locality,LD - South Cambs - Special Needs,Residential Care
Cambridgeshire County Council,07-Feb-19,51300722363,"-1,198.04",CARETECH COMMUNITY SERVICES,CARE ESTABLISHMENT,LD - South Locality,LD - South Cambs - Special Needs,Residential Care
Cambridgeshire County Council,07-Feb-19,51300722318,"-1,198.04",CARETECH COMMUNITY SERVICES,CARE ESTABLISHMENT,LD - South Locality,LD - South Cambs - Special Needs,Residential Care
Cambridgeshire County Council,21-Feb-19,51300741630,"-1,198.04",CARETECH COMMUNITY SERVICES,CARE ESTABLISHMENT,LD - South Locality,LD - South Cambs - Special Needs,Residential Care
Cambridgeshire County Council,07-Feb-19,51300722335,"-1,198.04",CARETECH COMMUNITY SERVICES,CARE ESTABLISHMENT,LD - South Locality,LD - South Cambs - Special Needs,Residential Care
Cambridgeshire County Council,21-Feb-19,51300741610,"-1,198.04",CARETECH COMMUNITY SERVICES,CARE ESTABLISHMENT,LD - South Locality,LD - South Cambs - Special Needs,Residential Care
Cambridgeshire County Council,21-Feb-19,51300741616,"-1,198.04",CARETECH COMMUNITY SERVICES,CARE ESTABLISHMENT,LD - South Locality,LD - South Cambs - Special Needs,Residential Care
Cambridgeshire County Council,21-Feb-19,51300741619,"-1,198.04",CARETECH COMMUNITY SERVICES,CARE ESTABLISHMENT,LD - South Locality,LD - South Cambs - Special Needs,Residential Care
Cambridgeshire County Council,21-Feb-19,51300741627,"-1,198.04",CARETECH COMMUNITY SERVICES,CARE ESTABLISHMENT,LD - South Locality,LD - South Cambs - Special Needs,Residential Care
Cambridgeshire County Council,07-Feb-19,51300722376,"-1,198.04",CARETECH COMMUNITY SERVICES,CARE ESTABLISHMENT,LD - South Locality,LD - South Cambs - Special Needs,Residential Care
Cambridgeshire County Council,07-Feb-19,51300722337,"-1,198.04",CARETECH COMMUNITY SERVICES,CARE ESTABLISHMENT,LD - South Locality,LD - South Cambs - Special Needs,Residential Care
Cambridgeshire County Council,07-Feb-19,51300715984,"-1,152.85",VOYAGE,CARE ESTABLISHMENT,LD - South Locality,LD - South Cambs - Special Needs,Residential Care
Cambridgeshire County Council,07-Feb-19,51300714614,"-1,152.85",VOYAGE,CARE ESTABLISHMENT,LD - South Locality,LD - South Cambs - Special Needs,Residential Care
Cambridgeshire County Council,05-Feb-19,51300610424,"-1,143.69",SARAH LEE & CO,TRADE SUPPLIER,GCP - Developing 12 cycling greenways,GCP - Developing 12 cycling greenways,Construction - External Professional Fees
Cambridgeshire County Council,14-Feb-19,51300729381,"-1,138.66",CARE MANAGEMENT GROUP (64-66 CARLTON),CARE ESTABLISHMENT,LD - East Locality,LD - East Cambs - Special Needs,Residential Care
Cambridgeshire County Council,14-Feb-19,51300720113,"-1,138.66",CARE MANAGEMENT GROUP (64-66 CARLTON),CARE ESTABLISHMENT,LD - East Locality,LD - East Cambs - Special Needs,Residential Care
Cambridgeshire County Council,14-Feb-19,51300726090,"-1,128.95",ALDERTON HOUSE,CARE ESTABLISHMENT,LD - East Locality,LD - East Cambs - Special Needs,Residential Care
Cambridgeshire County Council,14-Feb-19,51300715041,"-1,128.95",ALDERTON HOUSE,CARE ESTABLISHMENT,LD - East Locality,LD - East Cambs - Care,Residential Care
Cambridgeshire County Council,07-Feb-19,51300717490,"-1,116.84",WOODLANDS CARE CENTRE,CARE ESTABLISHMENT,OPMH - City & South,Older People Mental Health City & South,Nursing Care
Cambridgeshire County Council,07-Feb-19,51300717489,"-1,116.84",WOODLANDS CARE CENTRE,CARE ESTABLISHMENT,OPMH - City & South,Older People Mental Health City & South,Nursing Care
Cambridgeshire County Council,07-Feb-19,51300717499,"-1,116.84",WOODLANDS CARE CENTRE,CARE ESTABLISHMENT,OPMH - City & South,Older People Mental Health City & South,Nursing Care
Cambridgeshire County Council,07-Feb-19,51300717495,"-1,116.84",WOODLANDS CARE CENTRE,CARE ESTABLISHMENT,OPMH - City & South,Older People Mental Health City & South,Nursing Care
Cambridgeshire County Council,07-Feb-19,51300717487,"-1,116.84",WOODLANDS CARE CENTRE,CARE ESTABLISHMENT,OPMH - City & South,Older People Mental Health City & South,Nursing Care
Cambridgeshire County Council,07-Feb-19,51300717492,"-1,116.84",WOODLANDS CARE CENTRE,CARE ESTABLISHMENT,OPMH - City & South,Older People Mental Health City & South,Nursing Care
Cambridgeshire County Council,07-Feb-19,51300717486,"-1,116.84",WOODLANDS CARE CENTRE,CARE ESTABLISHMENT,OPMH - City & South,Older People Mental Health City & South,Nursing Care
Cambridgeshire County Council,07-Feb-19,51300717498,"-1,116.84",WOODLANDS CARE CENTRE,CARE ESTABLISHMENT,OPMH - City & South,Older People Mental Health City & South,Nursing Care
Cambridgeshire County Council,07-Feb-19,51300717500,"-1,116.84",WOODLANDS CARE CENTRE,CARE ESTABLISHMENT,OPMH - City & South,Older People Mental Health City & South,Nursing Care
Cambridgeshire County Council,07-Feb-19,51300715385,"-1,052.37",VOYAGE,CARE ESTABLISHMENT,LD - City Locality,LD - City - Special Needs,Residential Care
Cambridgeshire County Council,21-Feb-19,51300729791,"-1,044.95",BARCHESTER HEALTHCARE HOMES LTD,CARE ESTABLISHMENT,OP - East Cambs Locality,East Cambs - O P Team,Nursing Care
Cambridgeshire County Council,21-Feb-19,51300729794,"-1,044.95",BARCHESTER HEALTHCARE HOMES LTD,CARE ESTABLISHMENT,OP - East Cambs Locality,East Cambs - O P Team,Nursing Care
Cambridgeshire County Council,21-Feb-19,51300729796,"-1,044.95",BARCHESTER HEALTHCARE HOMES LTD,CARE ESTABLISHMENT,OP - East Cambs Locality,East Cambs - O P Team,Nursing Care
Cambridgeshire County Council,21-Feb-19,51300729798,"-1,044.95",BARCHESTER HEALTHCARE HOMES LTD,CARE ESTABLISHMENT,OP - East Cambs Locality,East Cambs - O P Team,Nursing Care
Cambridgeshire County Council,21-Feb-19,51300729799,"-1,044.95",BARCHESTER HEALTHCARE HOMES LTD,CARE ESTABLISHMENT,OP - East Cambs Locality,East Cambs - O P Team,Nursing Care
Cambridgeshire County Council,21-Feb-19,51300729793,"-1,044.95",BARCHESTER HEALTHCARE HOMES LTD,CARE ESTABLISHMENT,OP - East Cambs Locality,East Cambs - O P Team,Nursing Care
Cambridgeshire County Council,21-Feb-19,51300729792,"-1,044.95",BARCHESTER HEALTHCARE HOMES LTD,CARE ESTABLISHMENT,OP - East Cambs Locality,East Cambs - O P Team,Nursing Care
Cambridgeshire County Council,21-Feb-19,51300729797,"-1,044.95",BARCHESTER HEALTHCARE HOMES LTD,CARE ESTABLISHMENT,OP - East Cambs Locality,East Cambs - O P Team,Nursing Care
Cambridgeshire County Council,21-Feb-19,51300741597,"-1,026.89",CARETECH COMMUNITY SERVICES,CARE ESTABLISHMENT,LD - South Locality,LD - South Cambs - Special Needs,Residential Care
Cambridgeshire County Council,07-Feb-19,51300722342,"-1,026.89",CARETECH COMMUNITY SERVICES,CARE ESTABLISHMENT,LD - South Locality,LD - South Cambs - Care,Residential Care
Cambridgeshire County Council,14-Feb-19,51300731042,"-1,026.89",CARETECH COMMUNITY SERVICES,CARE ESTABLISHMENT,LD - South Locality,LD - South Cambs - Special Needs,Residential Care
Cambridgeshire County Council,07-Feb-19,51300719560,-960.68,CAMBRIDGE MANOR CARE HOME (TLC),CARE ESTABLISHMENT,OPMH - City & South,Older People Mental Health City & South,Nursing Care
Cambridgeshire County Council,21-Feb-19,51300735701,-950.00,WOODLANDS CARE CENTRE,CARE ESTABLISHMENT,OP - City & South Locality,Older People - City & South,Nursing Care
Cambridgeshire County Council,21-Feb-19,51300735710,-950.00,WOODLANDS CARE CENTRE,CARE ESTABLISHMENT,OP - City & South Locality,Older People - City & South,Nursing Care
Cambridgeshire County Council,21-Feb-19,51300735692,-950.00,WOODLANDS CARE CENTRE,CARE ESTABLISHMENT,OP - City & South Locality,Older People - City & South,Nursing Care
Cambridgeshire County Council,21-Feb-19,51300735702,-950.00,WOODLANDS CARE CENTRE,CARE ESTABLISHMENT,OP - City & South Locality,Older People - City & South,Nursing Care
Cambridgeshire County Council,21-Feb-19,51300735703,-950.00,WOODLANDS CARE CENTRE,CARE ESTABLISHMENT,OP - City & South Locality,Older People - City & South,Nursing Care
Cambridgeshire County Council,21-Feb-19,51300735693,-950.00,WOODLANDS CARE CENTRE,CARE ESTABLISHMENT,OP - City & South Locality,Older People - City & South,Nursing Care
Cambridgeshire County Council,21-Feb-19,51300735700,-950.00,WOODLANDS CARE CENTRE,CARE ESTABLISHMENT,OP - City & South Locality,Older People - City & South,Nursing Care
Cambridgeshire County Council,21-Feb-19,51300735707,-950.00,WOODLANDS CARE CENTRE,CARE ESTABLISHMENT,OP - City & South Locality,Older People - City & South,Nursing Care
Cambridgeshire County Council,21-Feb-19,51300735716,-950.00,WOODLANDS CARE CENTRE,CARE ESTABLISHMENT,OP - City & South Locality,Older People - City & South,Nursing Care
Cambridgeshire County Council,21-Feb-19,51300735711,-950.00,WOODLANDS CARE CENTRE,CARE ESTABLISHMENT,OP - City & South Locality,Older People - City & South,Nursing Care
Cambridgeshire County Council,21-Feb-19,51300735708,-950.00,WOODLANDS CARE CENTRE,CARE ESTABLISHMENT,OP - City & South Locality,Older People - City & South,Nursing Care
Cambridgeshire County Council,07-Feb-19,51300623760,-939.90,EDEN VIEW,CARE ESTABLISHMENT,OP - East Cambs Locality,East Cambs - O P Team,Nursing Care
Cambridgeshire County Council,07-Feb-19,51300623762,-939.90,EDEN VIEW,CARE ESTABLISHMENT,OP - East Cambs Locality,East Cambs - O P Team,Nursing Care
Cambridgeshire County Council,14-Feb-19,51300725766,-900.00,AVERY HOUSE CARE HOME,CARE ESTABLISHMENT,OP - Hunts Locality,Hunts O P  Team,Nursing Care
Cambridgeshire County Council,14-Feb-19,51300725781,-900.00,AVERY HOUSE CARE HOME,CARE ESTABLISHMENT,OP - Hunts Locality,Hunts O P  Team,Residential Care
Cambridgeshire County Council,14-Feb-19,51300725772,-900.00,AVERY HOUSE CARE HOME,CARE ESTABLISHMENT,OP - Hunts Locality,Hunts O P  Team,Residential Care
Cambridgeshire County Council,14-Feb-19,51300725790,-900.00,AVERY HOUSE CARE HOME,CARE ESTABLISHMENT,OP - Hunts Locality,Hunts O P  Team,Nursing Care
Cambridgeshire County Council,14-Feb-19,51300725751,-900.00,AVERY HOUSE CARE HOME,CARE ESTABLISHMENT,OP - Hunts Locality,Hunts O P  Team,Residential Care
Cambridgeshire County Council,14-Feb-19,51300714397,-900.00,AVERY HOUSE CARE HOME,CARE ESTABLISHMENT,OP - Hunts Locality,Hunts O P  Team,Nursing Care
Cambridgeshire County Council,14-Feb-19,51300714399,-900.00,AVERY HOUSE CARE HOME,CARE ESTABLISHMENT,OP - Hunts Locality,Hunts O P  Team,Nursing Care
Cambridgeshire County Council,14-Feb-19,51300725760,-900.00,AVERY HOUSE CARE HOME,CARE ESTABLISHMENT,OP - Hunts Locality,Hunts O P  Team,Residential Care
Cambridgeshire County Council,14-Feb-19,51300714378,-900.00,AVERY HOUSE CARE HOME,CARE ESTABLISHMENT,OP - Hunts Locality,Hunts O P  Team,Nursing Care
Cambridgeshire County Council,14-Feb-19,51300725785,-900.00,AVERY HOUSE CARE HOME,CARE ESTABLISHMENT,OP - Hunts Locality,Hunts O P  Team,Residential Care
Cambridgeshire County Council,14-Feb-19,51300725788,-900.00,AVERY HOUSE CARE HOME,CARE ESTABLISHMENT,OP - Hunts Locality,Hunts O P  Team,Nursing Care
Cambridgeshire County Council,14-Feb-19,51300725768,-900.00,AVERY HOUSE CARE HOME,CARE ESTABLISHMENT,OP - Hunts Locality,Hunts O P  Team,Residential Care
Cambridgeshire County Council,14-Feb-19,51300725784,-900.00,AVERY HOUSE CARE HOME,CARE ESTABLISHMENT,OP - Hunts Locality,Hunts O P  Team,Residential Care
Cambridgeshire County Council,14-Feb-19,51300725764,-900.00,AVERY HOUSE CARE HOME,CARE ESTABLISHMENT,OP - Hunts Locality,Hunts O P  Team,Nursing Care
Cambridgeshire County Council,14-Feb-19,51300725776,-900.00,AVERY HOUSE CARE HOME,CARE ESTABLISHMENT,OP - Hunts Locality,Hunts O P  Team,Residential Care
Cambridgeshire County Council,14-Feb-19,51300714400,-900.00,AVERY HOUSE CARE HOME,CARE ESTABLISHMENT,OP - Hunts Locality,Hunts O P  Team,Nursing Care
Cambridgeshire County Council,14-Feb-19,51300714367,-900.00,AVERY HOUSE CARE HOME,CARE ESTABLISHMENT,OP - Hunts Locality,Hunts O P  Team,Residential Care
Cambridgeshire County Council,14-Feb-19,51300725770,-900.00,AVERY HOUSE CARE HOME,CARE ESTABLISHMENT,OP - Hunts Locality,Hunts O P  Team,Residential Care
Cambridgeshire County Council,14-Feb-19,51300725787,-900.00,AVERY HOUSE CARE HOME,CARE ESTABLISHMENT,OP - Hunts Locality,Hunts O P  Team,Nursing Care
Cambridgeshire County Council,14-Feb-19,51300725757,-900.00,AVERY HOUSE CARE HOME,CARE ESTABLISHMENT,OP - Hunts Locality,Hunts O P  Team,Residential Care
Cambridgeshire County Council,14-Feb-19,51300714391,-900.00,AVERY HOUSE CARE HOME,CARE ESTABLISHMENT,OP - Hunts Locality,Hunts O P  Team,Nursing Care
Cambridgeshire County Council,14-Feb-19,51300725745,-900.00,AVERY HOUSE CARE HOME,CARE ESTABLISHMENT,OP - Hunts Locality,Hunts O P  Team,Residential Care
Cambridgeshire County Council,14-Feb-19,51300714352,-900.00,AVERY HOUSE CARE HOME,CARE ESTABLISHMENT,OP - Hunts Locality,Hunts O P  Team,Nursing Care
Cambridgeshire County Council,14-Feb-19,51300725756,-900.00,AVERY HOUSE CARE HOME,CARE ESTABLISHMENT,OP - Hunts Locality,Hunts O P  Team,Nursing Care
Cambridgeshire County Council,14-Feb-19,51300714360,-900.00,AVERY HOUSE CARE HOME,CARE ESTABLISHMENT,OP - Hunts Locality,Hunts O P  Team,Nursing Care
Cambridgeshire County Council,14-Feb-19,51300714388,-900.00,AVERY HOUSE CARE HOME,CARE ESTABLISHMENT,OP - Hunts Locality,Hunts O P  Team,Nursing Care
Cambridgeshire County Council,14-Feb-19,51300725752,-900.00,AVERY HOUSE CARE HOME,CARE ESTABLISHMENT,OP - Hunts Locality,Hunts O P  Team,Nursing Care
Cambridgeshire County Council,14-Feb-19,51300714354,-900.00,AVERY HOUSE CARE HOME,CARE ESTABLISHMENT,OP - Hunts Locality,Hunts O P  Team,Residential Care
Cambridgeshire County Council,14-Feb-19,51300714363,-900.00,AVERY HOUSE CARE HOME,CARE ESTABLISHMENT,OP - Hunts Locality,Hunts O P  Team,Residential Care
Cambridgeshire County Council,14-Feb-19,51300714392,-900.00,AVERY HOUSE CARE HOME,CARE ESTABLISHMENT,OP - Hunts Locality,Hunts O P  Team,Residential Care
Cambridgeshire County Council,14-Feb-19,51300725778,-900.00,AVERY HOUSE CARE HOME,CARE ESTABLISHMENT,OP - Hunts Locality,Hunts O P  Team,Residential Care
Cambridgeshire County Council,14-Feb-19,51300714372,-900.00,AVERY HOUSE CARE HOME,CARE ESTABLISHMENT,OP - Hunts Locality,Hunts O P  Team,Residential Care
Cambridgeshire County Council,14-Feb-19,51300714377,-900.00,AVERY HOUSE CARE HOME,CARE ESTABLISHMENT,OP - Hunts Locality,Hunts O P  Team,Nursing Care
Cambridgeshire County Council,14-Feb-19,51300725793,-900.00,AVERY HOUSE CARE HOME,CARE ESTABLISHMENT,OP - Hunts Locality,Hunts O P  Team,Nursing Care
Cambridgeshire County Council,14-Feb-19,51300725780,-900.00,AVERY HOUSE CARE HOME,CARE ESTABLISHMENT,OP - Hunts Locality,Hunts O P  Team,Nursing Care
Cambridgeshire County Council,14-Feb-19,51300714361,-900.00,AVERY HOUSE CARE HOME,CARE ESTABLISHMENT,OP - Hunts Locality,Hunts O P  Team,Nursing Care
Cambridgeshire County Council,14-Feb-19,51300714374,-900.00,AVERY HOUSE CARE HOME,CARE ESTABLISHMENT,OP - Hunts Locality,Hunts O P  Team,Nursing Care
Cambridgeshire County Council,14-Feb-19,51300714389,-900.00,AVERY HOUSE CARE HOME,CARE ESTABLISHMENT,OP - Hunts Locality,Hunts O P  Team,Nursing Care
Cambridgeshire County Council,14-Feb-19,51300714353,-900.00,AVERY HOUSE CARE HOME,CARE ESTABLISHMENT,OP - Hunts Locality,Hunts O P  Team,Residential Care
Cambridgeshire County Council,14-Feb-19,51300714356,-900.00,AVERY HOUSE CARE HOME,CARE ESTABLISHMENT,OP - Hunts Locality,Hunts O P  Team,Residential Care
Cambridgeshire County Council,14-Feb-19,51300725774,-900.00,AVERY HOUSE CARE HOME,CARE ESTABLISHMENT,OP - Hunts Locality,Hunts O P  Team,Nursing Care
Cambridgeshire County Council,14-Feb-19,51300714375,-900.00,AVERY HOUSE CARE HOME,CARE ESTABLISHMENT,OP - Hunts Locality,Hunts O P  Team,Residential Care
Cambridgeshire County Council,14-Feb-19,51300725773,-900.00,AVERY HOUSE CARE HOME,CARE ESTABLISHMENT,OP - Hunts Locality,Hunts O P  Team,Residential Care
Cambridgeshire County Council,14-Feb-19,51300725789,-900.00,AVERY HOUSE CARE HOME,CARE ESTABLISHMENT,OP - Hunts Locality,Hunts O P  Team,Residential Care
Cambridgeshire County Council,14-Feb-19,51300714385,-900.00,AVERY HOUSE CARE HOME,CARE ESTABLISHMENT,OP - Hunts Locality,Hunts O P  Team,Nursing Care
Cambridgeshire County Council,14-Feb-19,51300714351,-900.00,AVERY HOUSE CARE HOME,CARE ESTABLISHMENT,OP - Hunts Locality,Hunts O P  Team,Residential Care
Cambridgeshire County Council,14-Feb-19,51300714362,-900.00,AVERY HOUSE CARE HOME,CARE ESTABLISHMENT,OP - Hunts Locality,Hunts O P  Team,Nursing Care
Cambridgeshire County Council,14-Feb-19,51300714364,-900.00,AVERY HOUSE CARE HOME,CARE ESTABLISHMENT,OP - Hunts Locality,Hunts O P  Team,Residential Care
Cambridgeshire County Council,14-Feb-19,51300725761,-900.00,AVERY HOUSE CARE HOME,CARE ESTABLISHMENT,OP - Hunts Locality,Hunts O P  Team,Residential Care
Cambridgeshire County Council,14-Feb-19,51300714376,-900.00,AVERY HOUSE CARE HOME,CARE ESTABLISHMENT,OP - Hunts Locality,Hunts O P  Team,Nursing Care
Cambridgeshire County Council,07-Feb-19,51300714280,-888.39,WOODLANDS CARE CENTRE,CARE ESTABLISHMENT,OPMH - City & South,Older People Mental Health City & South,Nursing Care
Cambridgeshire County Council,28-Feb-19,51300743547,-886.94,TARMAC TRADING LIMITED,COMPANY,Highways - 90m Mtce,Highways - 90m Mtce,Construction - External Professional Fees
Cambridgeshire County Council,14-Feb-19,51300724770,-850.70,DECOY FARM,CARE ESTABLISHMENT,LD - East Locality,LD - East Cambs - Special Needs,Residential Care
Cambridgeshire County Council,14-Feb-19,51300713140,-850.70,DECOY FARM,CARE ESTABLISHMENT,LD - East Locality,LD - East Cambs - Special Needs,Residential Care
Cambridgeshire County Council,14-Feb-19,51300730721,-850.00,FARRINGTON CARE HOMES LTD T/A WOODLANDS RESIDENTIAL CARE HOME,CARE ESTABLISHMENT,OP - City & South Locality,Older People - City & South,Residential Care
Cambridgeshire County Council,14-Feb-19,51300730700,-850.00,FARRINGTON CARE HOMES LTD T/A WOODLANDS RESIDENTIAL CARE HOME,CARE ESTABLISHMENT,OP - City & South Locality,Older People - City & South,Residential Care
Cambridgeshire County Council,14-Feb-19,51300730709,-850.00,FARRINGTON CARE HOMES LTD T/A WOODLANDS RESIDENTIAL CARE HOME,CARE ESTABLISHMENT,OP - City & South Locality,Older People - City & South,Residential Care
Cambridgeshire County Council,14-Feb-19,51300730713,-850.00,FARRINGTON CARE HOMES LTD T/A WOODLANDS RESIDENTIAL CARE HOME,CARE ESTABLISHMENT,OP - City & South Locality,Older People - City & South,Residential Care
Cambridgeshire County Council,14-Feb-19,51300730701,-850.00,FARRINGTON CARE HOMES LTD T/A WOODLANDS RESIDENTIAL CARE HOME,CARE ESTABLISHMENT,OP - City & South Locality,Older People - City & South,Residential Care
Cambridgeshire County Council,14-Feb-19,51300730718,-850.00,FARRINGTON CARE HOMES LTD T/A WOODLANDS RESIDENTIAL CARE HOME,CARE ESTABLISHMENT,OP - City & South Locality,Older People - City & South,Residential Care
Cambridgeshire County Council,14-Feb-19,51300730712,-850.00,FARRINGTON CARE HOMES LTD T/A WOODLANDS RESIDENTIAL CARE HOME,CARE ESTABLISHMENT,OP - City & South Locality,Older People - City & South,Residential Care
Cambridgeshire County Council,14-Feb-19,51300730722,-850.00,FARRINGTON CARE HOMES LTD T/A WOODLANDS RESIDENTIAL CARE HOME,CARE ESTABLISHMENT,OP - City & South Locality,Older People - City & South,Residential Care
Cambridgeshire County Council,14-Feb-19,51300730716,-850.00,FARRINGTON CARE HOMES LTD T/A WOODLANDS RESIDENTIAL CARE HOME,CARE ESTABLISHMENT,OP - City & South Locality,Older People - City & South,Residential Care
Cambridgeshire County Council,14-Feb-19,51300730726,-850.00,FARRINGTON CARE HOMES LTD T/A WOODLANDS RESIDENTIAL CARE HOME,CARE ESTABLISHMENT,OP - City & South Locality,Older People - City & South,Residential Care
Cambridgeshire County Council,14-Feb-19,51300730725,-850.00,FARRINGTON CARE HOMES LTD T/A WOODLANDS RESIDENTIAL CARE HOME,CARE ESTABLISHMENT,OP - City & South Locality,Older People - City & South,Residential Care
Cambridgeshire County Council,14-Feb-19,51300730717,-850.00,FARRINGTON CARE HOMES LTD T/A WOODLANDS RESIDENTIAL CARE HOME,CARE ESTABLISHMENT,OP - City & South Locality,Older People - City & South,Residential Care
Cambridgeshire County Council,14-Feb-19,51300730699,-850.00,FARRINGTON CARE HOMES LTD T/A WOODLANDS RESIDENTIAL CARE HOME,CARE ESTABLISHMENT,OP - City & South Locality,Older People - City & South,Residential Care
Cambridgeshire County Council,28-Feb-19,51300730425,-841.00,ETHELDRED HOUSE,CARE ESTABLISHMENT,OPMH - City & South,Older People Mental Health City & South,Nursing Care
Cambridgeshire County Council,07-Feb-19,51300716307,-816.86,WOODLANDS CARE CENTRE,CARE ESTABLISHMENT,OPMH - City & South,Older People Mental Health City & South,Nursing Care
Cambridgeshire County Council,07-Feb-19,51300716316,-816.86,WOODLANDS CARE CENTRE,CARE ESTABLISHMENT,OPMH - City & South,Older People Mental Health City & South,Nursing Care
Cambridgeshire County Council,07-Feb-19,51300716314,-816.86,WOODLANDS CARE CENTRE,CARE ESTABLISHMENT,OPMH - City & South,Older People Mental Health City & South,Nursing Care
Cambridgeshire County Council,07-Feb-19,51300716301,-816.86,WOODLANDS CARE CENTRE,CARE ESTABLISHMENT,OPMH - City & South,Older People Mental Health City & South,Nursing Care
Cambridgeshire County Council,07-Feb-19,51300716319,-816.86,WOODLANDS CARE CENTRE,CARE ESTABLISHMENT,OPMH - City & South,Older People Mental Health City & South,Nursing Care
Cambridgeshire County Council,07-Feb-19,51300716309,-816.86,WOODLANDS CARE CENTRE,CARE ESTABLISHMENT,OPMH - City & South,Older People Mental Health City & South,Nursing Care
Cambridgeshire County Council,07-Feb-19,51300716304,-816.86,WOODLANDS CARE CENTRE,CARE ESTABLISHMENT,OPMH - City & South,Older People Mental Health City & South,Nursing Care
Cambridgeshire County Council,07-Feb-19,51300716313,-816.86,WOODLANDS CARE CENTRE,CARE ESTABLISHMENT,OPMH - City & South,Older People Mental Health City & South,Nursing Care
Cambridgeshire County Council,07-Feb-19,51300716318,-816.86,WOODLANDS CARE CENTRE,CARE ESTABLISHMENT,OPMH - City & South,Older People Mental Health City & South,Nursing Care
Cambridgeshire County Council,07-Feb-19,51300720362,-814.17,WOODLANDS CARE CENTRE,CARE ESTABLISHMENT,OPMH - City & South,Older People Mental Health City & South,Nursing Care
Cambridgeshire County Council,07-Feb-19,51300720368,-814.17,WOODLANDS CARE CENTRE,CARE ESTABLISHMENT,OPMH - City & South,Older People Mental Health City & South,Nursing Care
Cambridgeshire County Council,07-Feb-19,51300720365,-814.17,WOODLANDS CARE CENTRE,CARE ESTABLISHMENT,OPMH - City & South,Older People Mental Health City & South,Nursing Care
Cambridgeshire County Council,07-Feb-19,51300720360,-814.17,WOODLANDS CARE CENTRE,CARE ESTABLISHMENT,OPMH - City & South,Older People Mental Health City & South,Nursing Care
Cambridgeshire County Council,07-Feb-19,51300720371,-814.17,WOODLANDS CARE CENTRE,CARE ESTABLISHMENT,OPMH - City & South,Older People Mental Health City & South,Nursing Care
Cambridgeshire County Council,07-Feb-19,51300720369,-814.17,WOODLANDS CARE CENTRE,CARE ESTABLISHMENT,OPMH - City & South,Older People Mental Health City & South,Nursing Care
Cambridgeshire County Council,07-Feb-19,51300720364,-814.17,WOODLANDS CARE CENTRE,CARE ESTABLISHMENT,OPMH - City & South,Older People Mental Health City & South,Nursing Care
Cambridgeshire County Council,07-Feb-19,51300720367,-814.17,WOODLANDS CARE CENTRE,CARE ESTABLISHMENT,OPMH - City & South,Older People Mental Health City & South,Nursing Care
Cambridgeshire County Council,07-Feb-19,51300720374,-814.17,WOODLANDS CARE CENTRE,CARE ESTABLISHMENT,OPMH - City & South,Older People Mental Health City & South,Nursing Care
Cambridgeshire County Council,28-Feb-19,51300740857,-806.00,ETHELDRED HOUSE,CARE ESTABLISHMENT,Physical Disablity,Countywide PD Service - Care,Residential Care
Cambridgeshire County Council,28-Feb-19,51300740851,-806.00,ETHELDRED HOUSE,CARE ESTABLISHMENT,Physical Disablity,Countywide PD Service - Care,Residential Care
Cambridgeshire County Council,28-Feb-19,51300740827,-806.00,ETHELDRED HOUSE,CARE ESTABLISHMENT,Physical Disablity,Countywide PD Service - Care,Residential Care
Cambridgeshire County Council,28-Feb-19,51300740836,-806.00,ETHELDRED HOUSE,CARE ESTABLISHMENT,Physical Disablity,Countywide PD Service - Care,Residential Care
Cambridgeshire County Council,28-Feb-19,51300740841,-806.00,ETHELDRED HOUSE,CARE ESTABLISHMENT,Physical Disablity,Countywide PD Service - Care,Residential Care
Cambridgeshire County Council,28-Feb-19,51300740856,-806.00,ETHELDRED HOUSE,CARE ESTABLISHMENT,Physical Disablity,Countywide PD Service - Care,Residential Care
Cambridgeshire County Council,28-Feb-19,51300740852,-806.00,ETHELDRED HOUSE,CARE ESTABLISHMENT,Physical Disablity,Countywide PD Service - Care,Residential Care
Cambridgeshire County Council,28-Feb-19,51300740831,-806.00,ETHELDRED HOUSE,CARE ESTABLISHMENT,Physical Disablity,Countywide PD Service - Care,Residential Care
Cambridgeshire County Council,28-Feb-19,51300740854,-806.00,ETHELDRED HOUSE,CARE ESTABLISHMENT,Physical Disablity,Countywide PD Service - Care,Residential Care
Cambridgeshire County Council,28-Feb-19,51300740837,-806.00,ETHELDRED HOUSE,CARE ESTABLISHMENT,Physical Disablity,Countywide PD Service - Care,Residential Care
Cambridgeshire County Council,28-Feb-19,51300740842,-806.00,ETHELDRED HOUSE,CARE ESTABLISHMENT,Physical Disablity,Countywide PD Service - Care,Residential Care
Cambridgeshire County Council,28-Feb-19,51300740822,-806.00,ETHELDRED HOUSE,CARE ESTABLISHMENT,Physical Disablity,Countywide PD Service - Care,Residential Care
Cambridgeshire County Council,28-Feb-19,51300740823,-806.00,ETHELDRED HOUSE,CARE ESTABLISHMENT,Physical Disablity,Countywide PD Service - Care,Residential Care
Cambridgeshire County Council,28-Feb-19,51300740838,-806.00,ETHELDRED HOUSE,CARE ESTABLISHMENT,Physical Disablity,Countywide PD Service - Care,Residential Care
Cambridgeshire County Council,28-Feb-19,51300740839,-806.00,ETHELDRED HOUSE,CARE ESTABLISHMENT,Physical Disablity,Countywide PD Service - Care,Residential Care
Cambridgeshire County Council,28-Feb-19,51300740840,-806.00,ETHELDRED HOUSE,CARE ESTABLISHMENT,Physical Disablity,Countywide PD Service - Care,Residential Care
Cambridgeshire County Council,28-Feb-19,51300740844,-806.00,ETHELDRED HOUSE,CARE ESTABLISHMENT,Physical Disablity,Countywide PD Service - Care,Residential Care
Cambridgeshire County Council,28-Feb-19,51300740845,-806.00,ETHELDRED HOUSE,CARE ESTABLISHMENT,Physical Disablity,Countywide PD Service - Care,Residential Care
Cambridgeshire County Council,28-Feb-19,51300740820,-806.00,ETHELDRED HOUSE,CARE ESTABLISHMENT,Physical Disablity,Countywide PD Service - Care,Residential Care
Cambridgeshire County Council,28-Feb-19,51300740828,-806.00,ETHELDRED HOUSE,CARE ESTABLISHMENT,Physical Disablity,Countywide PD Service - Care,Residential Care
Cambridgeshire County Council,28-Feb-19,51300740848,-806.00,ETHELDRED HOUSE,CARE ESTABLISHMENT,Physical Disablity,Countywide PD Service - Care,Residential Care
Cambridgeshire County Council,28-Feb-19,51300740812,-806.00,ETHELDRED HOUSE,CARE ESTABLISHMENT,Physical Disablity,Countywide PD Service - Care,Residential Care
Cambridgeshire County Council,28-Feb-19,51300740814,-806.00,ETHELDRED HOUSE,CARE ESTABLISHMENT,Physical Disablity,Countywide PD Service - Care,Residential Care
Cambridgeshire County Council,28-Feb-19,51300740816,-806.00,ETHELDRED HOUSE,CARE ESTABLISHMENT,Physical Disablity,Countywide PD Service - Care,Residential Care
Cambridgeshire County Council,28-Feb-19,51300740818,-806.00,ETHELDRED HOUSE,CARE ESTABLISHMENT,Physical Disablity,Countywide PD Service - Care,Residential Care
Cambridgeshire County Council,28-Feb-19,51300740819,-806.00,ETHELDRED HOUSE,CARE ESTABLISHMENT,Physical Disablity,Countywide PD Service - Care,Residential Care
Cambridgeshire County Council,28-Feb-19,51300740824,-806.00,ETHELDRED HOUSE,CARE ESTABLISHMENT,Physical Disablity,Countywide PD Service - Care,Residential Care
Cambridgeshire County Council,28-Feb-19,51300740829,-806.00,ETHELDRED HOUSE,CARE ESTABLISHMENT,Physical Disablity,Countywide PD Service - Care,Residential Care
Cambridgeshire County Council,28-Feb-19,51300740830,-806.00,ETHELDRED HOUSE,CARE ESTABLISHMENT,Physical Disablity,Countywide PD Service - Care,Residential Care
Cambridgeshire County Council,28-Feb-19,51300740815,-806.00,ETHELDRED HOUSE,CARE ESTABLISHMENT,Physical Disablity,Countywide PD Service - Care,Residential Care
Cambridgeshire County Council,28-Feb-19,51300740817,-806.00,ETHELDRED HOUSE,CARE ESTABLISHMENT,Physical Disablity,Countywide PD Service - Care,Residential Care
Cambridgeshire County Council,28-Feb-19,51300740826,-806.00,ETHELDRED HOUSE,CARE ESTABLISHMENT,Physical Disablity,Countywide PD Service - Care,Residential Care
Cambridgeshire County Council,28-Feb-19,51300740835,-806.00,ETHELDRED HOUSE,CARE ESTABLISHMENT,Physical Disablity,Countywide PD Service - Care,Residential Care
Cambridgeshire County Council,28-Feb-19,51300740846,-806.00,ETHELDRED HOUSE,CARE ESTABLISHMENT,Physical Disablity,Countywide PD Service - Care,Residential Care
Cambridgeshire County Council,28-Feb-19,51300740849,-806.00,ETHELDRED HOUSE,CARE ESTABLISHMENT,Physical Disablity,Countywide PD Service - Care,Residential Care
Cambridgeshire County Council,28-Feb-19,51300740853,-806.00,ETHELDRED HOUSE,CARE ESTABLISHMENT,Physical Disablity,Countywide PD Service - Care,Residential Care
Cambridgeshire County Council,28-Feb-19,51300740847,-806.00,ETHELDRED HOUSE,CARE ESTABLISHMENT,Physical Disablity,Countywide PD Service - Care,Residential Care
Cambridgeshire County Council,28-Feb-19,51300735993,-806.00,ETHELDRED HOUSE,CARE ESTABLISHMENT,OP - City & South Locality,Older People - City & South,Nursing Care
Cambridgeshire County Council,28-Feb-19,51300738971,-806.00,ETHELDRED HOUSE,CARE ESTABLISHMENT,OP - City & South Locality,Older People - City & South,Nursing Care
Cambridgeshire County Council,28-Feb-19,51300735977,-806.00,ETHELDRED HOUSE,CARE ESTABLISHMENT,OP - City & South Locality,Older People - City & South,Nursing Care
Cambridgeshire County Council,28-Feb-19,51300735986,-806.00,ETHELDRED HOUSE,CARE ESTABLISHMENT,OP - City & South Locality,Older People - City & South,Nursing Care
Cambridgeshire County Council,28-Feb-19,51300735981,-806.00,ETHELDRED HOUSE,CARE ESTABLISHMENT,OP - City & South Locality,Older People - City & South,Nursing Care
Cambridgeshire County Council,28-Feb-19,51300735994,-806.00,ETHELDRED HOUSE,CARE ESTABLISHMENT,OP - City & South Locality,Older People - City & South,Nursing Care
Cambridgeshire County Council,28-Feb-19,51300738978,-806.00,ETHELDRED HOUSE,CARE ESTABLISHMENT,OP - City & South Locality,Older People - City & South,Nursing Care
Cambridgeshire County Council,28-Feb-19,51300735980,-806.00,ETHELDRED HOUSE,CARE ESTABLISHMENT,OP - City & South Locality,Older People - City & South,Nursing Care
Cambridgeshire County Council,28-Feb-19,51300735988,-806.00,ETHELDRED HOUSE,CARE ESTABLISHMENT,OP - City & South Locality,Older People - City & South,Nursing Care
Cambridgeshire County Council,28-Feb-19,51300735995,-806.00,ETHELDRED HOUSE,CARE ESTABLISHMENT,OP - City & South Locality,Older People - City & South,Nursing Care
Cambridgeshire County Council,28-Feb-19,51300738973,-806.00,ETHELDRED HOUSE,CARE ESTABLISHMENT,OP - City & South Locality,Older People - City & South,Nursing Care
Cambridgeshire County Council,28-Feb-19,51300735973,-806.00,ETHELDRED HOUSE,CARE ESTABLISHMENT,OP - City & South Locality,Older People - City & South,Nursing Care
Cambridgeshire County Council,28-Feb-19,51300735976,-806.00,ETHELDRED HOUSE,CARE ESTABLISHMENT,OP - City & South Locality,Older People - City & South,Nursing Care
Cambridgeshire County Council,28-Feb-19,51300735989,-806.00,ETHELDRED HOUSE,CARE ESTABLISHMENT,OP - City & South Locality,Older People - City & South,Nursing Care
Cambridgeshire County Council,28-Feb-19,51300735997,-806.00,ETHELDRED HOUSE,CARE ESTABLISHMENT,OP - City & South Locality,Older People - City & South,Nursing Care
Cambridgeshire County Council,28-Feb-19,51300735998,-806.00,ETHELDRED HOUSE,CARE ESTABLISHMENT,OP - City & South Locality,Older People - City & South,Nursing Care
Cambridgeshire County Council,28-Feb-19,51300738976,-806.00,ETHELDRED HOUSE,CARE ESTABLISHMENT,OP - City & South Locality,Older People - City & South,Nursing Care
Cambridgeshire County Council,28-Feb-19,51300738980,-806.00,ETHELDRED HOUSE,CARE ESTABLISHMENT,OP - City & South Locality,Older People - City & South,Nursing Care
Cambridgeshire County Council,28-Feb-19,51300738981,-806.00,ETHELDRED HOUSE,CARE ESTABLISHMENT,OP - City & South Locality,Older People - City & South,Nursing Care
Cambridgeshire County Council,28-Feb-19,51300735979,-806.00,ETHELDRED HOUSE,CARE ESTABLISHMENT,OP - City & South Locality,Older People - City & South,Nursing Care
Cambridgeshire County Council,28-Feb-19,51300735982,-806.00,ETHELDRED HOUSE,CARE ESTABLISHMENT,OP - City & South Locality,Older People - City & South,Nursing Care
Cambridgeshire County Council,28-Feb-19,51300735987,-806.00,ETHELDRED HOUSE,CARE ESTABLISHMENT,OP - City & South Locality,Older People - City & South,Nursing Care
Cambridgeshire County Council,28-Feb-19,51300738965,-806.00,ETHELDRED HOUSE,CARE ESTABLISHMENT,OP - City & South Locality,Older People - City & South,Nursing Care
Cambridgeshire County Council,28-Feb-19,51300735972,-806.00,ETHELDRED HOUSE,CARE ESTABLISHMENT,OP - City & South Locality,Older People - City & South,Nursing Care
Cambridgeshire County Council,28-Feb-19,51300735974,-806.00,ETHELDRED HOUSE,CARE ESTABLISHMENT,OP - City & South Locality,Older People - City & South,Nursing Care
Cambridgeshire County Council,28-Feb-19,51300735978,-806.00,ETHELDRED HOUSE,CARE ESTABLISHMENT,OP - City & South Locality,Older People - City & South,Nursing Care
Cambridgeshire County Council,28-Feb-19,51300735985,-806.00,ETHELDRED HOUSE,CARE ESTABLISHMENT,OP - City & South Locality,Older People - City & South,Nursing Care
Cambridgeshire County Council,28-Feb-19,51300738966,-806.00,ETHELDRED HOUSE,CARE ESTABLISHMENT,OP - City & South Locality,Older People - City & South,Nursing Care
Cambridgeshire County Council,28-Feb-19,51300738968,-806.00,ETHELDRED HOUSE,CARE ESTABLISHMENT,OP - City & South Locality,Older People - City & South,Nursing Care
Cambridgeshire County Council,28-Feb-19,51300738969,-806.00,ETHELDRED HOUSE,CARE ESTABLISHMENT,OP - City & South Locality,Older People - City & South,Nursing Care
Cambridgeshire County Council,28-Feb-19,51300738382,-806.00,BUCHAN HEALTHCARE LTD,CARE ESTABLISHMENT,OP - City & South Locality,Older People - City & South,Nursing Care
Cambridgeshire County Council,28-Feb-19,51300738381,-806.00,BUCHAN HEALTHCARE LTD,CARE ESTABLISHMENT,OP - City & South Locality,Older People - City & South,Nursing Care
Cambridgeshire County Council,28-Feb-19,51300738396,-806.00,BUCHAN HEALTHCARE LTD,CARE ESTABLISHMENT,OP - City & South Locality,Older People - City & South,Nursing Care
Cambridgeshire County Council,28-Feb-19,51300738377,-806.00,BUCHAN HEALTHCARE LTD,CARE ESTABLISHMENT,OP - City & South Locality,Older People - City & South,Nursing Care
Cambridgeshire County Council,28-Feb-19,51300738386,-806.00,BUCHAN HEALTHCARE LTD,CARE ESTABLISHMENT,OP - City & South Locality,Older People - City & South,Nursing Care
Cambridgeshire County Council,28-Feb-19,51300738395,-806.00,BUCHAN HEALTHCARE LTD,CARE ESTABLISHMENT,OP - City & South Locality,Older People - City & South,Nursing Care
Cambridgeshire County Council,28-Feb-19,51300738366,-806.00,BUCHAN HEALTHCARE LTD,CARE ESTABLISHMENT,OP - City & South Locality,Older People - City & South,Nursing Care
Cambridgeshire County Council,28-Feb-19,51300738389,-806.00,BUCHAN HEALTHCARE LTD,CARE ESTABLISHMENT,OP - City & South Locality,Older People - City & South,Nursing Care
Cambridgeshire County Council,28-Feb-19,51300738397,-806.00,BUCHAN HEALTHCARE LTD,CARE ESTABLISHMENT,OP - City & South Locality,Older People - City & South,Nursing Care
Cambridgeshire County Council,14-Feb-19,51300726165,-800.00,HC-ONE,CARE ESTABLISHMENT,OP - Hunts Locality,Hunts O P  Team,Nursing Care
Cambridgeshire County Council,14-Feb-19,51300726100,-800.00,HC-ONE,CARE ESTABLISHMENT,OP - Hunts Locality,Hunts O P  Team,Nursing Care
Cambridgeshire County Council,14-Feb-19,51300726167,-800.00,HC-ONE,CARE ESTABLISHMENT,OP - Hunts Locality,Hunts O P  Team,Nursing Care
Cambridgeshire County Council,14-Feb-19,51300726234,-800.00,HC-ONE,CARE ESTABLISHMENT,OP - Hunts Locality,Hunts O P  Team,Nursing Care
Cambridgeshire County Council,14-Feb-19,51300726091,-800.00,HC-ONE,CARE ESTABLISHMENT,OP - Hunts Locality,Hunts O P  Team,Nursing Care
Cambridgeshire County Council,14-Feb-19,51300726176,-800.00,HC-ONE,CARE ESTABLISHMENT,OP - Hunts Locality,Hunts O P  Team,Nursing Care
Cambridgeshire County Council,14-Feb-19,51300726200,-800.00,HC-ONE,CARE ESTABLISHMENT,OP - Hunts Locality,Hunts O P  Team,Nursing Care
Cambridgeshire County Council,14-Feb-19,51300726149,-800.00,HC-ONE,CARE ESTABLISHMENT,OP - Hunts Locality,Hunts O P  Team,Nursing Care
Cambridgeshire County Council,14-Feb-19,51300726162,-800.00,HC-ONE,CARE ESTABLISHMENT,OP - Hunts Locality,Hunts O P  Team,Nursing Care
Cambridgeshire County Council,14-Feb-19,51300726201,-800.00,HC-ONE,CARE ESTABLISHMENT,OP - Hunts Locality,Hunts O P  Team,Nursing Care
Cambridgeshire County Council,14-Feb-19,51300726101,-800.00,HC-ONE,CARE ESTABLISHMENT,OP - Hunts Locality,Hunts O P  Team,Nursing Care
Cambridgeshire County Council,07-Feb-19,51300717497,-797.74,WOODLANDS CARE CENTRE,CARE ESTABLISHMENT,OPMH - City & South,Older People Mental Health City & South,Nursing Care
Cambridgeshire County Council,14-Feb-19,51300726505,-795.26,THE EDMUND TRUST,CARE ESTABLISHMENT,LD - South Locality,LD - South Cambs - Care,Supported Living
Cambridgeshire County Council,07-Feb-19,51300715364,-795.26,THE EDMUND TRUST,CARE ESTABLISHMENT,LD - South Locality,LD - South Cambs - Care,Supported Living
Cambridgeshire County Council,14-Feb-19,51300726511,-795.26,THE EDMUND TRUST,CARE ESTABLISHMENT,LD - South Locality,LD - South Cambs - Care,Supported Living
Cambridgeshire County Council,07-Feb-19,51300715376,-795.26,THE EDMUND TRUST,CARE ESTABLISHMENT,LD - South Locality,LD - South Cambs - Care,Supported Living
Cambridgeshire County Council,14-Feb-19,51300726507,-795.26,THE EDMUND TRUST,CARE ESTABLISHMENT,LD - City Locality,LD - City - Care,Supported Living
Cambridgeshire County Council,07-Feb-19,51300715368,-795.26,THE EDMUND TRUST,CARE ESTABLISHMENT,LD - City Locality,LD - City - Care,Supported Living
Cambridgeshire County Council,21-Feb-19,51300736676,-795.26,THE EDMUND TRUST,CARE ESTABLISHMENT,LD - City Locality,LD - City - Care,Supported Living
Cambridgeshire County Council,21-Feb-19,51300736678,-795.26,THE EDMUND TRUST,CARE ESTABLISHMENT,LD - City Locality,LD - City - Care,Supported Living
Cambridgeshire County Council,21-Feb-19,51300736682,-795.26,THE EDMUND TRUST,CARE ESTABLISHMENT,LD - City Locality,LD - City - Care,Supported Living
Cambridgeshire County Council,11-Feb-19,51300570100,-777.15,KIDZONE,NURSERY,Early Years Specialist Support,Procurement - TA Inclusion & Access (EARLY YEARS),Educational Materials
Cambridgeshire County Council,07-Feb-19,51300721875,-761.05,GRACEFIELD NURSING AND RESIDENTIAL HOME,CARE ESTABLISHMENT,OPMH - City & South,Older People Mental Health City & South,Nursing Care
Cambridgeshire County Council,07-Feb-19,51300721868,-761.05,GRACEFIELD NURSING AND RESIDENTIAL HOME,CARE ESTABLISHMENT,OPMH - City & South,Older People Mental Health City & South,Nursing Care
Cambridgeshire County Council,07-Feb-19,51300721876,-761.05,GRACEFIELD NURSING AND RESIDENTIAL HOME,CARE ESTABLISHMENT,OPMH - City & South,Older People Mental Health City & South,Nursing Care
Cambridgeshire County Council,07-Feb-19,51300721884,-761.05,GRACEFIELD NURSING AND RESIDENTIAL HOME,CARE ESTABLISHMENT,OPMH - City & South,Older People Mental Health City & South,Nursing Care
Cambridgeshire County Council,07-Feb-19,51300721873,-761.05,GRACEFIELD NURSING AND RESIDENTIAL HOME,CARE ESTABLISHMENT,OPMH - City & South,Older People Mental Health City & South,Nursing Care
Cambridgeshire County Council,07-Feb-19,51300721887,-761.05,GRACEFIELD NURSING AND RESIDENTIAL HOME,CARE ESTABLISHMENT,OPMH - City & South,Older People Mental Health City & South,Nursing Care
Cambridgeshire County Council,07-Feb-19,51300721871,-761.05,GRACEFIELD NURSING AND RESIDENTIAL HOME,CARE ESTABLISHMENT,OPMH - City & South,Older People Mental Health City & South,Nursing Care
Cambridgeshire County Council,07-Feb-19,51300721881,-761.05,GRACEFIELD NURSING AND RESIDENTIAL HOME,CARE ESTABLISHMENT,OPMH - City & South,Older People Mental Health City & South,Nursing Care
Cambridgeshire County Council,07-Feb-19,51300721886,-761.05,GRACEFIELD NURSING AND RESIDENTIAL HOME,CARE ESTABLISHMENT,OPMH - City & South,Older People Mental Health City & South,Nursing Care
Cambridgeshire County Council,07-Feb-19,51300714421,-761.05,BARCHESTER HEALTHCARE HOMES LTD,CARE ESTABLISHMENT,OPMH - City & South,Older People Mental Health City & South,Nursing Care
Cambridgeshire County Council,07-Feb-19,51300714423,-761.05,BARCHESTER HEALTHCARE HOMES LTD,CARE ESTABLISHMENT,OPMH - City & South,Older People Mental Health City & South,Nursing Care
Cambridgeshire County Council,07-Feb-19,51300714411,-761.05,BARCHESTER HEALTHCARE HOMES LTD,CARE ESTABLISHMENT,OPMH - City & South,Older People Mental Health City & South,Nursing Care
Cambridgeshire County Council,07-Feb-19,51300714420,-761.05,BARCHESTER HEALTHCARE HOMES LTD,CARE ESTABLISHMENT,OPMH - City & South,Older People Mental Health City & South,Nursing Care
Cambridgeshire County Council,07-Feb-19,51300714407,-761.05,BARCHESTER HEALTHCARE HOMES LTD,CARE ESTABLISHMENT,OPMH - City & South,Older People Mental Health City & South,Nursing Care
Cambridgeshire County Council,07-Feb-19,51300714409,-761.05,BARCHESTER HEALTHCARE HOMES LTD,CARE ESTABLISHMENT,OPMH - City & South,Older People Mental Health City & South,Nursing Care
Cambridgeshire County Council,07-Feb-19,51300714412,-761.05,BARCHESTER HEALTHCARE HOMES LTD,CARE ESTABLISHMENT,OPMH - City & South,Older People Mental Health City & South,Nursing Care
Cambridgeshire County Council,07-Feb-19,51300714425,-761.05,BARCHESTER HEALTHCARE HOMES LTD,CARE ESTABLISHMENT,OPMH - City & South,Older People Mental Health City & South,Nursing Care
Cambridgeshire County Council,07-Feb-19,51300714426,-761.05,BARCHESTER HEALTHCARE HOMES LTD,CARE ESTABLISHMENT,OPMH - City & South,Older People Mental Health City & South,Nursing Care
Cambridgeshire County Council,21-Feb-19,51300729795,-746.39,BARCHESTER HEALTHCARE HOMES LTD,CARE ESTABLISHMENT,OP - East Cambs Locality,East Cambs - O P Team,Nursing Care
Cambridgeshire County Council,07-Feb-19,51300718353,-736.45,THE EDMUND TRUST,CARE ESTABLISHMENT,LD - East Locality,LD - East Cambs - Special Needs,Domiciliary Care
Cambridgeshire County Council,21-Feb-19,51300738469,-736.45,THE EDMUND TRUST,CARE ESTABLISHMENT,LD - East Locality,LD - East Cambs - Special Needs,Domiciliary Care
Cambridgeshire County Council,21-Feb-19,51300738549,-736.45,THE EDMUND TRUST,CARE ESTABLISHMENT,LD - East Locality,LD - East Cambs - Special Needs,Domiciliary Care
Cambridgeshire County Council,21-Feb-19,51300738457,-736.45,THE EDMUND TRUST,CARE ESTABLISHMENT,LD - East Locality,LD - East Cambs - Special Needs,Domiciliary Care
Cambridgeshire County Council,21-Feb-19,51300738576,-736.45,THE EDMUND TRUST,CARE ESTABLISHMENT,LD - East Locality,LD - East Cambs - Special Needs,Domiciliary Care
Cambridgeshire County Council,07-Feb-19,51300718332,-736.45,THE EDMUND TRUST,CARE ESTABLISHMENT,LD - East Locality,LD - East Cambs - Special Needs,Domiciliary Care
Cambridgeshire County Council,21-Feb-19,51300738464,-736.45,THE EDMUND TRUST,CARE ESTABLISHMENT,LD - East Locality,LD - East Cambs - Special Needs,Domiciliary Care
Cambridgeshire County Council,21-Feb-19,51300738588,-736.45,THE EDMUND TRUST,CARE ESTABLISHMENT,LD - East Locality,LD - East Cambs - Special Needs,Domiciliary Care
Cambridgeshire County Council,07-Feb-19,51300718417,-736.45,THE EDMUND TRUST,CARE ESTABLISHMENT,LD - East Locality,LD - East Cambs - Special Needs,Domiciliary Care
Cambridgeshire County Council,14-Feb-19,51300728295,-736.45,THE EDMUND TRUST,CARE ESTABLISHMENT,LD - East Locality,LD - East Cambs - Special Needs,Domiciliary Care
Cambridgeshire County Council,14-Feb-19,51300728249,-736.45,THE EDMUND TRUST,CARE ESTABLISHMENT,LD - East Locality,LD - East Cambs - Special Needs,Domiciliary Care
Cambridgeshire County Council,14-Feb-19,51300728335,-736.45,THE EDMUND TRUST,CARE ESTABLISHMENT,LD - East Locality,LD - East Cambs - Special Needs,Domiciliary Care
Cambridgeshire County Council,14-Feb-19,51300728327,-736.45,THE EDMUND TRUST,CARE ESTABLISHMENT,LD - East Locality,LD - East Cambs - Special Needs,Domiciliary Care
Cambridgeshire County Council,14-Feb-19,51300728368,-736.45,THE EDMUND TRUST,CARE ESTABLISHMENT,LD - East Locality,LD - East Cambs - Special Needs,Domiciliary Care
Cambridgeshire County Council,14-Feb-19,51300728240,-736.45,THE EDMUND TRUST,CARE ESTABLISHMENT,LD - East Locality,LD - East Cambs - Special Needs,Domiciliary Care
Cambridgeshire County Council,14-Feb-19,51300728243,-736.45,THE EDMUND TRUST,CARE ESTABLISHMENT,LD - East Locality,LD - East Cambs - Special Needs,Domiciliary Care
Cambridgeshire County Council,07-Feb-19,51300718330,-736.45,THE EDMUND TRUST,CARE ESTABLISHMENT,LD - East Locality,LD - East Cambs - Special Needs,Domiciliary Care
Cambridgeshire County Council,07-Feb-19,51300718400,-736.45,THE EDMUND TRUST,CARE ESTABLISHMENT,LD - East Locality,LD - East Cambs - Special Needs,Domiciliary Care
Cambridgeshire County Council,07-Feb-19,51300718230,-736.45,THE EDMUND TRUST,CARE ESTABLISHMENT,LD - East Locality,LD - East Cambs - Special Needs,Domiciliary Care
Cambridgeshire County Council,07-Feb-19,51300718385,-736.45,THE EDMUND TRUST,CARE ESTABLISHMENT,LD - East Locality,LD - East Cambs - Special Needs,Domiciliary Care
Cambridgeshire County Council,07-Feb-19,51300718311,-736.45,THE EDMUND TRUST,CARE ESTABLISHMENT,LD - East Locality,LD - East Cambs - Special Needs,Domiciliary Care
Cambridgeshire County Council,14-Feb-19,51300728220,-736.45,THE EDMUND TRUST,CARE ESTABLISHMENT,LD - East Locality,LD - East Cambs - Special Needs,Domiciliary Care
Cambridgeshire County Council,21-Feb-19,51300738507,-736.45,THE EDMUND TRUST,CARE ESTABLISHMENT,LD - East Locality,LD - East Cambs - Care,Domiciliary Care
Cambridgeshire County Council,07-Feb-19,51300718313,-736.45,THE EDMUND TRUST,CARE ESTABLISHMENT,LD - East Locality,LD - East Cambs - Care,Domiciliary Care
Cambridgeshire County Council,21-Feb-19,51300738468,-736.45,THE EDMUND TRUST,CARE ESTABLISHMENT,LD - East Locality,LD - East Cambs - Care,Domiciliary Care
Cambridgeshire County Council,21-Feb-19,51300738481,-736.45,THE EDMUND TRUST,CARE ESTABLISHMENT,LD - East Locality,LD - East Cambs - Care,Domiciliary Care
Cambridgeshire County Council,21-Feb-19,51300738478,-736.45,THE EDMUND TRUST,CARE ESTABLISHMENT,LD - East Locality,LD - East Cambs - Care,Domiciliary Care
Cambridgeshire County Council,14-Feb-19,51300728226,-736.45,THE EDMUND TRUST,CARE ESTABLISHMENT,LD - East Locality,LD - East Cambs - Care,Domiciliary Care
Cambridgeshire County Council,14-Feb-19,51300728256,-736.45,THE EDMUND TRUST,CARE ESTABLISHMENT,LD - East Locality,LD - East Cambs - Care,Domiciliary Care
Cambridgeshire County Council,14-Feb-19,51300728225,-736.45,THE EDMUND TRUST,CARE ESTABLISHMENT,LD - East Locality,LD - East Cambs - Care,Domiciliary Care
Cambridgeshire County Council,14-Feb-19,51300728260,-736.45,THE EDMUND TRUST,CARE ESTABLISHMENT,LD - East Locality,LD - East Cambs - Care,Domiciliary Care
Cambridgeshire County Council,14-Feb-19,51300728336,-736.45,THE EDMUND TRUST,CARE ESTABLISHMENT,LD - East Locality,LD - East Cambs - Care,Domiciliary Care
Cambridgeshire County Council,14-Feb-19,51300728372,-736.45,THE EDMUND TRUST,CARE ESTABLISHMENT,LD - East Locality,LD - East Cambs - Care,Domiciliary Care
Cambridgeshire County Council,07-Feb-19,51300718405,-736.45,THE EDMUND TRUST,CARE ESTABLISHMENT,LD - East Locality,LD - East Cambs - Care,Domiciliary Care
Cambridgeshire County Council,21-Feb-19,51300738496,-736.45,THE EDMUND TRUST,CARE ESTABLISHMENT,LD - East Locality,LD - East Cambs - Care,Domiciliary Care
Cambridgeshire County Council,21-Feb-19,51300738498,-736.45,THE EDMUND TRUST,CARE ESTABLISHMENT,LD - East Locality,LD - East Cambs - Care,Domiciliary Care
Cambridgeshire County Council,21-Feb-19,51300738558,-736.45,THE EDMUND TRUST,CARE ESTABLISHMENT,LD - East Locality,LD - East Cambs - Care,Domiciliary Care
Cambridgeshire County Council,07-Feb-19,51300718210,-736.45,THE EDMUND TRUST,CARE ESTABLISHMENT,LD - East Locality,LD - East Cambs - Care,Domiciliary Care
Cambridgeshire County Council,21-Feb-19,51300738550,-736.45,THE EDMUND TRUST,CARE ESTABLISHMENT,LD - East Locality,LD - East Cambs - Care,Domiciliary Care
Cambridgeshire County Council,14-Feb-19,51300728361,-736.45,THE EDMUND TRUST,CARE ESTABLISHMENT,LD - East Locality,LD - East Cambs - Care,Domiciliary Care
Cambridgeshire County Council,07-Feb-19,51300718419,-736.45,THE EDMUND TRUST,CARE ESTABLISHMENT,LD - East Locality,LD - East Cambs - Care,Domiciliary Care
Cambridgeshire County Council,07-Feb-19,51300718264,-736.45,THE EDMUND TRUST,CARE ESTABLISHMENT,LD - East Locality,LD - East Cambs - Care,Domiciliary Care
Cambridgeshire County Council,14-Feb-19,51300728360,-736.45,THE EDMUND TRUST,CARE ESTABLISHMENT,LD - East Locality,LD - East Cambs - Care,Domiciliary Care
Cambridgeshire County Council,07-Feb-19,51300718232,-736.45,THE EDMUND TRUST,CARE ESTABLISHMENT,LD - East Locality,LD - East Cambs - Care,Domiciliary Care
Cambridgeshire County Council,07-Feb-19,51300718248,-736.45,THE EDMUND TRUST,CARE ESTABLISHMENT,LD - East Locality,LD - East Cambs - Care,Domiciliary Care
Cambridgeshire County Council,07-Feb-19,51300718298,-736.45,THE EDMUND TRUST,CARE ESTABLISHMENT,LD - East Locality,LD - East Cambs - Care,Domiciliary Care
Cambridgeshire County Council,21-Feb-19,51300738516,-736.45,THE EDMUND TRUST,CARE ESTABLISHMENT,LD - East Locality,LD - East Cambs - Care,Domiciliary Care
Cambridgeshire County Council,21-Feb-19,51300738575,-736.45,THE EDMUND TRUST,CARE ESTABLISHMENT,LD - East Locality,LD - East Cambs - Care,Domiciliary Care
Cambridgeshire County Council,14-Feb-19,51300730705,-728.57,FARRINGTON CARE HOMES LTD T/A WOODLANDS RESIDENTIAL CARE HOME,CARE ESTABLISHMENT,OP - City & South Locality,Older People - City & South,Residential Care
Cambridgeshire County Council,07-Feb-19,51300720715,-719.81,Redacted Personal Data,SERVICE USER,OP - East Cambs Locality,East Cambs - O P Team,Direct Payments
Cambridgeshire County Council,07-Feb-19,51300672353,-719.81,Redacted Personal Data,SERVICE USER,OP - East Cambs Locality,East Cambs - O P Team,Direct Payments
Cambridgeshire County Council,07-Feb-19,51300694136,-719.81,Redacted Personal Data,SERVICE USER,OP - East Cambs Locality,East Cambs - O P Team,Direct Payments
Cambridgeshire County Council,07-Feb-19,51300672367,-719.81,Redacted Personal Data,SERVICE USER,OP - East Cambs Locality,East Cambs - O P Team,SDS - Care and support Services
Cambridgeshire County Council,07-Feb-19,51300672312,-719.81,Redacted Personal Data,SERVICE USER,OP - East Cambs Locality,East Cambs - O P Team,Direct Payments
Cambridgeshire County Council,07-Feb-19,51300694078,-719.81,Redacted Personal Data,SERVICE USER,OP - East Cambs Locality,East Cambs - O P Team,Direct Payments
Cambridgeshire County Council,07-Feb-19,51300672320,-719.81,Redacted Personal Data,SERVICE USER,OP - East Cambs Locality,East Cambs - O P Team,SDS - Care and support Services
Cambridgeshire County Council,07-Feb-19,51300672348,-719.81,Redacted Personal Data,SERVICE USER,OP - East Cambs Locality,East Cambs - O P Team,SDS - Care and support Services
Cambridgeshire County Council,07-Feb-19,51300672361,-719.81,Redacted Personal Data,SERVICE USER,OP - East Cambs Locality,East Cambs - O P Team,Direct Payments
Cambridgeshire County Council,07-Feb-19,51300680733,-719.81,Redacted Personal Data,SERVICE USER,OP - East Cambs Locality,East Cambs - O P Team,SDS - Care and support Services
Cambridgeshire County Council,07-Feb-19,51300680768,-719.81,Redacted Personal Data,SERVICE USER,OP - East Cambs Locality,East Cambs - O P Team,SDS - Care and support Services
Cambridgeshire County Council,07-Feb-19,51300680710,-719.81,Redacted Personal Data,SERVICE USER,OP - East Cambs Locality,East Cambs - O P Team,Direct Payments
Cambridgeshire County Council,07-Feb-19,51300680720,-719.81,Redacted Personal Data,SERVICE USER,OP - East Cambs Locality,East Cambs - O P Team,Direct Payments
Cambridgeshire County Council,07-Feb-19,51300694110,-719.81,Redacted Personal Data,SERVICE USER,OP - East Cambs Locality,East Cambs - O P Team,SDS - Care and support Services
Cambridgeshire County Council,07-Feb-19,51300694168,-719.81,Redacted Personal Data,SERVICE USER,OP - East Cambs Locality,East Cambs - O P Team,Direct Payments
Cambridgeshire County Council,07-Feb-19,51300720727,-719.81,Redacted Personal Data,SERVICE USER,OP - East Cambs Locality,East Cambs - O P Team,Direct Payments
Cambridgeshire County Council,07-Feb-19,51300720833,-719.81,Redacted Personal Data,SERVICE USER,OP - East Cambs Locality,East Cambs - O P Team,Direct Payments
Cambridgeshire County Council,07-Feb-19,51300672352,-719.81,Redacted Personal Data,SERVICE USER,OP - East Cambs Locality,East Cambs - O P Team,SDS - Care and support Services
Cambridgeshire County Council,07-Feb-19,51300720779,-719.81,Redacted Personal Data,SERVICE USER,OP - East Cambs Locality,East Cambs - O P Team,Direct Payments
Cambridgeshire County Council,07-Feb-19,51300680770,-719.81,Redacted Personal Data,SERVICE USER,OP - East Cambs Locality,East Cambs - O P Team,SDS - Care and support Services
Cambridgeshire County Council,07-Feb-19,51300680722,-719.81,Redacted Personal Data,SERVICE USER,OP - East Cambs Locality,East Cambs - O P Team,Direct Payments
Cambridgeshire County Council,07-Feb-19,51300680686,-719.81,Redacted Personal Data,SERVICE USER,OP - East Cambs Locality,East Cambs - O P Team,Direct Payments
Cambridgeshire County Council,07-Feb-19,51300694098,-719.81,Redacted Personal Data,SERVICE USER,OP - East Cambs Locality,East Cambs - O P Team,Direct Payments
Cambridgeshire County Council,07-Feb-19,51300672374,-719.81,Redacted Personal Data,SERVICE USER,OP - East Cambs Locality,East Cambs - O P Team,SDS - Care and support Services
Cambridgeshire County Council,07-Feb-19,51300672385,-719.81,Redacted Personal Data,SERVICE USER,OP - East Cambs Locality,East Cambs - O P Team,SDS - Care and support Services
Cambridgeshire County Council,07-Feb-19,51300720763,-719.81,Redacted Personal Data,SERVICE USER,OP - East Cambs Locality,East Cambs - O P Team,Direct Payments
Cambridgeshire County Council,07-Feb-19,51300720818,-719.81,Redacted Personal Data,SERVICE USER,OP - East Cambs Locality,East Cambs - O P Team,Direct Payments
Cambridgeshire County Council,07-Feb-19,51300720732,-719.81,Redacted Personal Data,SERVICE USER,OP - East Cambs Locality,East Cambs - O P Team,SDS - Care and support Services
Cambridgeshire County Council,07-Feb-19,51300672351,-719.81,Redacted Personal Data,SERVICE USER,OP - East Cambs Locality,East Cambs - O P Team,SDS - Care and support Services
Cambridgeshire County Council,07-Feb-19,51300672347,-719.81,Redacted Personal Data,SERVICE USER,OP - East Cambs Locality,East Cambs - O P Team,Direct Payments
Cambridgeshire County Council,07-Feb-19,51300680656,-719.81,Redacted Personal Data,SERVICE USER,OP - East Cambs Locality,East Cambs - O P Team,SDS - Care and support Services
Cambridgeshire County Council,07-Feb-19,51300694144,-719.81,Redacted Personal Data,SERVICE USER,OP - East Cambs Locality,East Cambs - O P Team,Direct Payments
Cambridgeshire County Council,07-Feb-19,51300694126,-719.81,Redacted Personal Data,SERVICE USER,OP - East Cambs Locality,East Cambs - O P Team,Direct Payments
Cambridgeshire County Council,07-Feb-19,51300694180,-719.81,Redacted Personal Data,SERVICE USER,OP - East Cambs Locality,East Cambs - O P Team,Direct Payments
Cambridgeshire County Council,07-Feb-19,51300680743,-719.81,Redacted Personal Data,SERVICE USER,OP - East Cambs Locality,East Cambs - O P Team,Direct Payments
Cambridgeshire County Council,07-Feb-19,51300694147,-719.81,Redacted Personal Data,SERVICE USER,OP - East Cambs Locality,East Cambs - O P Team,Direct Payments
Cambridgeshire County Council,07-Feb-19,51300720745,-719.81,Redacted Personal Data,SERVICE USER,OP - East Cambs Locality,East Cambs - O P Team,SDS - Care and support Services
Cambridgeshire County Council,07-Feb-19,51300720775,-719.81,Redacted Personal Data,SERVICE USER,OP - East Cambs Locality,East Cambs - O P Team,SDS - Care and support Services
Cambridgeshire County Council,07-Feb-19,51300672384,-719.81,Redacted Personal Data,SERVICE USER,OP - East Cambs Locality,East Cambs - O P Team,Direct Payments
Cambridgeshire County Council,07-Feb-19,51300672337,-719.81,Redacted Personal Data,SERVICE USER,OP - East Cambs Locality,East Cambs - O P Team,Direct Payments
Cambridgeshire County Council,07-Feb-19,51300672345,-719.81,Redacted Personal Data,SERVICE USER,OP - East Cambs Locality,East Cambs - O P Team,SDS - Care and support Services
Cambridgeshire County Council,07-Feb-19,51300680726,-719.81,Redacted Personal Data,SERVICE USER,OP - East Cambs Locality,East Cambs - O P Team,Direct Payments
Cambridgeshire County Council,07-Feb-19,51300680673,-719.81,Redacted Personal Data,SERVICE USER,OP - East Cambs Locality,East Cambs - O P Team,Direct Payments
Cambridgeshire County Council,07-Feb-19,51300694121,-719.81,Redacted Personal Data,SERVICE USER,OP - East Cambs Locality,East Cambs - O P Team,SDS - Care and support Services
Cambridgeshire County Council,07-Feb-19,51300694093,-719.81,Redacted Personal Data,SERVICE USER,OP - East Cambs Locality,East Cambs - O P Team,SDS - Care and support Services
Cambridgeshire County Council,07-Feb-19,51300694095,-719.81,Redacted Personal Data,SERVICE USER,OP - East Cambs Locality,East Cambs - O P Team,SDS - Care and support Services
Cambridgeshire County Council,07-Feb-19,51300694072,-719.81,Redacted Personal Data,SERVICE USER,OP - East Cambs Locality,East Cambs - O P Team,SDS - Care and support Services
Cambridgeshire County Council,07-Feb-19,51300720713,-719.81,Redacted Personal Data,SERVICE USER,OP - East Cambs Locality,East Cambs - O P Team,Direct Payments
Cambridgeshire County Council,07-Feb-19,51300672328,-719.81,Redacted Personal Data,SERVICE USER,OP - East Cambs Locality,East Cambs - O P Team,SDS - Care and support Services
Cambridgeshire County Council,07-Feb-19,51300672402,-719.81,Redacted Personal Data,SERVICE USER,OP - East Cambs Locality,East Cambs - O P Team,SDS - Care and support Services
Cambridgeshire County Council,07-Feb-19,51300672331,-719.81,Redacted Personal Data,SERVICE USER,OP - East Cambs Locality,East Cambs - O P Team,Direct Payments
Cambridgeshire County Council,07-Feb-19,51300680650,-719.81,Redacted Personal Data,SERVICE USER,OP - East Cambs Locality,East Cambs - O P Team,Direct Payments
Cambridgeshire County Council,07-Feb-19,51300680753,-719.81,Redacted Personal Data,SERVICE USER,OP - East Cambs Locality,East Cambs - O P Team,SDS - Care and support Services
Cambridgeshire County Council,07-Feb-19,51300680716,-719.81,Redacted Personal Data,SERVICE USER,OP - East Cambs Locality,East Cambs - O P Team,SDS - Care and support Services
Cambridgeshire County Council,07-Feb-19,51300672296,-719.81,Redacted Personal Data,SERVICE USER,OP - East Cambs Locality,East Cambs - O P Team,Direct Payments
Cambridgeshire County Council,07-Feb-19,51300672363,-719.81,Redacted Personal Data,SERVICE USER,OP - East Cambs Locality,East Cambs - O P Team,SDS - Care and support Services
Cambridgeshire County Council,07-Feb-19,51300680700,-719.81,Redacted Personal Data,SERVICE USER,OP - East Cambs Locality,East Cambs - O P Team,SDS - Care and support Services
Cambridgeshire County Council,07-Feb-19,51300680670,-719.81,Redacted Personal Data,SERVICE USER,OP - East Cambs Locality,East Cambs - O P Team,Direct Payments
Cambridgeshire County Council,07-Feb-19,51300680724,-719.81,Redacted Personal Data,SERVICE USER,OP - East Cambs Locality,East Cambs - O P Team,SDS - Care and support Services
Cambridgeshire County Council,07-Feb-19,51300680754,-719.81,Redacted Personal Data,SERVICE USER,OP - East Cambs Locality,East Cambs - O P Team,Direct Payments
Cambridgeshire County Council,07-Feb-19,51300680698,-719.81,Redacted Personal Data,SERVICE USER,OP - East Cambs Locality,East Cambs - O P Team,SDS - Care and support Services
Cambridgeshire County Council,07-Feb-19,51300672289,-719.81,Redacted Personal Data,SERVICE USER,OP - East Cambs Locality,East Cambs - O P Team,Direct Payments
Cambridgeshire County Council,07-Feb-19,51300672344,-719.81,Redacted Personal Data,SERVICE USER,OP - East Cambs Locality,East Cambs - O P Team,SDS - Care and support Services
Cambridgeshire County Council,07-Feb-19,51300720733,-719.81,Redacted Personal Data,SERVICE USER,OP - East Cambs Locality,East Cambs - O P Team,Direct Payments
Cambridgeshire County Council,07-Feb-19,51300720794,-719.81,Redacted Personal Data,SERVICE USER,OP - East Cambs Locality,East Cambs - O P Team,SDS - Care and support Services
Cambridgeshire County Council,07-Feb-19,51300694073,-719.81,Redacted Personal Data,SERVICE USER,OP - East Cambs Locality,East Cambs - O P Team,Direct Payments
Cambridgeshire County Council,07-Feb-19,51300720736,-719.81,Redacted Personal Data,SERVICE USER,OP - East Cambs Locality,East Cambs - O P Team,Direct Payments
Cambridgeshire County Council,07-Feb-19,51300720726,-719.81,Redacted Personal Data,SERVICE USER,OP - East Cambs Locality,East Cambs - O P Team,SDS - Care and support Services
Cambridgeshire County Council,07-Feb-19,51300720741,-719.81,Redacted Personal Data,SERVICE USER,OP - East Cambs Locality,East Cambs - O P Team,SDS - Care and support Services
Cambridgeshire County Council,07-Feb-19,51300680721,-719.81,Redacted Personal Data,SERVICE USER,OP - East Cambs Locality,East Cambs - O P Team,Direct Payments
Cambridgeshire County Council,07-Feb-19,51300694066,-719.81,Redacted Personal Data,SERVICE USER,OP - East Cambs Locality,East Cambs - O P Team,SDS - Care and support Services
Cambridgeshire County Council,07-Feb-19,51300694160,-719.81,Redacted Personal Data,SERVICE USER,OP - East Cambs Locality,East Cambs - O P Team,Direct Payments
Cambridgeshire County Council,07-Feb-19,51300672302,-719.81,Redacted Personal Data,SERVICE USER,OP - East Cambs Locality,East Cambs - O P Team,Direct Payments
Cambridgeshire County Council,07-Feb-19,51300680759,-719.81,Redacted Personal Data,SERVICE USER,OP - East Cambs Locality,East Cambs - O P Team,SDS - Care and support Services
Cambridgeshire County Council,07-Feb-19,51300672342,-719.81,Redacted Personal Data,SERVICE USER,OP - East Cambs Locality,East Cambs - O P Team,Direct Payments
Cambridgeshire County Council,07-Feb-19,51300720804,-719.81,Redacted Personal Data,SERVICE USER,OP - East Cambs Locality,East Cambs - O P Team,Direct Payments
Cambridgeshire County Council,07-Feb-19,51300672323,-719.81,Redacted Personal Data,SERVICE USER,OP - East Cambs Locality,East Cambs - O P Team,Direct Payments
Cambridgeshire County Council,07-Feb-19,51300672317,-719.81,Redacted Personal Data,SERVICE USER,OP - East Cambs Locality,East Cambs - O P Team,Direct Payments
Cambridgeshire County Council,07-Feb-19,51300672355,-719.81,Redacted Personal Data,SERVICE USER,OP - East Cambs Locality,East Cambs - O P Team,SDS - Care and support Services
Cambridgeshire County Council,07-Feb-19,51300672388,-719.81,Redacted Personal Data,SERVICE USER,OP - East Cambs Locality,East Cambs - O P Team,SDS - Care and support Services
Cambridgeshire County Council,07-Feb-19,51300680713,-719.81,Redacted Personal Data,SERVICE USER,OP - East Cambs Locality,East Cambs - O P Team,SDS - Care and support Services
Cambridgeshire County Council,07-Feb-19,51300694158,-719.81,Redacted Personal Data,SERVICE USER,OP - East Cambs Locality,East Cambs - O P Team,SDS - Care and support Services
Cambridgeshire County Council,07-Feb-19,51300694099,-719.81,Redacted Personal Data,SERVICE USER,OP - East Cambs Locality,East Cambs - O P Team,SDS - Care and support Services
Cambridgeshire County Council,07-Feb-19,51300720709,-719.81,Redacted Personal Data,SERVICE USER,OP - East Cambs Locality,East Cambs - O P Team,Direct Payments
Cambridgeshire County Council,07-Feb-19,51300720790,-719.81,Redacted Personal Data,SERVICE USER,OP - East Cambs Locality,East Cambs - O P Team,SDS - Care and support Services
Cambridgeshire County Council,07-Feb-19,51300720808,-719.81,Redacted Personal Data,SERVICE USER,OP - East Cambs Locality,East Cambs - O P Team,Direct Payments
Cambridgeshire County Council,07-Feb-19,51300694103,-719.81,Redacted Personal Data,SERVICE USER,OP - East Cambs Locality,East Cambs - O P Team,Direct Payments
Cambridgeshire County Council,07-Feb-19,51300720735,-719.81,Redacted Personal Data,SERVICE USER,OP - East Cambs Locality,East Cambs - O P Team,SDS - Care and support Services
Cambridgeshire County Council,07-Feb-19,51300680748,-719.81,Redacted Personal Data,SERVICE USER,OP - East Cambs Locality,East Cambs - O P Team,Direct Payments
Cambridgeshire County Council,07-Feb-19,51300694092,-719.81,Redacted Personal Data,SERVICE USER,OP - East Cambs Locality,East Cambs - O P Team,Direct Payments
Cambridgeshire County Council,07-Feb-19,51300672366,-719.81,Redacted Personal Data,SERVICE USER,OP - East Cambs Locality,East Cambs - O P Team,SDS - Care and support Services
Cambridgeshire County Council,07-Feb-19,51300672334,-719.81,Redacted Personal Data,SERVICE USER,OP - East Cambs Locality,East Cambs - O P Team,SDS - Care and support Services
Cambridgeshire County Council,07-Feb-19,51300680688,-719.81,Redacted Personal Data,SERVICE USER,OP - East Cambs Locality,East Cambs - O P Team,SDS - Care and support Services
Cambridgeshire County Council,07-Feb-19,51300720826,-719.81,Redacted Personal Data,SERVICE USER,OP - East Cambs Locality,East Cambs - O P Team,Direct Payments
Cambridgeshire County Council,07-Feb-19,51300694090,-719.81,Redacted Personal Data,SERVICE USER,OP - East Cambs Locality,East Cambs - O P Team,SDS - Care and support Services
Cambridgeshire County Council,07-Feb-19,51300720756,-719.81,Redacted Personal Data,SERVICE USER,OP - East Cambs Locality,East Cambs - O P Team,SDS - Care and support Services
Cambridgeshire County Council,07-Feb-19,51300680668,-719.81,Redacted Personal Data,SERVICE USER,OP - East Cambs Locality,East Cambs - O P Team,Direct Payments
Cambridgeshire County Council,07-Feb-19,51300694174,-719.81,Redacted Personal Data,SERVICE USER,OP - East Cambs Locality,East Cambs - O P Team,SDS - Care and support Services
Cambridgeshire County Council,07-Feb-19,51300694065,-719.81,Redacted Personal Data,SERVICE USER,OP - East Cambs Locality,East Cambs - O P Team,SDS - Care and support Services
Cambridgeshire County Council,07-Feb-19,51300694097,-719.81,Redacted Personal Data,SERVICE USER,OP - East Cambs Locality,East Cambs - O P Team,Direct Payments
Cambridgeshire County Council,07-Feb-19,51300720749,-719.81,Redacted Personal Data,SERVICE USER,OP - East Cambs Locality,East Cambs - O P Team,Direct Payments
Cambridgeshire County Council,07-Feb-19,51300720831,-719.81,Redacted Personal Data,SERVICE USER,OP - East Cambs Locality,East Cambs - O P Team,SDS - Care and support Services
Cambridgeshire County Council,07-Feb-19,51300694053,-719.81,Redacted Personal Data,SERVICE USER,OP - East Cambs Locality,East Cambs - O P Team,Direct Payments
Cambridgeshire County Council,07-Feb-19,51300694122,-719.81,Redacted Personal Data,SERVICE USER,OP - East Cambs Locality,East Cambs - O P Team,SDS - Care and support Services
Cambridgeshire County Council,07-Feb-19,51300694069,-719.81,Redacted Personal Data,SERVICE USER,OP - East Cambs Locality,East Cambs - O P Team,Direct Payments
Cambridgeshire County Council,07-Feb-19,51300720813,-719.81,Redacted Personal Data,SERVICE USER,OP - East Cambs Locality,East Cambs - O P Team,Direct Payments
Cambridgeshire County Council,07-Feb-19,51300680761,-719.81,Redacted Personal Data,SERVICE USER,OP - East Cambs Locality,East Cambs - O P Team,Direct Payments
Cambridgeshire County Council,07-Feb-19,51300680771,-719.81,Redacted Personal Data,SERVICE USER,OP - East Cambs Locality,East Cambs - O P Team,SDS - Care and support Services
Cambridgeshire County Council,07-Feb-19,51300672313,-719.81,Redacted Personal Data,SERVICE USER,OP - East Cambs Locality,East Cambs - O P Team,Direct Payments
Cambridgeshire County Council,07-Feb-19,51300672370,-719.81,Redacted Personal Data,SERVICE USER,OP - East Cambs Locality,East Cambs - O P Team,SDS - Care and support Services
Cambridgeshire County Council,07-Feb-19,51300694085,-719.81,Redacted Personal Data,SERVICE USER,OP - East Cambs Locality,East Cambs - O P Team,SDS - Care and support Services
Cambridgeshire County Council,07-Feb-19,51300694142,-719.81,Redacted Personal Data,SERVICE USER,OP - East Cambs Locality,East Cambs - O P Team,Direct Payments
Cambridgeshire County Council,07-Feb-19,51300720764,-719.81,Redacted Personal Data,SERVICE USER,OP - East Cambs Locality,East Cambs - O P Team,SDS - Care and support Services
Cambridgeshire County Council,07-Feb-19,51300720743,-719.81,Redacted Personal Data,SERVICE USER,OP - East Cambs Locality,East Cambs - O P Team,SDS - Care and support Services
Cambridgeshire County Council,07-Feb-19,51300672356,-719.81,Redacted Personal Data,SERVICE USER,OP - East Cambs Locality,East Cambs - O P Team,Direct Payments
Cambridgeshire County Council,07-Feb-19,51300672326,-719.81,Redacted Personal Data,SERVICE USER,OP - East Cambs Locality,East Cambs - O P Team,SDS - Care and support Services
Cambridgeshire County Council,07-Feb-19,51300672398,-719.81,Redacted Personal Data,SERVICE USER,OP - East Cambs Locality,East Cambs - O P Team,SDS - Care and support Services
Cambridgeshire County Council,07-Feb-19,51300680767,-719.81,Redacted Personal Data,SERVICE USER,OP - East Cambs Locality,East Cambs - O P Team,Direct Payments
Cambridgeshire County Council,07-Feb-19,51300672386,-719.81,Redacted Personal Data,SERVICE USER,OP - East Cambs Locality,East Cambs - O P Team,Direct Payments
Cambridgeshire County Council,07-Feb-19,51300672336,-719.81,Redacted Personal Data,SERVICE USER,OP - East Cambs Locality,East Cambs - O P Team,SDS - Care and support Services
Cambridgeshire County Council,07-Feb-19,51300672403,-719.81,Redacted Personal Data,SERVICE USER,OP - East Cambs Locality,East Cambs - O P Team,SDS - Care and support Services
Cambridgeshire County Council,07-Feb-19,51300720793,-719.81,Redacted Personal Data,SERVICE USER,OP - East Cambs Locality,East Cambs - O P Team,Direct Payments
Cambridgeshire County Council,07-Feb-19,51300680646,-719.81,Redacted Personal Data,SERVICE USER,OP - East Cambs Locality,East Cambs - O P Team,Direct Payments
Cambridgeshire County Council,07-Feb-19,51300720762,-719.81,Redacted Personal Data,SERVICE USER,OP - East Cambs Locality,East Cambs - O P Team,Direct Payments
Cambridgeshire County Council,07-Feb-19,51300720834,-719.81,Redacted Personal Data,SERVICE USER,OP - East Cambs Locality,East Cambs - O P Team,Direct Payments
Cambridgeshire County Council,07-Feb-19,51300672397,-719.81,Redacted Personal Data,SERVICE USER,OP - East Cambs Locality,East Cambs - O P Team,Direct Payments
Cambridgeshire County Council,07-Feb-19,51300672315,-719.81,Redacted Personal Data,SERVICE USER,OP - East Cambs Locality,East Cambs - O P Team,Direct Payments
Cambridgeshire County Council,07-Feb-19,51300680685,-719.81,Redacted Personal Data,SERVICE USER,OP - East Cambs Locality,East Cambs - O P Team,Direct Payments
Cambridgeshire County Council,07-Feb-19,51300680718,-719.81,Redacted Personal Data,SERVICE USER,OP - East Cambs Locality,East Cambs - O P Team,SDS - Care and support Services
Cambridgeshire County Council,07-Feb-19,51300694155,-719.81,Redacted Personal Data,SERVICE USER,OP - East Cambs Locality,East Cambs - O P Team,SDS - Care and support Services
Cambridgeshire County Council,07-Feb-19,51300694079,-719.81,Redacted Personal Data,SERVICE USER,OP - East Cambs Locality,East Cambs - O P Team,Direct Payments
Cambridgeshire County Council,07-Feb-19,51300694175,-719.81,Redacted Personal Data,SERVICE USER,OP - East Cambs Locality,East Cambs - O P Team,Direct Payments
Cambridgeshire County Council,07-Feb-19,51300672324,-719.81,Redacted Personal Data,SERVICE USER,OP - East Cambs Locality,East Cambs - O P Team,SDS - Care and support Services
Cambridgeshire County Council,07-Feb-19,51300672279,-719.81,Redacted Personal Data,SERVICE USER,OP - East Cambs Locality,East Cambs - O P Team,SDS - Care and support Services
Cambridgeshire County Council,07-Feb-19,51300680731,-719.81,Redacted Personal Data,SERVICE USER,OP - East Cambs Locality,East Cambs - O P Team,SDS - Care and support Services
Cambridgeshire County Council,07-Feb-19,51300694058,-719.81,Redacted Personal Data,SERVICE USER,OP - East Cambs Locality,East Cambs - O P Team,Direct Payments
Cambridgeshire County Council,07-Feb-19,51300694172,-719.81,Redacted Personal Data,SERVICE USER,OP - East Cambs Locality,East Cambs - O P Team,SDS - Care and support Services
Cambridgeshire County Council,07-Feb-19,51300694123,-719.81,Redacted Personal Data,SERVICE USER,OP - East Cambs Locality,East Cambs - O P Team,Direct Payments
Cambridgeshire County Council,07-Feb-19,51300694108,-719.81,Redacted Personal Data,SERVICE USER,OP - East Cambs Locality,East Cambs - O P Team,SDS - Care and support Services
Cambridgeshire County Council,07-Feb-19,51300694064,-719.81,Redacted Personal Data,SERVICE USER,OP - East Cambs Locality,East Cambs - O P Team,SDS - Care and support Services
Cambridgeshire County Council,07-Feb-19,51300720707,-719.81,Redacted Personal Data,SERVICE USER,OP - East Cambs Locality,East Cambs - O P Team,SDS - Care and support Services
Cambridgeshire County Council,07-Feb-19,51300720789,-719.81,Redacted Personal Data,SERVICE USER,OP - East Cambs Locality,East Cambs - O P Team,Direct Payments
Cambridgeshire County Council,07-Feb-19,51300694104,-719.81,Redacted Personal Data,SERVICE USER,OP - East Cambs Locality,East Cambs - O P Team,SDS - Care and support Services
Cambridgeshire County Council,07-Feb-19,51300694105,-719.81,Redacted Personal Data,SERVICE USER,OP - East Cambs Locality,East Cambs - O P Team,Direct Payments
Cambridgeshire County Council,07-Feb-19,51300720780,-719.81,Redacted Personal Data,SERVICE USER,OP - East Cambs Locality,East Cambs - O P Team,SDS - Care and support Services
Cambridgeshire County Council,07-Feb-19,51300720755,-719.81,Redacted Personal Data,SERVICE USER,OP - East Cambs Locality,East Cambs - O P Team,SDS - Care and support Services
Cambridgeshire County Council,07-Feb-19,51300720829,-719.81,Redacted Personal Data,SERVICE USER,OP - East Cambs Locality,East Cambs - O P Team,SDS - Care and support Services
Cambridgeshire County Council,07-Feb-19,51300680677,-719.81,Redacted Personal Data,SERVICE USER,OP - East Cambs Locality,East Cambs - O P Team,Direct Payments
Cambridgeshire County Council,07-Feb-19,51300694138,-719.81,Redacted Personal Data,SERVICE USER,OP - East Cambs Locality,East Cambs - O P Team,Direct Payments
Cambridgeshire County Council,07-Feb-19,51300694163,-719.81,Redacted Personal Data,SERVICE USER,OP - East Cambs Locality,East Cambs - O P Team,Direct Payments
Cambridgeshire County Council,07-Feb-19,51300720805,-719.81,Redacted Personal Data,SERVICE USER,OP - East Cambs Locality,East Cambs - O P Team,Direct Payments
Cambridgeshire County Council,07-Feb-19,51300720806,-719.81,Redacted Personal Data,SERVICE USER,OP - East Cambs Locality,East Cambs - O P Team,SDS - Care and support Services
Cambridgeshire County Council,07-Feb-19,51300680655,-719.81,Redacted Personal Data,SERVICE USER,OP - East Cambs Locality,East Cambs - O P Team,Direct Payments
Cambridgeshire County Council,07-Feb-19,51300680736,-719.81,Redacted Personal Data,SERVICE USER,OP - East Cambs Locality,East Cambs - O P Team,Direct Payments
Cambridgeshire County Council,07-Feb-19,51300694059,-719.81,Redacted Personal Data,SERVICE USER,OP - East Cambs Locality,East Cambs - O P Team,Direct Payments
Cambridgeshire County Council,07-Feb-19,51300672380,-719.81,Redacted Personal Data,SERVICE USER,OP - East Cambs Locality,East Cambs - O P Team,SDS - Care and support Services
Cambridgeshire County Council,07-Feb-19,51300680766,-719.81,Redacted Personal Data,SERVICE USER,OP - East Cambs Locality,East Cambs - O P Team,Direct Payments
Cambridgeshire County Council,07-Feb-19,51300680702,-719.81,Redacted Personal Data,SERVICE USER,OP - East Cambs Locality,East Cambs - O P Team,SDS - Care and support Services
Cambridgeshire County Council,07-Feb-19,51300680648,-719.81,Redacted Personal Data,SERVICE USER,OP - East Cambs Locality,East Cambs - O P Team,Direct Payments
Cambridgeshire County Council,07-Feb-19,51300680672,-719.81,Redacted Personal Data,SERVICE USER,OP - East Cambs Locality,East Cambs - O P Team,SDS - Care and support Services
Cambridgeshire County Council,07-Feb-19,51300680727,-719.81,Redacted Personal Data,SERVICE USER,OP - East Cambs Locality,East Cambs - O P Team,SDS - Care and support Services
Cambridgeshire County Council,07-Feb-19,51300694153,-719.81,Redacted Personal Data,SERVICE USER,OP - East Cambs Locality,East Cambs - O P Team,SDS - Care and support Services
Cambridgeshire County Council,07-Feb-19,51300694135,-719.81,Redacted Personal Data,SERVICE USER,OP - East Cambs Locality,East Cambs - O P Team,SDS - Care and support Services
Cambridgeshire County Council,07-Feb-19,51300680740,-719.81,Redacted Personal Data,SERVICE USER,OP - East Cambs Locality,East Cambs - O P Team,Direct Payments
Cambridgeshire County Council,07-Feb-19,51300680647,-719.81,Redacted Personal Data,SERVICE USER,OP - East Cambs Locality,East Cambs - O P Team,Direct Payments
Cambridgeshire County Council,07-Feb-19,51300672314,-719.81,Redacted Personal Data,SERVICE USER,OP - East Cambs Locality,East Cambs - O P Team,SDS - Care and support Services
Cambridgeshire County Council,07-Feb-19,51300672291,-719.81,Redacted Personal Data,SERVICE USER,OP - East Cambs Locality,East Cambs - O P Team,SDS - Care and support Services
Cambridgeshire County Council,07-Feb-19,51300694062,-719.81,Redacted Personal Data,SERVICE USER,OP - East Cambs Locality,East Cambs - O P Team,SDS - Care and support Services
Cambridgeshire County Council,07-Feb-19,51300694115,-719.81,Redacted Personal Data,SERVICE USER,OP - East Cambs Locality,East Cambs - O P Team,SDS - Care and support Services
Cambridgeshire County Council,07-Feb-19,51300720784,-719.81,Redacted Personal Data,SERVICE USER,OP - East Cambs Locality,East Cambs - O P Team,Direct Payments
Cambridgeshire County Council,07-Feb-19,51300720787,-719.81,Redacted Personal Data,SERVICE USER,OP - East Cambs Locality,East Cambs - O P Team,SDS - Care and support Services
Cambridgeshire County Council,07-Feb-19,51300720839,-719.81,Redacted Personal Data,SERVICE USER,OP - East Cambs Locality,East Cambs - O P Team,SDS - Care and support Services
Cambridgeshire County Council,07-Feb-19,51300680690,-719.81,Redacted Personal Data,SERVICE USER,OP - East Cambs Locality,East Cambs - O P Team,Direct Payments
Cambridgeshire County Council,07-Feb-19,51300680665,-719.81,Redacted Personal Data,SERVICE USER,OP - East Cambs Locality,East Cambs - O P Team,Direct Payments
Cambridgeshire County Council,07-Feb-19,51300694166,-719.81,Redacted Personal Data,SERVICE USER,OP - East Cambs Locality,East Cambs - O P Team,SDS - Care and support Services
Cambridgeshire County Council,07-Feb-19,51300672335,-719.81,Redacted Personal Data,SERVICE USER,OP - East Cambs Locality,East Cambs - O P Team,Direct Payments
Cambridgeshire County Council,07-Feb-19,51300672319,-719.81,Redacted Personal Data,SERVICE USER,OP - East Cambs Locality,East Cambs - O P Team,Direct Payments
Cambridgeshire County Council,07-Feb-19,51300680657,-719.81,Redacted Personal Data,SERVICE USER,OP - East Cambs Locality,East Cambs - O P Team,SDS - Care and support Services
Cambridgeshire County Council,07-Feb-19,51300680723,-719.81,Redacted Personal Data,SERVICE USER,OP - East Cambs Locality,East Cambs - O P Team,Direct Payments
Cambridgeshire County Council,07-Feb-19,51300672295,-719.81,Redacted Personal Data,SERVICE USER,OP - East Cambs Locality,East Cambs - O P Team,SDS - Care and support Services
Cambridgeshire County Council,07-Feb-19,51300694056,-719.81,Redacted Personal Data,SERVICE USER,OP - East Cambs Locality,East Cambs - O P Team,SDS - Care and support Services
Cambridgeshire County Council,07-Feb-19,51300694129,-719.81,Redacted Personal Data,SERVICE USER,OP - East Cambs Locality,East Cambs - O P Team,SDS - Care and support Services
Cambridgeshire County Council,07-Feb-19,51300694131,-719.81,Redacted Personal Data,SERVICE USER,OP - East Cambs Locality,East Cambs - O P Team,SDS - Care and support Services
Cambridgeshire County Council,07-Feb-19,51300720714,-719.81,Redacted Personal Data,SERVICE USER,OP - East Cambs Locality,East Cambs - O P Team,Direct Payments
Cambridgeshire County Council,07-Feb-19,51300720777,-719.81,Redacted Personal Data,SERVICE USER,OP - East Cambs Locality,East Cambs - O P Team,Direct Payments
Cambridgeshire County Council,07-Feb-19,51300694156,-719.81,Redacted Personal Data,SERVICE USER,OP - East Cambs Locality,East Cambs - O P Team,SDS - Care and support Services
Cambridgeshire County Council,07-Feb-19,51300694070,-719.81,Redacted Personal Data,SERVICE USER,OP - East Cambs Locality,East Cambs - O P Team,SDS - Care and support Services
Cambridgeshire County Council,07-Feb-19,51300694068,-719.81,Redacted Personal Data,SERVICE USER,OP - East Cambs Locality,East Cambs - O P Team,SDS - Care and support Services
Cambridgeshire County Council,07-Feb-19,51300680708,-719.81,Redacted Personal Data,SERVICE USER,OP - East Cambs Locality,East Cambs - O P Team,SDS - Care and support Services
Cambridgeshire County Council,07-Feb-19,51300680693,-719.81,Redacted Personal Data,SERVICE USER,OP - East Cambs Locality,East Cambs - O P Team,SDS - Care and support Services
Cambridgeshire County Council,07-Feb-19,51300680730,-719.81,Redacted Personal Data,SERVICE USER,OP - East Cambs Locality,East Cambs - O P Team,Direct Payments
Cambridgeshire County Council,07-Feb-19,51300720730,-719.81,Redacted Personal Data,SERVICE USER,OP - East Cambs Locality,East Cambs - O P Team,Direct Payments
Cambridgeshire County Council,07-Feb-19,51300720710,-719.81,Redacted Personal Data,SERVICE USER,OP - East Cambs Locality,East Cambs - O P Team,Direct Payments
Cambridgeshire County Council,07-Feb-19,51300672372,-719.81,Redacted Personal Data,SERVICE USER,OP - East Cambs Locality,East Cambs - O P Team,Direct Payments
Cambridgeshire County Council,07-Feb-19,51300672379,-719.81,Redacted Personal Data,SERVICE USER,OP - East Cambs Locality,East Cambs - O P Team,Direct Payments
Cambridgeshire County Council,07-Feb-19,51300672387,-719.81,Redacted Personal Data,SERVICE USER,OP - East Cambs Locality,East Cambs - O P Team,SDS - Care and support Services
Cambridgeshire County Council,07-Feb-19,51300680706,-719.81,Redacted Personal Data,SERVICE USER,OP - East Cambs Locality,East Cambs - O P Team,SDS - Care and support Services
Cambridgeshire County Council,07-Feb-19,51300694133,-719.81,Redacted Personal Data,SERVICE USER,OP - East Cambs Locality,East Cambs - O P Team,SDS - Care and support Services
Cambridgeshire County Council,07-Feb-19,51300694139,-719.81,Redacted Personal Data,SERVICE USER,OP - East Cambs Locality,East Cambs - O P Team,SDS - Care and support Services
Cambridgeshire County Council,07-Feb-19,51300680725,-719.81,Redacted Personal Data,SERVICE USER,OP - East Cambs Locality,East Cambs - O P Team,Direct Payments
Cambridgeshire County Council,07-Feb-19,51300680678,-719.81,Redacted Personal Data,SERVICE USER,OP - East Cambs Locality,East Cambs - O P Team,SDS - Care and support Services
Cambridgeshire County Council,07-Feb-19,51300672395,-719.81,Redacted Personal Data,SERVICE USER,OP - East Cambs Locality,East Cambs - O P Team,SDS - Care and support Services
Cambridgeshire County Council,07-Feb-19,51300672329,-719.81,Redacted Personal Data,SERVICE USER,OP - East Cambs Locality,East Cambs - O P Team,Direct Payments
Cambridgeshire County Council,07-Feb-19,51300680732,-719.81,Redacted Personal Data,SERVICE USER,OP - East Cambs Locality,East Cambs - O P Team,Direct Payments
